Service Area,Service Division,Expense Type,Expense Code,Detailed Expense Type,Payment Date,Transaction Number,Amount Exc VAT,Supplier Name
Neighbourhoods and Climate Change,Environmental Services,Supplies and Services,304259,Equipment and Materials,01/05/2024,319783-94827,"2,467.53",CORPORATE COMPUTER SUPPLIES LTD.
Neighbourhoods and Climate Change,Partnerships & Community Engagement Div.,Supplies and Services,384086,Miscellaneous Expenses,01/05/2024,4264213-VOUCHER24NB-EDUR001,"1,485.00",1338 SEAHAM SQUADRON ATC CIVILION CMT.
Regeneration Economy and Growth,Corporate Property and Land,Supplies and Services,304221,Equipment and Materials,01/05/2024,4264238-5135,"1,750.00",BCS PROPERTY PROJECTS LIMITED.
Regeneration Economy and Growth,Corporate Property and Land,Third Party Payments,430100,Rendered by Private Contractors,01/05/2024,4264319-5765,"41,567.00",FUSION CLC LTD.
Neighbourhoods and Climate Change,Environmental Services,Transport,210057,Repair and Maintenance of Vehicles,01/05/2024,4264361-KIV1533899,599.99,KNS AUTOMOTIVE LTD.
Dedicated Schools Grant BG0015,DSG Schools Block,Supplies and Services,384199,Miscellaneous Expenses,01/05/2024,4264441-II-22763,697.00,SPARK2 EDUCATION LTD.
Neighbourhoods and Climate Change,Environmental Services,Supplies and Services,384199,Miscellaneous Expenses,01/05/2024,4264458-RES-04-2024-1091,"1,168.00",TERN THE TIDE.
Regeneration Economy and Growth,Culture Sport and Tourism,Supplies and Services,338047,Services,01/05/2024,4264462-130424-BATOWNHALL,"1,076.25",THE EVERREADY BAND.
Chief Executives Office,Legal & Democratic Services,Supplies and Services,304259,Equipment and Materials,01/05/2024,4264466-I286314,"1,518.84",THOMAS FATTORINI LTD.
Regeneration Economy and Growth,Corporate Property and Land,Third Party Payments,430100,Rendered by Private Contractors,01/05/2024,4264219-54657539,"1,735.00",ADT FIRE & SECURITY PLC.
Resources - C A C,Resources - C A C- Level C,Supplies and Services,384199,Miscellaneous Expenses,01/05/2024,4264220-RES-04-2024-1019,"41,800.00",AGE UK COUNTY DURHAM.
Regeneration Economy and Growth,Culture Sport and Tourism,Premises,145023,Cleaning and Domestic Supplies,01/05/2024,4264222-427326480,859.38,AIR PRODUCTS PLC.
Regeneration Economy and Growth,Corporate Property and Land,Third Party Payments,430100,Rendered by Private Contractors,01/05/2024,4264228-SI30421,542.67,AMBIC LTD.
Neighbourhoods and Climate Change,Highways,Supplies and Services,304358,Equipment and Materials,01/05/2024,4264232-0000084572,"1,120.00",ASHCOURT (DURHAM & TEES VALLEY) LTD.
Regeneration Economy and Growth,Culture Sport and Tourism,Supplies and Services,312013,Newspapers books and periodicals E312,01/05/2024,4264233-7029496,688.66,ASKEWS & HOLTS LIBRARY SERVICES LTD.
Neighbourhoods and Climate Change,Highways,Fees,901001,Internal fees,01/05/2024,4264234-24015072,"16,769.04",ATKINSREALIS PPS LTD.
Neighbourhoods and Climate Change,Environmental Services,Transport,210057,Repair and Maintenance of Vehicles,01/05/2024,4264240-051901-WI,913.03,BENELLA AUTO ELECTRICAL SERVICES LTD T/A BENELLA COMMERCIAL.
Regeneration Economy and Growth,Planning & Housing,Third Party Payments,440999,Other third party payments E440,01/05/2024,4264242-DHP0171,952.08,BERNICIA GROUP LTD.*
Regeneration Economy and Growth,Culture Sport and Tourism,Supplies and Services,324117,Provisions E324,01/05/2024,4264246-26989047,835.87,BIDFOOD.
Regeneration Economy and Growth,Economic Development CL0150,Supplies and Services,338066,Services,01/05/2024,4264250-SIN051583,"9,236.00",BLOOM PROCUREMENT SERVICES LTD (FORMERLY NEPRO LTD).
Resources BK0010,Corporate Finance & Commercial Services,Supplies and Services,338066,Services,01/05/2024,4264250-SIN051584,"106,667.06",BLOOM PROCUREMENT SERVICES LTD (FORMERLY NEPRO LTD).
Neighbourhoods and Climate Change,Community Protection,Supplies and Services,352001,Conference Expenses,01/05/2024,4264251-SIN481564,570.00,BOND SOLON TRAINING LTD.*
Regeneration Economy and Growth,Corporate Property and Land,Cap Exp on Grants & Other Financial Assistance (REFCUS),918004,Contributions to other bodies 918004,01/05/2024,4264254-RES-04-2024-1078,"20,000.00",C & S PROPERTIES LTD.
Regeneration Economy and Growth,Corporate Property and Land,Third Party Payments,430100,Rendered by Private Contractors,01/05/2024,4264257-883,985.60,CEILINGS DIRECT LTD.
Regeneration Economy and Growth,Transport and Contract Services,Supplies and Services,384199,Miscellaneous Expenses,01/05/2024,4264258-INV-1500,"6,650.00",CHALLENGE FOR CHANGE LTD T/A LOVE TO RIDE.
Regeneration Economy and Growth,Corporate Property and Land,Third Party Payments,430100,Rendered by Private Contractors,01/05/2024,4264263-CC148209,"2,475.00",CITY CLEAN NORTHERN LTD.
Children and Young Peoples Services,Head of Education and Skills,Third Party Payments,440999,Other third party payments E440,01/05/2024,4264268-CTA/DCC/COMLEARN/L,"4,950.00",COMMUNICATORS TRAINING ASSOCIATES LTD.
Neighbourhoods and Climate Change,Partnerships & Community Engagement Div.,Supplies and Services,308011,Furniture,01/05/2024,4264271-HAND033,570.00,COUNTY DURHAM FURNITURE HELP SCHEME (CDFHS).
Regeneration Economy and Growth,Planning & Housing,Supplies and Services,308011,Furniture,01/05/2024,4264271-REG0141,825.00,COUNTY DURHAM FURNITURE HELP SCHEME (CDFHS).
Regeneration Economy and Growth,Planning & Housing,Supplies and Services,308011,Furniture,01/05/2024,4264271-REG0142,"1,600.00",COUNTY DURHAM FURNITURE HELP SCHEME (CDFHS).
Regeneration Economy and Growth,Planning & Housing,Supplies and Services,308011,Furniture,01/05/2024,4264271-REG0144,"1,675.00",COUNTY DURHAM FURNITURE HELP SCHEME (CDFHS).
Regeneration Economy and Growth,Planning & Housing,Supplies and Services,308011,Furniture,01/05/2024,4264271-REG0145,"1,814.00",COUNTY DURHAM FURNITURE HELP SCHEME (CDFHS).
Regeneration Economy and Growth,Planning & Housing,Supplies and Services,308011,Furniture,01/05/2024,4264271-REG0146,"1,674.00",COUNTY DURHAM FURNITURE HELP SCHEME (CDFHS).
Neighbourhoods and Climate Change,Environmental Services,Supplies and Services,384606,Miscellaneous Expenses,01/05/2024,4264275-RES-04-2024-1034,"2,305.00",CUMBRIA EDUCATION TRUST.
Neighbourhoods and Climate Change,Environmental Services,Supplies and Services,338066,Services,01/05/2024,4264276-RES-04-2024-1030,"6,000.00",CUMBRIA WILDLIFE TRUST LTD.
Neighbourhoods and Climate Change,Environmental Services,Transport,210057,Repair and Maintenance of Vehicles,01/05/2024,4264281-96456329,620.23,DENNIS EAGLE LTD T/A TERBERG MATEC (UK) LTD.
Neighbourhoods and Climate Change,Environmental Services,Transport,210057,Repair and Maintenance of Vehicles,01/05/2024,4264281-96457327,"1,130.32",DENNIS EAGLE LTD T/A TERBERG MATEC (UK) LTD.
Neighbourhoods and Climate Change,Environmental Services,Transport,210057,Repair and Maintenance of Vehicles,01/05/2024,4264282-DE11672384,"2,249.95",DENNIS EAGLE LTD.
Regeneration Economy and Growth,Planning & Housing,Supplies and Services,364501,Grants to Voluntary Organisations,01/05/2024,4264283-065,"1,500.00",DENTON MANAGEMENT LTD.
Regeneration Economy and Growth,Culture Sport and Tourism,Third Party Payments,430131,Rendered by Private Contractors,01/05/2024,4264285-TF2403,"4,167.00",DERWENTSIDE ASC.
Regeneration Economy and Growth,Corporate Property and Land,Supplies and Services,304221,Equipment and Materials,01/05/2024,4264294-09,"1,800.00",DURHAM CITY METHODISTS.
Regeneration Economy and Growth,Culture Sport and Tourism,Supplies and Services,312013,Newspapers books and periodicals E312,01/05/2024,4264295-06042024,"1,164.93",DURHAM CITY NEWSTORE.
Regeneration Economy and Growth,Planning & Housing,Supplies and Services,338094,Services,01/05/2024,4264296-3333,"1,002.91",DURHAM CRICKET EVENTS LTD.
Regeneration Economy and Growth,Planning & Housing,Supplies and Services,338094,Services,01/05/2024,4264296-3352,"1,002.91",DURHAM CRICKET EVENTS LTD.
Regeneration Economy and Growth,Planning & Housing,Supplies and Services,338094,Services,01/05/2024,4264296-3546,685.42,DURHAM CRICKET EVENTS LTD.
Neighbourhoods and Climate Change,Environmental Services,Supplies and Services,384606,Miscellaneous Expenses,01/05/2024,4264301-RES-04-2024-1027,500.79,EDEN VALLEY CAMERA CLUB.
Chief Executives Office,Corporate BI,Supplies and Services,342051,Computers and Communications,01/05/2024,4264307-UK-SIN044943,"147,000.00",ESRI (UK) LTD.
Regeneration Economy and Growth,Corporate Property and Land,Supplies and Services,304259,Equipment and Materials,01/05/2024,4264308-INV165641,"2,268.00",EVAC & CHAIR INTERNATIONAL LTD.
Regeneration Economy and Growth,Transport and Contract Services,Third Party Payments,430106,Rendered by Private Contractors,01/05/2024,4264312-PUBLICSERVICE-APRIL24,960.00,FERRYHILL VILLAGE TRAVEL.
Children and Young Peoples Services,Head of Childrens Social Care,Supplies and Services,338044,Services,01/05/2024,4264314-115394,503.00,FORENSIC TESTING SERVICE LTD.
Neighbourhoods and Climate Change,Community Protection,Supplies and Services,338045,Services,01/05/2024,4264316-120912-PM,"1,600.00",FOUNTAIN CHAMBERS.
Regeneration Economy and Growth,Culture Sport and Tourism,Premises,145023,Cleaning and Domestic Supplies,01/05/2024,4264328-06/266390,785.40,GREENHAM TRADING LTD.
Children and Young Peoples Services,Head of Early Help Inclusion & Vulnerable Children.,Premises,145023,Cleaning and Domestic Supplies,01/05/2024,4264328-06/266411/2024,989.48,GREENHAM TRADING LTD.
Neighbourhoods and Climate Change,Environmental Services,Transport,210057,Repair and Maintenance of Vehicles,01/05/2024,4264329-285610,736.96,GREENLAY T/A THOMAS SHERRIFF & CO LTD.
Children and Young Peoples Services,Head of Early Help Inclusion & Vulnerable Children.,Supplies and Services,364359,Grants to Voluntary Organisations,01/05/2024,4264333-EY334203/1,585.00,HAPPYTIMES DAYCARE LTD.
Children and Young Peoples Services,Head of Early Help Inclusion & Vulnerable Children.,Supplies and Services,364359,Grants to Voluntary Organisations,01/05/2024,4264333-EY334203/2,843.00,HAPPYTIMES DAYCARE LTD.
Children and Young Peoples Services,Head of Early Help Inclusion & Vulnerable Children.,Supplies and Services,364359,Grants to Voluntary Organisations,01/05/2024,4264333-EY334203/3,802.80,HAPPYTIMES DAYCARE LTD.
Regeneration Economy and Growth,Culture Sport and Tourism,Supplies and Services,304259,Equipment and Materials,01/05/2024,4264343-2100873062,"1,370.46",INSIGHT DIRECT (UK) LTD.
Regeneration Economy and Growth,Corporate Property and Land,Supplies and Services,304221,Equipment and Materials,01/05/2024,4264356-0213/01144349,"1,295.20",JT DOVE LTD.
Regeneration Economy and Growth,Corporate Property and Land,Supplies and Services,304221,Equipment and Materials,01/05/2024,4264356-0303/01207506,"1,599.60",JT DOVE LTD.
Regeneration Economy and Growth,Corporate Property and Land,Supplies and Services,304221,Equipment and Materials,01/05/2024,4264356-0303/01213041,"4,397.22",JT DOVE LTD.
Regeneration Economy and Growth,Corporate Property and Land,Supplies and Services,304221,Equipment and Materials,01/05/2024,4264356-0303/01220729,607.87,JT DOVE LTD.
Neighbourhoods and Climate Change,Environmental Services,Supplies and Services,338066,Services,01/05/2024,4264363-RES-04-2024-1031,"6,300.00",LANCASHIRE WILDLIFE TRUST LTD.
Children and Young Peoples Services,Head of Early Help Inclusion & Vulnerable Children.,Employees,080025,Agency Staff,01/05/2024,4264375-2481805,"181,943.03",MAGNIT GLOBAL GRI LTD.
Regeneration Economy and Growth,Corporate Property and Land,Supplies and Services,304221,Equipment and Materials,01/05/2024,4264379-INV-0343,"3,050.00",MER FLEET SERVICES LTD.
Neighbourhoods and Climate Change,Environmental Services,Supplies and Services,384899,Miscellaneous Expenses,01/05/2024,4264387-RES-04-2024-1096,"10,000.00",NATIONAL TRUST.
Adult and Health Services,Commissioning inc Supporting People,Third Party Payments,440999,Other third party payments E440,01/05/2024,4264388-62490,"3,678.01",NATIONAL YOUTH ADVOCACY SERVICE.
Regeneration Economy and Growth,Culture Sport and Tourism,Supplies and Services,384199,Miscellaneous Expenses,01/05/2024,4264391-INV-3048,"4,612.50",NERAMS LTD.
Regeneration Economy and Growth,Culture Sport and Tourism,Third Party Payments,430130,Rendered by Private Contractors,01/05/2024,4264394-COASI75,"2,673.18",NEW COLLEGE DURHAM ACADEMIES TRUST (NCDAT).
Neighbourhoods and Climate Change,Environmental Services,Supplies and Services,338066,Services,01/05/2024,4264400-RES-04-2024-1032,"8,100.00",NORTHUMBERLAND WILDLIFE TRUST.
Children and Young Peoples Services,Head of Early Help Inclusion & Vulnerable Children.,Supplies and Services,304259,Equipment and Materials,01/05/2024,4264415-2594196541,"2,690.65",PHONAK UK LTD.
Regeneration Economy and Growth,Corporate Property and Land,Supplies and Services,304221,Equipment and Materials,01/05/2024,4264417-46597,"4,847.68",PLASLOC LTD.
Adult and Health Services,Head of Adults,Supplies and Services,304259,Equipment and Materials,01/05/2024,4264419-5625395,"1,891.54",PRISM MEDICAL UK WESTHOLME DIVISION.
Regeneration Economy and Growth,Corporate Property and Land,Supplies and Services,338066,Services,01/05/2024,4264427-CR4573,"2,083.33",ROBINSONS ESTATE AGENTS.
Neighbourhoods and Climate Change,Environmental Services,Transport,210057,Repair and Maintenance of Vehicles,01/05/2024,4264432-2024.1000006486,812.54,SCARAB SWEEPERS LTD.
Neighbourhoods and Climate Change,Environmental Services,Transport,230720,Contract Hire,01/05/2024,4264436-001/24/1560566,"24,650.00",SIEMENS FINANCIAL SERVICES LTD.
Neighbourhoods and Climate Change,Environmental Services,Transport,210057,Repair and Maintenance of Vehicles,01/05/2024,4264437-23143613,"1,498.69",SIMON BAILES LTD.
Chief Executives Office,Communications Management,Supplies and Services,332029,Printing Stationery and Gen Off Exps,01/05/2024,4264445-153401,600.00,STATEX PRESS (NORTHERN) LTD.
Neighbourhoods and Climate Change,Partnerships & Community Engagement Div.,Supplies and Services,384159,Miscellaneous Expenses,01/05/2024,4264446-17725,697.50,STEADFAST SECURITY SOLUTIONS LTD.
Neighbourhoods and Climate Change,Highways,Supplies and Services,304221,Equipment and Materials,01/05/2024,4264450-48199,"1,910.33",STONEGRAVE AGGREGATES LTD.
Regeneration Economy and Growth,Corporate Property and Land,Third Party Payments,430100,Rendered by Private Contractors,01/05/2024,4264452-181017,"4,955.00",SUPATINT LTD T/A SUPATINT WINDOW FILMS & BLINDS.
Regeneration Economy and Growth,Corporate Property and Land,Supplies and Services,304221,Equipment and Materials,01/05/2024,4264454-1175635,"1,162.70",T CROSSLING & CO LTD.
Neighbourhoods and Climate Change,Highways,Supplies and Services,304221,Equipment and Materials,01/05/2024,4264455-9048259621,532.88,TARMAC TRADING LTD.
Regeneration Economy and Growth,Business Durham,Supplies and Services,344033,Telephones,01/05/2024,4264463-005566371,"1,022.01",THE PHONE CO-OP.
Children and Young Peoples Services,Head of Early Help Inclusion & Vulnerable Children.,Supplies and Services,384871,Miscellaneous Expenses,01/05/2024,4264464-0989,"10,000.00",THE SKILL MILL LTD.
Neighbourhoods and Climate Change,Highways,Stock A926,926900,Stock in hand-Inventory system,01/05/2024,4264467-NSIN00111777,894.61,THOMAS OWEN & SONS (NEWCASTLE) LTD.
Neighbourhoods and Climate Change,Highways,Stock A926,926900,Stock in hand-Inventory system,01/05/2024,4264467-NSIN00111779,"1,194.79",THOMAS OWEN & SONS (NEWCASTLE) LTD.
Regeneration Economy and Growth,Planning & Housing,Supplies and Services,304516,Equipment and Materials,01/05/2024,4264469-96417,825.00,THRIIVER LTD.
Neighbourhoods and Climate Change,Highways,Supplies and Services,304221,Equipment and Materials,01/05/2024,4264474-258664,"1,287.15",TYNEDALE ROADSTONE LTD.
Neighbourhoods and Climate Change,Highways,Supplies and Services,304221,Equipment and Materials,01/05/2024,4264474-258665,812.85,TYNEDALE ROADSTONE LTD.
Neighbourhoods and Climate Change,Highways,Supplies and Services,304221,Equipment and Materials,01/05/2024,4264474-258666,"1,217.40",TYNEDALE ROADSTONE LTD.
Neighbourhoods and Climate Change,Highways,Supplies and Services,304221,Equipment and Materials,01/05/2024,4264474-258667,"1,401.63",TYNEDALE ROADSTONE LTD.
Neighbourhoods and Climate Change,Highways,Supplies and Services,304221,Equipment and Materials,01/05/2024,4264474-258668,"1,587.65",TYNEDALE ROADSTONE LTD.
Neighbourhoods and Climate Change,Environmental Services,Transport,210057,Repair and Maintenance of Vehicles,01/05/2024,4264478-54437,"4,293.39",VERSALIFT DISTRIBUTORS (UK) LTD.
Regeneration Economy and Growth,Culture Sport and Tourism,Supplies and Services,312013,Newspapers books and periodicals E312,01/05/2024,4264482-3629,"8,331.56",WF HOWES LTD.
Neighbourhoods and Climate Change,Partnerships & Community Engagement Div.,Cap Exp on Grants & Other Financial Assistance (REFCUS),918004,Contributions to other bodies 918004,01/05/2024,4264484-VOUCHER23AB-EDUR006,"4,900.00",WINGATE PARISH COUNCIL.
Neighbourhoods and Climate Change,Environmental Services,Transport,215005,Running Costs of Vehicles,01/05/2024,4264486-1161593,"5,979.70",YOUR NRG LTD.
Neighbourhoods and Climate Change,Environmental Services,Transport,215005,Running Costs of Vehicles,01/05/2024,4264486-1161915,"15,492.10",YOUR NRG LTD.
Regeneration Economy and Growth,Culture Sport and Tourism,Supplies and Services,384199,Miscellaneous Expenses,01/05/2024,4264223-2631,"4,550.00",REDACTED - PAYMENT TO INDIVIDUAL
Regeneration Economy and Growth,Culture Sport and Tourism,Supplies and Services,384199,Miscellaneous Expenses,01/05/2024,4264279-CTO00053I,750.00,REDACTED - PAYMENT TO INDIVIDUAL
Neighbourhoods and Climate Change,Environmental Services,Supplies and Services,384700,Miscellaneous Expenses,01/05/2024,4264351-RES-04-2024-1082,"1,159.44",REDACTED - PAYMENT TO INDIVIDUAL
Neighbourhoods and Climate Change,Environmental Services,Supplies and Services,338027,Services,01/05/2024,4264382-RES-04-2024-1087,"1,151.25",REDACTED - PAYMENT TO INDIVIDUAL
Regeneration Economy and Growth,Corporate Property and Land,Third Party Payments,430100,Rendered by Private Contractors,01/05/2024,4264422-43647,"2,732.00",REDACTED - PAYMENT TO INDIVIDUAL
Neighbourhoods and Climate Change,Environmental Services,Supplies and Services,338066,Services,01/05/2024,4264225-050424,"1,896.00",REDACTED - PAYMENT TO INDIVIDUAL
Regeneration Economy and Growth,Culture Sport and Tourism,Supplies and Services,338047,Services,01/05/2024,4264428-INV-0009,"1,802.67",REDACTED - PAYMENT TO INDIVIDUAL
Regeneration Economy and Growth,Corporate Property and Land,Construction work A908,908105,Construction work,02/05/2024,4264494-351,"1,640.00",ACCESS & INCLUSION BY DESIGN LTD.
Regeneration Economy and Growth,Planning & Housing,Supplies and Services,364501,Grants to Voluntary Organisations,02/05/2024,4264725-3194,585.00,NEWTON ASSETS.
Adult and Health Services,Public Health CC0450,Supplies and Services,384899,Miscellaneous Expenses,02/05/2024,4264487-CREEPAYMENT2024-25MEN,"3,000.00",(DVCP) DENE VALLEY COMMUNITY PARTNERSHIP.
Adult and Health Services,Public Health CC0450,Supplies and Services,384899,Miscellaneous Expenses,02/05/2024,4264487-CREEPAYMENT2024-25WOMEN,"3,000.00",(DVCP) DENE VALLEY COMMUNITY PARTNERSHIP.
Regeneration Economy and Growth,Planning & Housing,Premises,150005,Apportioned Exps of Operational Blds,02/05/2024,4264490-3630,"1,500.00",AA GROUNDCARE UK LTD T/A AA GARDEN LANDSCAPES LTD.
Neighbourhoods and Climate Change,Environmental Services,Premises,108099,Service Repairs and Maintenance,02/05/2024,4264495-40198,"5,363.90",ACI REPORTS LTD.
Children and Young Peoples Services,Head of Education and Skills,Transfer Payments,510051,School Children,02/05/2024,4264498-AWPU-04-2024-015,"2,457.32",ADVANCE LEARNING PARTNERSHIP.
Children and Young Peoples Services,Head of Education and Skills,Transfer Payments,510051,School Children,02/05/2024,4264499-AWPU-04-2024-017,"1,916.71",ADVANCE LEARNING PARTNERSHIP.
Children and Young Peoples Services,Head of Education and Skills,Transfer Payments,510051,School Children,02/05/2024,4264499-AWPU-04-2024-022,"1,621.83",ADVANCE LEARNING PARTNERSHIP.
Children and Young Peoples Services,Head of Education and Skills,Transfer Payments,510051,School Children,02/05/2024,4264499-AWPU-04-2024-023,"1,548.11",ADVANCE LEARNING PARTNERSHIP.
Children and Young Peoples Services,Head of Education and Skills,Transfer Payments,510051,School Children,02/05/2024,4264499-AWPU-04-2024-024,"1,548.11",ADVANCE LEARNING PARTNERSHIP.
Children and Young Peoples Services,Head of Education and Skills,Transfer Payments,510051,School Children,02/05/2024,4264500-AWPU-04-2024-003,"1,855.60",ADVANCE LEARNING PARTNERSHIP.
Children and Young Peoples Services,Head of Education and Skills,Transfer Payments,510051,School Children,02/05/2024,4264500-AWPU-04-2024-011,"2,852.64",ADVANCE LEARNING PARTNERSHIP.
Children and Young Peoples Services,Head of Education and Skills,Transfer Payments,510051,School Children,02/05/2024,4264501-AWPU-04-2024-008,"2,948.78",ADVANCE LEARNING PARTNERSHIP.
Children and Young Peoples Services,Head of Education and Skills,Transfer Payments,510051,School Children,02/05/2024,4264501-AWPU-04-2024-012,"2,963.42",ADVANCE LEARNING PARTNERSHIP.
Children and Young Peoples Services,Head of Education and Skills,Transfer Payments,510051,School Children,02/05/2024,4264502-AWPU-04-2024-025,815.72,ADVANCE LEARNING PARTNERSHIP.
Neighbourhoods and Climate Change,Environmental Services,Third Party Payments,430100,Rendered by Private Contractors,02/05/2024,4264503-60298924,630.57,AEBI SCHMIDT UK LTD.
Neighbourhoods and Climate Change,Environmental Services,Third Party Payments,430100,Rendered by Private Contractors,02/05/2024,4264507-3463,"2,250.00",AJ GUTHRIE & SON.
Regeneration Economy and Growth,Corporate Property and Land,Premises,108099,Service Repairs and Maintenance,02/05/2024,4264517-0000040142,675.00,AQUAJET DRAIN CLEANING LTD.
Neighbourhoods and Climate Change,Environmental Services,Premises,106082,Centrally Controlled Rep and Maint,02/05/2024,4264517-0000040157,"1,226.20",AQUAJET DRAIN CLEANING LTD.
Neighbourhoods and Climate Change,Highways,Supplies and Services,304358,Equipment and Materials,02/05/2024,4264518-0000040129,"2,482.00",AQUAJET DRAIN CLEANING LTD.
Neighbourhoods and Climate Change,Highways,Supplies and Services,304358,Equipment and Materials,02/05/2024,4264518-0000040140,"2,437.50",AQUAJET DRAIN CLEANING LTD.
Neighbourhoods and Climate Change,Highways,Third Party Payments,460224,Contract Payments,02/05/2024,4264519-30974,"59,655.37",ARM PIPETEK LTD.
Neighbourhoods and Climate Change,Environmental Services,Transport,230005,Contract Hire,02/05/2024,4264522-CI0140866,"2,663.13",ARNOLD CLARK CAR & VAN RENTAL.
Non-Service Specific,Non Service Specific-Financing,Long Term Debtors,924001,Travel Loans,02/05/2024,4264523-121717,"1,026.67",ARRIVA NORTHUMBRIA LTD.
Regeneration Economy and Growth,Corporate Property and Land,Supplies and Services,304221,Equipment and Materials,02/05/2024,4264526-36626,"15,119.00",ASTOR BANNERMAN (MEDICAL) LTD.
Adult and Health Services,Public Health CC0450,Supplies and Services,384899,Miscellaneous Expenses,02/05/2024,4264530-CREEPAYMENT2024-25,"3,000.00",BEAMISH MUSEUM LTD.
Neighbourhoods and Climate Change,Environmental Services,Third Party Payments,430100,Rendered by Private Contractors,02/05/2024,4264532-16198371,622.39,BELL TRUCK SALES LTD T/A BELL TRUCK & VAN.
Neighbourhoods and Climate Change,Environmental Services,Third Party Payments,430100,Rendered by Private Contractors,02/05/2024,4264532-46067502,"7,745.50",BELL TRUCK SALES LTD T/A BELL TRUCK & VAN.
Children and Young Peoples Services,Head of Education and Skills,Fees,901002,Consultants fees 901002,02/05/2024,4264533-44882,"2,485.00",BGP CONSULTING LTD T/A BILLINGHURST GEORGE & PARTNERS.
Adult and Health Services,Public Health CC0450,Supplies and Services,384899,Miscellaneous Expenses,02/05/2024,4264534-CREEPAYMENT2024-25,"3,000.00",BISHOP AUCKLAND COMMUNITY PARTNERSHIP.
Children and Young Peoples Services,Head of Education and Skills,Transfer Payments,510051,School Children,02/05/2024,4264535-AWPU-04-2024-001,"2,211.59",BISHOP CHADWICK CATHOLIC EDUCATION TRUST (NSCET).
Children and Young Peoples Services,Head of Education and Skills,Transfer Payments,510051,School Children,02/05/2024,4264536-AWPU-04-2024-004,"3,292.81",BISHOP HOGARTH CATHOLIC EDUCATION TRUST.
Children and Young Peoples Services,Head of Education and Skills,Transfer Payments,510051,School Children,02/05/2024,4264536-AWPU-04-2024-010,"1,621.83",BISHOP HOGARTH CATHOLIC EDUCATION TRUST.
Children and Young Peoples Services,Head of Education and Skills,Transfer Payments,510051,School Children,02/05/2024,4264536-AWPU-04-2024-013,"5,400.63",BISHOP HOGARTH CATHOLIC EDUCATION TRUST.
Children and Young Peoples Services,Head of Education and Skills,Transfer Payments,510051,School Children,02/05/2024,4264536-AWPU-04-2024-014,"2,727.62",BISHOP HOGARTH CATHOLIC EDUCATION TRUST.
Adult and Health Services,Public Health CC0450,Supplies and Services,384899,Miscellaneous Expenses,02/05/2024,4264537-CREEPAYMENT2024-25MEN,"3,000.00",BLACKHALL COMMUNITY ASSOCIATION.
Adult and Health Services,Public Health CC0450,Supplies and Services,384899,Miscellaneous Expenses,02/05/2024,4264537-CREEPAYMENT2024-25WOMEN,"3,000.00",BLACKHALL COMMUNITY ASSOCIATION.
Adult and Health Services,Public Health CC0450,Supplies and Services,384899,Miscellaneous Expenses,02/05/2024,4264540-CREEPAYMENT2024-25,"3,000.00",BREATHING SPACE ST MICHAELS.
Regeneration Economy and Growth,Culture Sport and Tourism,Premises,145023,Cleaning and Domestic Supplies,02/05/2024,4264541-22SI2298964,"1,837.52",BRENNTAG UK LTD.
Adult and Health Services,Public Health CC0450,Supplies and Services,384899,Miscellaneous Expenses,02/05/2024,4264544-CREEPAYMENT2024-25MEN,"3,000.00",BULLION COMMUNITY RESOURCE CENTRE.
Adult and Health Services,Public Health CC0450,Supplies and Services,384899,Miscellaneous Expenses,02/05/2024,4264544-CREEPAYMENT2024-25WOMEN,"3,000.00",BULLION COMMUNITY RESOURCE CENTRE.
Regeneration Economy and Growth,Planning & Housing,Supplies and Services,338066,Services,02/05/2024,4264549-6017152485,"3,497.00",CAPITA PROPERTY & INFRASTRUCTURE LTD.
Regeneration Economy and Growth,Business Durham,Premises,120021,Energy Costs,02/05/2024,4264568-18325252,"2,114.89",CORONA ENERGY RETAIL 2 LTD.
Regeneration Economy and Growth,Business Durham,Premises,120021,Energy Costs,02/05/2024,4264568-18325258,"2,618.51",CORONA ENERGY RETAIL 2 LTD.
Chief Executives Office,Legal & Democratic Services,Supplies and Services,338101,Services,02/05/2024,4264569-3910023036,"17,393.52",COUNTY DURHAM & DARLINGTON NHS FOUNDATION TRUST (CDDFT).
Adult and Health Services,Public Health CC0450,Supplies and Services,384899,Miscellaneous Expenses,02/05/2024,4264571-CREEPAYMENT2024-25MEN,"3,000.00",CRAGHEAD DEVELOPMENT TRUST LTD.
Adult and Health Services,Public Health CC0450,Supplies and Services,384899,Miscellaneous Expenses,02/05/2024,4264571-CREEPAYMENT2024-25WOMEN,"3,000.00",CRAGHEAD DEVELOPMENT TRUST LTD.
Adult and Health Services,Head of Adults,Supplies and Services,338089,Services,02/05/2024,4264574-01-10255366,950.00,DAC BEACHCROFT LLP.
Children and Young Peoples Services,Head of Childrens Social Care,Supplies and Services,338066,Services,02/05/2024,4264574-01-10263840,"6,790.30",DAC BEACHCROFT LLP.
Adult and Health Services,Public Health CC0450,Supplies and Services,384899,Miscellaneous Expenses,02/05/2024,4264575-CREEPAYMENT2024-25,"3,000.00",DAWDON YOUTH & COMMUNITY CENTRE.
Neighbourhoods and Climate Change,Environmental Services,Transport,230005,Contract Hire,02/05/2024,4264576-0700801,964.22,DAWSONGROUP ENVIRONMENTAL MUNICIAPL CIVIL LTD (EMC).
Neighbourhoods and Climate Change,Environmental Services,Transport,230005,Contract Hire,02/05/2024,4264577-672528,575.00,DAWSONGROUP VANS LTD.
Adult and Health Services,Public Health CC0450,Supplies and Services,384899,Miscellaneous Expenses,02/05/2024,4264580-CREEPAYMENT2024-25MEN,"3,000.00",DEAF HILL WARD REGENERATION PARTNERSHIP.
Adult and Health Services,Public Health CC0450,Supplies and Services,384899,Miscellaneous Expenses,02/05/2024,4264580-CREEPAYMENT2024-25WOMEN,"3,000.00",DEAF HILL WARD REGENERATION PARTNERSHIP.
Adult and Health Services,Public Health CC0450,Supplies and Services,384899,Miscellaneous Expenses,02/05/2024,4264580-CREEPAYMENT2024-25YOUTH,"3,000.00",DEAF HILL WARD REGENERATION PARTNERSHIP.
Neighbourhoods and Climate Change,Environmental Services,Third Party Payments,430100,Rendered by Private Contractors,02/05/2024,4264582-498940,550.00,DENNIS EAGLE LTD.
Neighbourhoods and Climate Change,Environmental Services,Third Party Payments,430100,Rendered by Private Contractors,02/05/2024,4264582-500090,"1,212.50",DENNIS EAGLE LTD.
Chief Executives Office,Legal & Democratic Services,Supplies and Services,338042,Services,02/05/2024,4264583-397814/INVADO269,625.00,DERE STREET BARRISTERS.
Regeneration Economy and Growth,Economic Development CL0150,Supplies and Services,384700,Miscellaneous Expenses,02/05/2024,4264584-RES-04-2024-1101,891.83,DISCOVERING DURHAM CIC.
Regeneration Economy and Growth,Culture Sport and Tourism,Supplies and Services,384199,Miscellaneous Expenses,02/05/2024,4264585-INV-0263,"1,375.00",DOPAMINE STUDIOS LTD.
Children and Young Peoples Services,Head of Education and Skills,Transfer Payments,510051,School Children,02/05/2024,4264591-AWPU-04-2024-019,"1,818.42",EDEN LEARNING TRUST T/A KING JAMES I ACADEMY.
Children and Young Peoples Services,Head of Education and Skills,Transfer Payments,510051,School Children,02/05/2024,4264592-AWPU-04-2024-005,"2,776.77",EDEN LEARNING TRUST T/A WOODHAM ACADEMY.
Children and Young Peoples Services,Head of Education and Skills,Transfer Payments,510051,School Children,02/05/2024,4264592-AWPU-04-2024-007,"1,720.12",EDEN LEARNING TRUST T/A WOODHAM ACADEMY.
Children and Young Peoples Services,Head of Education and Skills,Transfer Payments,510051,School Children,02/05/2024,4264592-AWPU-04-2024-009,"2,334.45",EDEN LEARNING TRUST T/A WOODHAM ACADEMY.
Children and Young Peoples Services,Head of Education and Skills,Transfer Payments,510051,School Children,02/05/2024,4264592-AWPU-04-2024-020,"1,689.43",EDEN LEARNING TRUST T/A WOODHAM ACADEMY.
Dedicated Schools Grant BG0015,DSG High Needs Block,Transfer Payments,510051,School Children,02/05/2024,4264592-AWPU-04-2024-027,"9,741.56",EDEN LEARNING TRUST T/A WOODHAM ACADEMY.
Neighbourhoods and Climate Change,Environmental Services,Transport,230005,Contract Hire,02/05/2024,4264601-13002191260,552.66,ENTERPRISE FLEX-E-RENT T/A BURNT TREE GROUP LTD.
Neighbourhoods and Climate Change,Community Protection,Supplies and Services,338045,Services,02/05/2024,4264608-121124,"3,683.33",FOUNTAIN CHAMBERS.
Neighbourhoods and Climate Change,Community Protection,Supplies and Services,338045,Services,02/05/2024,4264608-121124-010224,700.00,FOUNTAIN CHAMBERS.
Regeneration Economy and Growth,Corporate Property and Land,Supplies and Services,304357,Equipment and Materials,02/05/2024,4264612-DCCQUERY070124,998.40,GAP GROUP LTD.
Regeneration Economy and Growth,Corporate Property and Land,Supplies and Services,304357,Equipment and Materials,02/05/2024,4264613-DCCQUERY291023,"2,762.95",GAP GROUP LTD.
Neighbourhoods and Climate Change,Highways,Supplies and Services,304357,Equipment and Materials,02/05/2024,4264613-DCCQUERY300723,691.40,GAP GROUP LTD.
Regeneration Economy and Growth,Culture Sport and Tourism,Construction work A908,908105,Construction work,02/05/2024,4264614-7426,"3,528.91",GASTRONORTH LTD T/A GASTRO-DIRECT..
Regeneration Economy and Growth,Culture Sport and Tourism,Supplies and Services,384199,Miscellaneous Expenses,02/05/2024,4264615-318,"7,360.00",GAZEBOS FOR HIRE LTD.
Regeneration Economy and Growth,Culture Sport and Tourism,Supplies and Services,384199,Miscellaneous Expenses,02/05/2024,4264615-319,"1,690.00",GAZEBOS FOR HIRE LTD.
Resources BK0010,Digital Services,Supplies and Services,342051,Computers and Communications,02/05/2024,4264622-181394,"237,415.00",GRANICUS-FIRMSTEP LTD.
Adult and Health Services,Public Health CC0450,Supplies and Services,384899,Miscellaneous Expenses,02/05/2024,4264623-CREEPAYMENT2024-25,"3,000.00",GREENFIELD COMMUNITY & ARTS CENTRE.
Resources BK0010,Procurement Sales & Business Services,Supplies and Services,372009,Subscriptions E372,02/05/2024,4264629-INV-46395,"5,717.00",HALO SERVICE SOLUTIONS LTD.
Neighbourhoods and Climate Change,Environmental Services,Third Party Payments,430100,Rendered by Private Contractors,02/05/2024,4264635-1524014734,"1,696.80",HIAB LTD.
Neighbourhoods and Climate Change,Environmental Services,Third Party Payments,430100,Rendered by Private Contractors,02/05/2024,4264635-1524014890,"2,643.11",HIAB LTD.
Neighbourhoods and Climate Change,Environmental Services,Third Party Payments,430100,Rendered by Private Contractors,02/05/2024,4264635-1524015891,591.41,HIAB LTD.
Adult and Health Services,Public Health CC0450,Supplies and Services,384899,Miscellaneous Expenses,02/05/2024,4264637-CREEPAYMENT2024-25MEN,"3,000.00",HOME ON THE RANGE LTD.
Adult and Health Services,Public Health CC0450,Supplies and Services,384899,Miscellaneous Expenses,02/05/2024,4264637-CREEPAYMENT2024-25YOUTH,"3,000.00",HOME ON THE RANGE LTD.
Regeneration Economy and Growth,Corporate Property and Land,Third Party Payments,430100,Rendered by Private Contractors,02/05/2024,4264640-10483,"30,020.00",HOUSE OF PLAY (EUROPE) LTD.
Neighbourhoods and Climate Change,Partnerships & Community Engagement Div.,Supplies and Services,384956,Miscellaneous Expenses,02/05/2024,4264645-105889564-REPROVIDED,"1,292.00",IBM UNITED KINGDOM LTD.*
Regeneration Economy and Growth,Culture Sport and Tourism,Premises,120021,Energy Costs,02/05/2024,4264647-18820,"7,314.43",IMPALA ESTATES LTD.
Adult and Health Services,Public Health CC0450,Third Party Payments,460803,Contract Payments,02/05/2024,4264648-1002,"16,000.00",INVESTING IN CHILDREN CIC.
Neighbourhoods and Climate Change,Highways,Third Party Payments,430127,Rendered by Private Contractors,02/05/2024,4264651-0044/2024,630.00,J & JG GILL & SONS LTD.
Neighbourhoods and Climate Change,Highways,Supplies and Services,304358,Equipment and Materials,02/05/2024,4264652-5307179,"1,286.50",JA GILSON (AGRICULTURAL CONTRACTORS) LTD.
Neighbourhoods and Climate Change,Highways,Supplies and Services,304358,Equipment and Materials,02/05/2024,4264652-5307183,"1,582.50",JA GILSON (AGRICULTURAL CONTRACTORS) LTD.
Adult and Health Services,Public Health CC0450,Supplies and Services,384899,Miscellaneous Expenses,02/05/2024,4264653-CREEPAYMENT2024-25,"3,000.00",JACK DRUM ARTS LTD.
Neighbourhoods and Climate Change,Highways,Supplies and Services,338029,Services,02/05/2024,4264654-NEPO0003-002,"7,543.72",JACOBS UK LTD.
Regeneration Economy and Growth,Culture Sport and Tourism,Supplies and Services,304259,Equipment and Materials,02/05/2024,4264665-212385,"1,139.20",JP LENNARD LTD.
Regeneration Economy and Growth,Corporate Property and Land,Supplies and Services,304221,Equipment and Materials,02/05/2024,4264668-0108/00039158,"2,487.26",JT DOVE LTD.
Neighbourhoods and Climate Change,Highways,Stock A926,926900,Stock in hand-Inventory system,02/05/2024,4264668-0113/00059151,616.00,JT DOVE LTD.
Neighbourhoods and Climate Change,Environmental Services,Supplies and Services,338099,Services,02/05/2024,4264669-INV-5498,750.00,JUBILEE SEEDS & TURF LTD.
Adult and Health Services,Public Health CC0450,Supplies and Services,384899,Miscellaneous Expenses,02/05/2024,4264671-CREEPAYMENT2024-25APWOMEN,"3,000.00",JUST FOR WOMEN CENTRE.
Adult and Health Services,Public Health CC0450,Supplies and Services,384899,Miscellaneous Expenses,02/05/2024,4264671-CREEPAYMENT2024-25CONSETTWOMEN,"3,000.00",JUST FOR WOMEN CENTRE.
Adult and Health Services,Public Health CC0450,Supplies and Services,384899,Miscellaneous Expenses,02/05/2024,4264671-CREEPAYMENT2024-25STANLEYMEN,"3,000.00",JUST FOR WOMEN CENTRE.
Adult and Health Services,Public Health CC0450,Supplies and Services,384899,Miscellaneous Expenses,02/05/2024,4264671-CREEPAYMENT2024-25STANLEYWOMEN,"3,000.00",JUST FOR WOMEN CENTRE.
Regeneration Economy and Growth,Planning & Housing,Supplies and Services,364501,Grants to Voluntary Organisations,02/05/2024,4264675-3279088,903.26,KARBON HOMES LTD FORMERLY CESTRIA HOUSING ASSOCIATION LTD.
Neighbourhoods and Climate Change,Environmental Services,Transport,230005,Contract Hire,02/05/2024,4264679-1603298,"2,269.00",LEEDS COMMERCIAL LTD.
Neighbourhoods and Climate Change,Environmental Services,Transport,230005,Contract Hire,02/05/2024,4264679-1604602,"2,088.00",LEEDS COMMERCIAL LTD.
Regeneration Economy and Growth,Corporate Property and Land,Supplies and Services,304221,Equipment and Materials,02/05/2024,4264683-00039273,"1,302.50",LESTER CONTROL SYSTEMS LTD.
Children and Young Peoples Services,Head of Childrens Social Care,Supplies and Services,338044,Services,02/05/2024,4264684-317518,"1,627.90",LEXTOX.
Children and Young Peoples Services,Head of Childrens Social Care,Supplies and Services,338044,Services,02/05/2024,4264684-317699,"1,132.40",LEXTOX.
Children and Young Peoples Services,Head of Childrens Social Care,Supplies and Services,338044,Services,02/05/2024,4264684-319941,"1,058.00",LEXTOX.
Children and Young Peoples Services,Head of Childrens Social Care,Supplies and Services,338044,Services,02/05/2024,4264684-320165,569.30,LEXTOX.
Children and Young Peoples Services,Head of Childrens Social Care,Supplies and Services,338044,Services,02/05/2024,4264684-320367,"1,802.65",LEXTOX.
Dedicated Schools Grant BG0015,DSG Schools Block,Supplies and Services,384199,Miscellaneous Expenses,02/05/2024,4264688-2446,500.00,LK HEALTH & WELLBEING.
Adult and Health Services,Head of Adults,Supplies and Services,338365,Services,02/05/2024,4264689-INV-44919,"2,880.00",LOCKWISE LTD.
Neighbourhoods and Climate Change,Highways,Supplies and Services,304358,Equipment and Materials,02/05/2024,4264693-MS5046,"1,545.75",M SPENCE SURFACING LTD.
Neighbourhoods and Climate Change,Highways,Supplies and Services,304358,Equipment and Materials,02/05/2024,4264693-MS5047,"1,579.50",M SPENCE SURFACING LTD.
Children and Young Peoples Services,Head of Education and Skills,Transport,230007,Contract Hire,02/05/2024,4264696-6546,"2,170.40",MAKEPEACE MOTORS.
Adult and Health Services,Public Health CC0450,Supplies and Services,336005,Advertising E336,02/05/2024,4264701-INV-3406,"1,950.00",MEDIA PARTNERSHIP LTD.
Neighbourhoods and Climate Change,Environmental Services,Transport,230005,Contract Hire,02/05/2024,4264705-435199,"2,036.14",MINSTER SELF DRIVE.
Neighbourhoods and Climate Change,Environmental Services,Third Party Payments,430100,Rendered by Private Contractors,02/05/2024,4264708-9983290131,"2,033.59",MITCHELL POWERSYSTEMS.
Chief Executives Office,Legal & Democratic Services,Supplies and Services,352001,Conference Expenses,02/05/2024,4264718-2024/36,520.00,NATIONAL ASSOCIATION OF COUNCILLORS.*
Neighbourhoods and Climate Change,Environmental Services,Transport,230005,Contract Hire,02/05/2024,4264720-175977,"1,612.09",ND BROWN LTD.
Regeneration Economy and Growth,Corporate Property and Land,Third Party Payments,430100,Rendered by Private Contractors,02/05/2024,4264721-48923,"14,697.00",NE & C WINDOWS & DOORS LTD.
Children and Young Peoples Services,Head of Education and Skills,Transfer Payments,510051,School Children,02/05/2024,4264722-AWPU-04-2024-002,"1,720.12",NEW COLLEGE DURHAM ACADEMIES TRUST (NCDAT).
Dedicated Schools Grant BG0015,DSG High Needs Block,Third Party Payments,410037,Rendered by Other Local Authorities,02/05/2024,4264723-1800012389205,"13,199.38",NEWCASTLE UPON TYNE CITY COUNCIL.
Neighbourhoods and Climate Change,Highways,Supplies and Services,336005,Advertising E336,02/05/2024,4264724-44909886,886.80,NEWSQUEST (YORKSHIRE & NORTH EAST) LTD.
Neighbourhoods and Climate Change,Highways,Construction work A908,908109,Capital - Resurfacing,02/05/2024,4264724-44909942,674.52,NEWSQUEST (YORKSHIRE & NORTH EAST) LTD.
Neighbourhoods and Climate Change,Highways,Construction work A908,908109,Capital - Resurfacing,02/05/2024,4264724-44910066,674.52,NEWSQUEST (YORKSHIRE & NORTH EAST) LTD.
Neighbourhoods and Climate Change,Highways,Supplies and Services,336005,Advertising E336,02/05/2024,4264724-44910248,"1,169.85",NEWSQUEST (YORKSHIRE & NORTH EAST) LTD.
Neighbourhoods and Climate Change,Highways,Supplies and Services,336005,Advertising E336,02/05/2024,4264724-44910399,816.04,NEWSQUEST (YORKSHIRE & NORTH EAST) LTD.
Neighbourhoods and Climate Change,Highways,Fees,901004,Capital - Detailed Design,02/05/2024,4264724-44910476,674.52,NEWSQUEST (YORKSHIRE & NORTH EAST) LTD.
Neighbourhoods and Climate Change,Highways,Supplies and Services,336005,Advertising E336,02/05/2024,4264724-44910478,816.04,NEWSQUEST (YORKSHIRE & NORTH EAST) LTD.
Neighbourhoods and Climate Change,Highways,Fees,901004,Capital - Detailed Design,02/05/2024,4264724-44910569,674.52,NEWSQUEST (YORKSHIRE & NORTH EAST) LTD.
Neighbourhoods and Climate Change,Highways,Supplies and Services,336005,Advertising E336,02/05/2024,4264724-44910582,674.52,NEWSQUEST (YORKSHIRE & NORTH EAST) LTD.
Neighbourhoods and Climate Change,Environmental Services,Transport,210057,Repair and Maintenance of Vehicles,02/05/2024,4264730-21925761,"1,129.68",NORTH EAST TRUCK & VAN LTD.
Neighbourhoods and Climate Change,Environmental Services,Transport,210057,Repair and Maintenance of Vehicles,02/05/2024,4264730-21925824,865.00,NORTH EAST TRUCK & VAN LTD.
Neighbourhoods and Climate Change,Environmental Services,Third Party Payments,430100,Rendered by Private Contractors,02/05/2024,4264730-21926070,"3,955.76",NORTH EAST TRUCK & VAN LTD.
Neighbourhoods and Climate Change,Environmental Services,Third Party Payments,430100,Rendered by Private Contractors,02/05/2024,4264730-21926267,741.00,NORTH EAST TRUCK & VAN LTD.
Neighbourhoods and Climate Change,Environmental Services,Supplies and Services,384199,Miscellaneous Expenses,02/05/2024,4264731-915657627,"7,612.00",NORTHUMBRIAN WATER LTD.
Regeneration Economy and Growth,Corporate Property and Land,Third Party Payments,430100,Rendered by Private Contractors,02/05/2024,4264739-12669-33,"1,166.60",OPUS BUILDING SERVICES LTD.
Regeneration Economy and Growth,Corporate Property and Land,Third Party Payments,430100,Rendered by Private Contractors,02/05/2024,4264739-12669-34,"1,182.37",OPUS BUILDING SERVICES LTD.
Regeneration Economy and Growth,Corporate Property and Land,Third Party Payments,430100,Rendered by Private Contractors,02/05/2024,4264739-12669-35,"4,519.96",OPUS BUILDING SERVICES LTD.
Regeneration Economy and Growth,Corporate Property and Land,Third Party Payments,430100,Rendered by Private Contractors,02/05/2024,4264739-12669-36,"3,653.46",OPUS BUILDING SERVICES LTD.
Regeneration Economy and Growth,Corporate Property and Land,Third Party Payments,430100,Rendered by Private Contractors,02/05/2024,4264739-12669-37,"1,166.62",OPUS BUILDING SERVICES LTD.
Regeneration Economy and Growth,Corporate Property and Land,Third Party Payments,430100,Rendered by Private Contractors,02/05/2024,4264739-12669-38,"1,234.12",OPUS BUILDING SERVICES LTD.
Regeneration Economy and Growth,Corporate Property and Land,Third Party Payments,430100,Rendered by Private Contractors,02/05/2024,4264739-12669-39,"1,180.12",OPUS BUILDING SERVICES LTD.
Regeneration Economy and Growth,Corporate Property and Land,Third Party Payments,430100,Rendered by Private Contractors,02/05/2024,4264739-12669-40,"1,234.12",OPUS BUILDING SERVICES LTD.
Regeneration Economy and Growth,Corporate Property and Land,Third Party Payments,430100,Rendered by Private Contractors,02/05/2024,4264739-12669-41,"1,368.22",OPUS BUILDING SERVICES LTD.
Regeneration Economy and Growth,Corporate Property and Land,Third Party Payments,430100,Rendered by Private Contractors,02/05/2024,4264739-12669-42,"1,212.52",OPUS BUILDING SERVICES LTD.
Regeneration Economy and Growth,Corporate Property and Land,Third Party Payments,430100,Rendered by Private Contractors,02/05/2024,4264741-G0780147,655.00,ORBIS PROTECT LTD.
Adult and Health Services,Public Health CC0450,Supplies and Services,384899,Miscellaneous Expenses,02/05/2024,4264743-CREEPAYMENT2024-25,"3,000.00",PACT HOUSE STANLEY.
Regeneration Economy and Growth,Corporate Property and Land,Third Party Payments,430100,Rendered by Private Contractors,02/05/2024,4264744-3875,900.00,PARAMOUNT CEILINGS & PARTITIONS LTD.
Neighbourhoods and Climate Change,Highways,Stock A926,926900,Stock in hand-Inventory system,02/05/2024,4264748-XL315968,520.00,PARK ELECTRICAL DISTRIBUTORS LTD.
Children and Young Peoples Services,Head of Education and Skills,Supplies and Services,312009,Newspapers books and periodicals E312,02/05/2024,4264753-2063356,595.40,PETERS LTD.
Adult and Health Services,Commissioning inc Supporting People,Third Party Payments,479102,Purchase of Care,02/05/2024,4264756-18777/18,"46,844.50",PIONEERING CARE PARTNERSHIP.
Neighbourhoods and Climate Change,Highways,Third Party Payments,410037,Rendered by Other Local Authorities,02/05/2024,4264761-INV-30151,"4,900.00",POWER DATA ASSOCIATES LTD.
Neighbourhoods and Climate Change,Highways,Third Party Payments,430100,Rendered by Private Contractors,02/05/2024,4264765-1866,"3,922.39",PRM FABRICATIONS LTD.
Neighbourhoods and Climate Change,Highways,Third Party Payments,430101,Rendered by Private Contractors,02/05/2024,4264768-15642,"5,518.90",QUANTUM POWER CONNECTIONS LTD.
Neighbourhoods and Climate Change,Highways,Third Party Payments,430100,Rendered by Private Contractors,02/05/2024,4264768-15665,"13,080.46",QUANTUM POWER CONNECTIONS LTD.
Neighbourhoods and Climate Change,Highways,Third Party Payments,430100,Rendered by Private Contractors,02/05/2024,4264768-15676,533.76,QUANTUM POWER CONNECTIONS LTD.
Neighbourhoods and Climate Change,Highways,Third Party Payments,430100,Rendered by Private Contractors,02/05/2024,4264768-15681,753.76,QUANTUM POWER CONNECTIONS LTD.
Neighbourhoods and Climate Change,Highways,Third Party Payments,430100,Rendered by Private Contractors,02/05/2024,4264768-15700,"5,794.17",QUANTUM POWER CONNECTIONS LTD.
Neighbourhoods and Climate Change,Highways,Third Party Payments,430100,Rendered by Private Contractors,02/05/2024,4264768-15701,"1,299.44",QUANTUM POWER CONNECTIONS LTD.
Neighbourhoods and Climate Change,Highways,Third Party Payments,430100,Rendered by Private Contractors,02/05/2024,4264768-15703,522.36,QUANTUM POWER CONNECTIONS LTD.
Neighbourhoods and Climate Change,Environmental Services,Transport,210057,Repair and Maintenance of Vehicles,02/05/2024,4264769-1601182,510.76,QUICKCO.
Chief Executives Office,Communications Management,Supplies and Services,332029,Printing Stationery and Gen Off Exps,02/05/2024,4264771-21715,600.00,RADECAL SIGNS GRAPHICS & ADVERTISING.
Adult and Health Services,Public Health CC0450,Supplies and Services,384899,Miscellaneous Expenses,02/05/2024,4264777-CREEPAYMENT2024-25MEN,"3,000.00",RT COMMUNITY PROJECTS LTD T/A RT PROJECTS.
Adult and Health Services,Public Health CC0450,Supplies and Services,384899,Miscellaneous Expenses,02/05/2024,4264777-CREEPAYMENT2024-25WOMEN,"3,000.00",RT COMMUNITY PROJECTS LTD T/A RT PROJECTS.
Neighbourhoods and Climate Change,Highways,Supplies and Services,304358,Equipment and Materials,02/05/2024,4264779-3997,"1,190.00",S & R LANDSCAPES.
Neighbourhoods and Climate Change,Highways,Supplies and Services,304358,Equipment and Materials,02/05/2024,4264779-3999,"1,683.10",S & R LANDSCAPES.
Neighbourhoods and Climate Change,Highways,Supplies and Services,304358,Equipment and Materials,02/05/2024,4264779-4009,"1,120.00",S & R LANDSCAPES.
Neighbourhoods and Climate Change,Highways,Supplies and Services,304358,Equipment and Materials,02/05/2024,4264779-4010,"1,190.00",S & R LANDSCAPES.
Neighbourhoods and Climate Change,Highways,Supplies and Services,304358,Equipment and Materials,02/05/2024,4264779-4051,896.00,S & R LANDSCAPES.
Neighbourhoods and Climate Change,Highways,Supplies and Services,304358,Equipment and Materials,02/05/2024,4264779-4052,"1,263.10",S & R LANDSCAPES.
Neighbourhoods and Climate Change,Highways,Supplies and Services,304358,Equipment and Materials,02/05/2024,4264779-4053,680.00,S & R LANDSCAPES.
Neighbourhoods and Climate Change,Highways,Supplies and Services,304358,Equipment and Materials,02/05/2024,4264779-4054,"1,263.10",S & R LANDSCAPES.
Neighbourhoods and Climate Change,Highways,Supplies and Services,304358,Equipment and Materials,02/05/2024,4264779-4055,850.00,S & R LANDSCAPES.
Neighbourhoods and Climate Change,Highways,Supplies and Services,304358,Equipment and Materials,02/05/2024,4264779-4056,"1,558.75",S & R LANDSCAPES.
Neighbourhoods and Climate Change,Highways,Supplies and Services,304358,Equipment and Materials,02/05/2024,4264779-4057,880.00,S & R LANDSCAPES.
Neighbourhoods and Climate Change,Highways,Supplies and Services,304358,Equipment and Materials,02/05/2024,4264779-4059,646.25,S & R LANDSCAPES.
Neighbourhoods and Climate Change,Highways,Supplies and Services,304358,Equipment and Materials,02/05/2024,4264779-4061,"1,100.60",S & R LANDSCAPES.
Neighbourhoods and Climate Change,Highways,Supplies and Services,304358,Equipment and Materials,02/05/2024,4264779-4062,"1,100.60",S & R LANDSCAPES.
Neighbourhoods and Climate Change,Partnerships & Community Engagement Div.,Supplies and Services,364501,Grants to Voluntary Organisations,02/05/2024,4264783-290424-4KINNOCKCL,500.00,SC CARPETS.
Adult and Health Services,Public Health CC0450,Supplies and Services,384899,Miscellaneous Expenses,02/05/2024,4264787-CREEPAYMENT2024-25,"3,000.00",SEAHAM EASTLEA & DISTRICT COMMUNITY ASSOCIATION.
Children and Young Peoples Services,Head of Early Help Inclusion & Vulnerable Children.,Third Party Payments,410037,Rendered by Other Local Authorities,02/05/2024,4264789-100013,"3,979.40",SHEENA MILES CARE SERVICES LTD.
Regeneration Economy and Growth,Corporate Property and Land,Supplies and Services,304221,Equipment and Materials,02/05/2024,4264791-0000170397,"1,853.00",SHORTS INDUSTRIES LTD T/A SHORTS LIFTS.
Adult and Health Services,Public Health CC0450,Supplies and Services,384899,Miscellaneous Expenses,02/05/2024,4264792-CREEPAYMENT2024-25MEN,"3,000.00",SHOTTON PARTNERSHIP 2000 LTD.
Adult and Health Services,Public Health CC0450,Supplies and Services,384899,Miscellaneous Expenses,02/05/2024,4264792-CREEPAYMENT2024-25WOMEN,"3,000.00",SHOTTON PARTNERSHIP 2000 LTD.
Resources BK0010,Digital Services,Construction work A908,908105,Construction work,02/05/2024,4264795-INVUK1267897,"1,051.20",SOFTCAT PLC.
Adult and Health Services,Public Health CC0450,Supplies and Services,384899,Miscellaneous Expenses,02/05/2024,4264800-CREEPAYMENT2024-25,"3,000.00",SPENNYMOOR YOUTH & COMMUNITY ASSOCIATION.
Children and Young Peoples Services,Head of Education and Skills,Transfer Payments,510051,School Children,02/05/2024,4264801-AWPU-04-2024-021,"1,597.26",STAINDROP ACADEMY.
Chief Executives Office,Legal & Democratic Services,Supplies and Services,338025,Services,02/05/2024,4264807-13693,"4,710.00",STUART WRIGHT FUNERAL SERVICE LTD.
Regeneration Economy and Growth,Corporate Property and Land,Supplies and Services,304221,Equipment and Materials,02/05/2024,4264811-1176282,"3,630.99",T CROSSLING & CO LTD.
Regeneration Economy and Growth,Corporate Property and Land,Supplies and Services,304221,Equipment and Materials,02/05/2024,4264811-1176284,"1,324.59",T CROSSLING & CO LTD.
Neighbourhoods and Climate Change,Environmental Services,Third Party Payments,430100,Rendered by Private Contractors,02/05/2024,4264812-118313,"1,334.58",TAYLOR & BRAITHWAITE LTD.
Resources BK0010,Procurement Sales & Business Services,Supplies and Services,342053,Computers and Communications,02/05/2024,4264816-1045678,"36,112.62",THE COPYRIGHT LICENSING AGENCY LTD.
Children and Young Peoples Services,Head of Childrens Social Care,Supplies and Services,364359,Grants to Voluntary Organisations,02/05/2024,4264821-INV-4791,599.50,TILLY MINTS CHERUBS DAY NURSERY LTD.
Neighbourhoods and Climate Change,Highways,Supplies and Services,304221,Equipment and Materials,02/05/2024,4264824-122662,"1,595.00",TOFCO LTD.
Neighbourhoods and Climate Change,Highways,Supplies and Services,304221,Equipment and Materials,02/05/2024,4264824-122663,"1,686.00",TOFCO LTD.
Regeneration Economy and Growth,Planning & Housing,Premises,150005,Apportioned Exps of Operational Blds,02/05/2024,4264825-INV-2024-03-27238,837.88,TOWN & CITY MANAGEMENT LTD.
Neighbourhoods and Climate Change,Environmental Services,Transport,230720,Contract Hire,02/05/2024,4264826-MI/0049652/01,657.12,TP LEASING LTD.*
Chief Executives Office,Legal & Democratic Services,Supplies and Services,338042,Services,02/05/2024,4264829-304175/INVJCT257,575.00,TRINITY CHAMBERS.
Chief Executives Office,Legal & Democratic Services,Supplies and Services,338042,Services,02/05/2024,4264829-305501/INVJCT258,665.00,TRINITY CHAMBERS.
Chief Executives Office,Legal & Democratic Services,Supplies and Services,338042,Services,02/05/2024,4264829-309138/INVTOP235,"1,030.00",TRINITY CHAMBERS.
Chief Executives Office,Legal & Democratic Services,Supplies and Services,338042,Services,02/05/2024,4264829-311609/INVTOP236,"4,840.00",TRINITY CHAMBERS.
Chief Executives Office,Legal & Democratic Services,Supplies and Services,338042,Services,02/05/2024,4264829-313429/INVJCT260,665.00,TRINITY CHAMBERS.
Chief Executives Office,Legal & Democratic Services,Supplies and Services,338042,Services,02/05/2024,4264829-313896/INVHPR252,665.00,TRINITY CHAMBERS.
Neighbourhoods and Climate Change,Highways,Supplies and Services,304221,Equipment and Materials,02/05/2024,4264834-258911,"1,040.70",TYNEDALE ROADSTONE LTD.
Neighbourhoods and Climate Change,Highways,Supplies and Services,304221,Equipment and Materials,02/05/2024,4264834-258913,"1,050.00",TYNEDALE ROADSTONE LTD.
Regeneration Economy and Growth,Culture Sport and Tourism,Supplies and Services,338047,Services,02/05/2024,4264835-22314627073-1,"1,968.54",UNIVERSAL PICTURES INTERNATIONAL UK & EIRE LTD.
Adult and Health Services,Public Health CC0450,Supplies and Services,384899,Miscellaneous Expenses,02/05/2024,4264836-CREEPAYMENT2024-25BCMEN,"3,000.00",UPPER TEESDALE AGRICULTURAL SUPPORT SERVICES LTD (UTASS).
Adult and Health Services,Public Health CC0450,Supplies and Services,384899,Miscellaneous Expenses,02/05/2024,4264836-CREEPAYMENT2024-25MITMEN,"3,000.00",UPPER TEESDALE AGRICULTURAL SUPPORT SERVICES LTD (UTASS).
Adult and Health Services,Public Health CC0450,Supplies and Services,384899,Miscellaneous Expenses,02/05/2024,4264836-CREEPAYMENT2024-25STJMEN,"3,000.00",UPPER TEESDALE AGRICULTURAL SUPPORT SERVICES LTD (UTASS).
Neighbourhoods and Climate Change,Environmental Services,Supplies and Services,304221,Equipment and Materials,02/05/2024,4264839-2024R0303-002417,"7,059.15",VOLMARY LTD.
Adult and Health Services,Public Health CC0450,Supplies and Services,384899,Miscellaneous Expenses,02/05/2024,4264840-CREEPAYMENT2024-25MEN,"3,000.00",WADDINGTON STREET CENTRE LTD.
Adult and Health Services,Public Health CC0450,Supplies and Services,384899,Miscellaneous Expenses,02/05/2024,4264840-CREEPAYMENT2024-25WOMEN,"3,000.00",WADDINGTON STREET CENTRE LTD.
Neighbourhoods and Climate Change,Highways,Supplies and Services,304221,Equipment and Materials,02/05/2024,4264842-30084,"4,514.09",WARD TIMBER LTD.
Regeneration Economy and Growth,Culture Sport and Tourism,Supplies and Services,338047,Services,02/05/2024,4264843-23219550,545.63,WARNER BROS ENTERTAINMENT UK LTD.
Children and Young Peoples Services,Head of Education and Skills,Transport,230005,Contract Hire,02/05/2024,4264845-19789,"1,109.00",WEARDALE MOTOR SERVICES LTD.
Adult and Health Services,Public Health CC0450,Supplies and Services,384899,Miscellaneous Expenses,02/05/2024,4264847-CREEPAYMENT2024-25MEN,"3,000.00",WINGATE & STATION TOWN FAMILY CENTRE.
Adult and Health Services,Public Health CC0450,Supplies and Services,384899,Miscellaneous Expenses,02/05/2024,4264847-CREEPAYMENT2024-25WOMEN,"3,000.00",WINGATE & STATION TOWN FAMILY CENTRE.
Neighbourhoods and Climate Change,Environmental Services,Third Party Payments,430100,Rendered by Private Contractors,02/05/2024,4264848-990598118,"1,476.26",WIRTGEN LTD.
Children and Young Peoples Services,Head of Education and Skills,Transfer Payments,510051,School Children,02/05/2024,4264849-AWPU-04-2024-006,"2,520.29",WOLSINGHAM SCHOOL & COMMUNITY COLLEGE.
Children and Young Peoples Services,Head of Education and Skills,Transfer Payments,510051,School Children,02/05/2024,4264849-AWPU-04-2024-016,"2,432.74",WOLSINGHAM SCHOOL & COMMUNITY COLLEGE.
Children and Young Peoples Services,Head of Education and Skills,Transfer Payments,510051,School Children,02/05/2024,4264849-AWPU-04-2024-018,"2,236.16",WOLSINGHAM SCHOOL & COMMUNITY COLLEGE.
Neighbourhoods and Climate Change,Community Protection,Third Party Payments,430100,Rendered by Private Contractors,02/05/2024,4264852-2327,550.00,YOU`RE SECURE NORTHEAST.
Neighbourhoods and Climate Change,Environmental Services,Supplies and Services,338099,Services,02/05/2024,4264699-1489,990.00,REDACTED - PAYMENT TO INDIVIDUAL
Regeneration Economy and Growth,Culture Sport and Tourism,Construction work A908,908105,Construction work,02/05/2024,4264699-1490,"26,940.00",REDACTED - PAYMENT TO INDIVIDUAL
Neighbourhoods and Climate Change,Environmental Services,Supplies and Services,384700,Miscellaneous Expenses,02/05/2024,4264658-RES-04-2024-158,"12,720.99",REDACTED - PAYMENT TO INDIVIDUAL
Regeneration Economy and Growth,Planning & Housing,Supplies and Services,352001,Conference Expenses,03/05/2024,4264970-1537,"1,800.00",ILM ASSOCIATES LTD.
Children and Young Peoples Services,Head of Early Help Inclusion & Vulnerable Children.,Premises,106080,Centrally Controlled Rep and Maint,03/05/2024,4264855-0000015083,675.00,ACCORDIAL LTD.
Children and Young Peoples Services,Head of Early Help Inclusion & Vulnerable Children.,Supplies and Services,304259,Equipment and Materials,03/05/2024,4264867-106250,"1,230.00",ALLWAG PROMOTIONS LTD.
Children and Young Peoples Services,Head of Early Help Inclusion & Vulnerable Children.,Supplies and Services,304403,Equipment and Materials,03/05/2024,4264868-44-32890,"4,124.00",AMS INTERNATIONAL.
Regeneration Economy and Growth,Corporate Property and Land,Construction work A908,908105,Construction work,03/05/2024,4264875-40325,"86,130.00",ASHCOURT DEMOLITION LTD.
Neighbourhoods and Climate Change,Highways,Supplies and Services,338066,Services,03/05/2024,4264877-24011369,"8,299.67",ATKINSREALIS PPS LTD.
Neighbourhoods and Climate Change,Highways,Third Party Payments,430100,Rendered by Private Contractors,03/05/2024,4264878-24013385,"25,080.00",ATKINSREALIS UK LTD.
Neighbourhoods and Climate Change,Environmental Services,Premises,145023,Cleaning and Domestic Supplies,03/05/2024,4264879-INV162970,697.46,AZTEC CHEMICALS LTD.
Neighbourhoods and Climate Change,Environmental Services,Supplies and Services,304221,Equipment and Materials,03/05/2024,4264881-99929072,715.83,BALL COLEGRAVE LTD.
Neighbourhoods and Climate Change,Highways,Supplies and Services,338027,Services,03/05/2024,4264882-400180160,"35,335.40",BAM NUTTALL LTD.
Adult and Health Services,Central/Other,Supplies and Services,338099,Services,03/05/2024,4264884-BFBCINV-002659,675.00,BE FOUND BE CHOSEN.
Regeneration Economy and Growth,Culture Sport and Tourism,Supplies and Services,384199,Miscellaneous Expenses,03/05/2024,4264885-7174,562.50,BELL & BULLOCK CIRCUS THEATRE.
Neighbourhoods and Climate Change,Environmental Services,Stock A926,926004,Stock,03/05/2024,4264886-45079660,893.91,BELL TRUCK SALES LTD T/A BELL TRUCK & VAN.
Regeneration Economy and Growth,Culture Sport and Tourism,Supplies and Services,324117,Provisions E324,03/05/2024,4264889-27115384,535.56,BIDFOOD.
Regeneration Economy and Growth,Culture Sport and Tourism,Supplies and Services,372009,Subscriptions E372,03/05/2024,4264891-INV-14317,700.00,BRAMBLE HUB LTD.
Adult and Health Services,Head of Adults,Supplies and Services,338366,Services,03/05/2024,4264896-94935,"1,642.95",CARE ABILITY HEALTHCARE LTD.
Adult and Health Services,Head of Adults,Supplies and Services,338366,Services,03/05/2024,4264896-94972,729.97,CARE ABILITY HEALTHCARE LTD.
Adult and Health Services,Head of Adults,Supplies and Services,338366,Services,03/05/2024,4264896-94973,715.00,CARE ABILITY HEALTHCARE LTD.
Adult and Health Services,Head of Adults,Supplies and Services,338366,Services,03/05/2024,4264896-94974,"1,717.45",CARE ABILITY HEALTHCARE LTD.
Adult and Health Services,Head of Adults,Supplies and Services,338366,Services,03/05/2024,4264896-94975,502.20,CARE ABILITY HEALTHCARE LTD.
Neighbourhoods and Climate Change,Environmental Services,Supplies and Services,304259,Equipment and Materials,03/05/2024,4264897-441001,"1,250.00",CARRS BILLINGTON AGRICULTURE.
Neighbourhoods and Climate Change,Environmental Services,Supplies and Services,304259,Equipment and Materials,03/05/2024,4264898-441059,"1,160.00",CARRS BILLINGTON AGRICULTURE.
Regeneration Economy and Growth,Corporate Property and Land,Premises,108099,Service Repairs and Maintenance,03/05/2024,4264899-12675,678.99,CATHEDRAL LOCK & SAFE SERVICES LTD.
Regeneration Economy and Growth,Culture Sport and Tourism,Premises,106082,Centrally Controlled Rep and Maint,03/05/2024,4264900-24501144,"1,014.15",CENTRICA BUSINESS SOLUTIONS UK LTD.*
Children and Young Peoples Services,Head of Education and Skills,Transport,230006,Contract Hire,03/05/2024,4264901-2696,"1,470.22",CHEVRON TAXIS LTD.
Neighbourhoods and Climate Change,Highways,Supplies and Services,304221,Equipment and Materials,03/05/2024,4264904-0000592942,"2,608.00",CID TRADING LTD T/A CID GROUP.
Adult and Health Services,Head of Adults,Supplies and Services,304259,Equipment and Materials,03/05/2024,4264905-CN30354007,845.52,CITRON HYGIENE UK LTD.
Adult and Health Services,Commissioning inc Supporting People,Third Party Payments,479111,Purchase of Care,03/05/2024,4264909-13413,"96,603.06",CLOVERLEAF ADVOCACY 2000 LTD.
Children and Young Peoples Services,Head of Education and Skills,Transport,230003,Contract Hire,03/05/2024,4264910-C/12043,"2,184.16",COCHRANES T/A KELVIN TRAVEL.
Children and Young Peoples Services,Head of Education and Skills,Transport,230007,Contract Hire,03/05/2024,4264910-C/12070,"5,600.00",COCHRANES T/A KELVIN TRAVEL.
Children and Young Peoples Services,Head of Education and Skills,Transport,230003,Contract Hire,03/05/2024,4264910-C/12073,"2,730.20",COCHRANES T/A KELVIN TRAVEL.
Children and Young Peoples Services,Head of Education and Skills,Transport,230003,Contract Hire,03/05/2024,4264910-C/12074,"10,810.00",COCHRANES T/A KELVIN TRAVEL.
Neighbourhoods and Climate Change,Highways,Third Party Payments,460224,Contract Payments,03/05/2024,4264911-INVHEL36054,819.97,COLENA LTD T/A HELIGUY.
Children and Young Peoples Services,Head of Education and Skills,Transport,230007,Contract Hire,03/05/2024,4264915-13-MAR24,"2,860.00",CONSETT CONTRACTS LTD.
Children and Young Peoples Services,Head of Education and Skills,Transport,230008,Contract Hire,03/05/2024,4264919-117353,"2,867.00",CROFT BUSINESS SERVICES LTD T/A CROFT TRAVEL.
Neighbourhoods and Climate Change,Partnerships & Community Engagement Div.,Supplies and Services,384086,Miscellaneous Expenses,03/05/2024,4264920-VOUCHERREEA04-24,600.00,CROOK TOWN AFC.
Adult and Health Services,Public Health CC0450,Supplies and Services,342051,Computers and Communications,03/05/2024,4264923-8221,"39,287.00",CYBER MEDIA SOLUTIONS LTD.
Neighbourhoods and Climate Change,Environmental Services,Stock A926,926004,Stock,03/05/2024,4264929-96456770,"1,571.96",DENNIS EAGLE LTD T/A TERBERG MATEC (UK) LTD.
Neighbourhoods and Climate Change,Environmental Services,Stock A926,926004,Stock,03/05/2024,4264929-96456860,"4,162.00",DENNIS EAGLE LTD T/A TERBERG MATEC (UK) LTD.
Chief Executives Office,Legal & Democratic Services,Supplies and Services,338042,Services,03/05/2024,4264930-397625/INVSU604,775.00,DERE STREET BARRISTERS.
Regeneration Economy and Growth,Planning & Housing,Supplies and Services,338094,Services,03/05/2024,4264936-3353,"1,002.91",DURHAM CRICKET EVENTS LTD.
Chief Executives Office,Legal & Democratic Services,Supplies and Services,338101,Services,03/05/2024,4264950-PNC00762024JC,"1,105.00",FORENSIC PATHOLOGY LTD.
Resources BK0010,Digital Services,Supplies and Services,342051,Computers and Communications,03/05/2024,4264958-21620,"2,460.00",GOSS INTERACTIVE LTD.
Resources BK0010,Digital Services,Supplies and Services,342051,Computers and Communications,03/05/2024,4264958-21649,"21,000.00",GOSS INTERACTIVE LTD.
Regeneration Economy and Growth,Corporate Property and Land,Premises,145023,Cleaning and Domestic Supplies,03/05/2024,4264959-06/266224,"1,120.12",GREENHAM TRADING LTD.
Regeneration Economy and Growth,Corporate Property and Land,Premises,145023,Cleaning and Domestic Supplies,03/05/2024,4264959-06/266750,584.90,GREENHAM TRADING LTD.
Regeneration Economy and Growth,Culture Sport and Tourism,Premises,145023,Cleaning and Domestic Supplies,03/05/2024,4264959-06/266792,"1,059.90",GREENHAM TRADING LTD.
Regeneration Economy and Growth,Corporate Property and Land,Premises,145023,Cleaning and Domestic Supplies,03/05/2024,4264959-06/266865,510.57,GREENHAM TRADING LTD.
Regeneration Economy and Growth,Culture Sport and Tourism,Premises,145023,Cleaning and Domestic Supplies,03/05/2024,4264959-06/266870,901.62,GREENHAM TRADING LTD.
Regeneration Economy and Growth,Culture Sport and Tourism,Supplies and Services,304259,Equipment and Materials,03/05/2024,4264961-INV-5775,504.05,GYM TECH NORTH EAST.
Neighbourhoods and Climate Change,Environmental Services,Stock A926,926004,Stock,03/05/2024,4264964-1524012769,"1,706.58",HIAB LTD.
Regeneration Economy and Growth,Corporate Property and Land,Premises,108099,Service Repairs and Maintenance,03/05/2024,4264965-7081088690,"9,127.38",HONEYWELL NOVAR SYSTEMS LTD.
Adult and Health Services,Public Health CC0450,Third Party Payments,460803,Contract Payments,03/05/2024,4264967-SI-HK-002371,"374,752.00",HUMANKIND CHARITY.
Adult and Health Services,Public Health CC0450,Third Party Payments,460803,Contract Payments,03/05/2024,4264967-SI-HK-002373,"5,000.00",HUMANKIND CHARITY.
Neighbourhoods and Climate Change,Partnerships & Community Engagement Div.,Supplies and Services,384086,Miscellaneous Expenses,03/05/2024,4264968-VOUCHERDEIS01-24,500.00,HUTTON HENRY & STATION TOWN PARISH COUNCIL.
Resources BK0010,Transactional & Customer Services,Supplies and Services,372009,Subscriptions E372,03/05/2024,4264969-1873,"10,402.56",IIZUKA SOFTWARE TECHNOLOGIES LTD.
Neighbourhoods and Climate Change,Environmental Services,Premises,106080,Centrally Controlled Rep and Maint,03/05/2024,4264972-90034698,616.77,INTEGRATED UTILITY SERVICES LTD.*
Neighbourhoods and Climate Change,Environmental Services,Premises,106080,Centrally Controlled Rep and Maint,03/05/2024,4264972-90034699,616.77,INTEGRATED UTILITY SERVICES LTD.*
Regeneration Economy and Growth,Culture Sport and Tourism,Premises,106082,Centrally Controlled Rep and Maint,03/05/2024,4264973-CD200335181,795.00,INTEGRATED WATER SERVICES LTD.
Neighbourhoods and Climate Change,Highways,Third Party Payments,430100,Rendered by Private Contractors,03/05/2024,4264976-28981,"14,068.56",JACK COUPE & SONS LTD T/A COUPE LINE.
Regeneration Economy and Growth,Corporate Property and Land,Premises,106082,Centrally Controlled Rep and Maint,03/05/2024,4264978-30714,"14,945.86",JC MAINTENANCE SERVICES LTD.
Regeneration Economy and Growth,Culture Sport and Tourism,Supplies and Services,304259,Equipment and Materials,03/05/2024,4264979-212500,"1,139.20",JP LENNARD LTD.
Neighbourhoods and Climate Change,Highways,Supplies and Services,304221,Equipment and Materials,03/05/2024,4264981-0108/00039206,"1,428.00",JT DOVE LTD.
Regeneration Economy and Growth,Corporate Property and Land,Supplies and Services,304221,Equipment and Materials,03/05/2024,4264981-0108/00039207,705.95,JT DOVE LTD.
Neighbourhoods and Climate Change,Highways,Stock A926,926900,Stock in hand-Inventory system,03/05/2024,4264981-0113/00059220,"1,582.00",JT DOVE LTD.
Neighbourhoods and Climate Change,Highways,Stock A926,926900,Stock in hand-Inventory system,03/05/2024,4264981-0113/00059221,"1,930.10",JT DOVE LTD.
Regeneration Economy and Growth,Business Durham,Construction work A908,908105,Construction work,03/05/2024,4264982-10336166,"4,184,528.27",KIER CONSTRUCTION LTD - SCOTLAND
Regeneration Economy and Growth,Planning & Housing,Supplies and Services,338045,Services,03/05/2024,4264985-INVSJW624,"1,125.00",LANDMARK CHAMBERS.
Children and Young Peoples Services,Head of Education and Skills,Transport,230006,Contract Hire,03/05/2024,4264993-F138-0324,"4,151.52",MARK & JOHN CHISHOLM T/A (CHEVRON).
Neighbourhoods and Climate Change,Highways,Third Party Payments,460224,Contract Payments,03/05/2024,4264995-INV-2296,550.00,MICROPLOT LTD.
Regeneration Economy and Growth,Planning & Housing,Supplies and Services,372009,Subscriptions E372,03/05/2024,4265010-61068,"1,050.00",NORTHERN HOUSING CONSORTIUM LTD.
Neighbourhoods and Climate Change,Highways,Third Party Payments,430100,Rendered by Private Contractors,03/05/2024,4265011-DI20424941,"1,453.87",NORTHERN POWERGRID (NORTHEAST) LTD.
Neighbourhoods and Climate Change,Highways,Third Party Payments,430100,Rendered by Private Contractors,03/05/2024,4265011-DI20424943,"4,036.51",NORTHERN POWERGRID (NORTHEAST) LTD.
Neighbourhoods and Climate Change,Community Protection,Third Party Payments,430100,Rendered by Private Contractors,03/05/2024,4265012-915652498,"3,715.01",NORTHUMBRIAN WATER LTD.
Children and Young Peoples Services,Head of Early Help Inclusion & Vulnerable Children.,Third Party Payments,410037,Rendered by Other Local Authorities,03/05/2024,4265013-INV-11233,"1,283.76",NUDGE EDUCATION LTD.
Children and Young Peoples Services,Head of Early Help Inclusion & Vulnerable Children.,Third Party Payments,410037,Rendered by Other Local Authorities,03/05/2024,4265013-INV-11409,"1,444.23",NUDGE EDUCATION LTD.
Neighbourhoods and Climate Change,Environmental Services,Supplies and Services,384199,Miscellaneous Expenses,03/05/2024,4265017-59785,945.00,ORGANIC FARMERS & GROWERS CIC.
Neighbourhoods and Climate Change,Highways,Stock A926,926900,Stock in hand-Inventory system,03/05/2024,4265019-XL316026,794.00,PARK ELECTRICAL DISTRIBUTORS LTD.
Regeneration Economy and Growth,Business Durham,Supplies and Services,304293,Equipment and Materials,03/05/2024,4265020-107797,"1,319.50",PETERLEE FIRE CO LTD.
Children and Young Peoples Services,Head of Education and Skills,Transport,230007,Contract Hire,03/05/2024,4265022-87154,700.00,PHOENIX TAXIS T/A PRATT`S TAXIS.
Children and Young Peoples Services,Head of Early Help Inclusion & Vulnerable Children.,Supplies and Services,308011,Furniture,03/05/2024,4265024-SI/92265,"3,170.00",PINEAPPLE CONTRACTS.
Chief Executives Office,Communications Management,Supplies and Services,332029,Printing Stationery and Gen Off Exps,03/05/2024,4265025-728173,703.00,POTTS PRINTERS LTD.
Children and Young Peoples Services,Head of Education and Skills,Third Party Payments,410037,Rendered by Other Local Authorities,03/05/2024,4265027-0000442097,504.00,PROSPERO GROUP LTD.
Children and Young Peoples Services,Head of Education and Skills,Third Party Payments,410037,Rendered by Other Local Authorities,03/05/2024,4265027-0000449463,"1,039.40",PROSPERO GROUP LTD.
Neighbourhoods and Climate Change,Environmental Services,Third Party Payments,430100,Rendered by Private Contractors,03/05/2024,4265032-404640,"1,890.99",RICKERBY LTD.
Neighbourhoods and Climate Change,Environmental Services,Transport,210057,Repair and Maintenance of Vehicles,03/05/2024,4265032-720179,784.26,RICKERBY LTD.
Children and Young Peoples Services,Head of Education and Skills,Third Party Payments,430100,Rendered by Private Contractors,03/05/2024,4265043-2324-COM06,"3,861.00",SPORTSCAPE TRAINING LTD.
Regeneration Economy and Growth,Corporate Property and Land,Third Party Payments,430100,Rendered by Private Contractors,03/05/2024,4265044-9162,"2,650.00",ST ASTIER LTD.
Regeneration Economy and Growth,Corporate Property and Land,Supplies and Services,304221,Equipment and Materials,03/05/2024,4265045-7865,769.50,STAIRLIFT SPARES.
Children and Young Peoples Services,Head of Education and Skills,Transport,230006,Contract Hire,03/05/2024,4265047-10199,"1,300.00",STANLEY TRAVEL (NORTH EAST) LTD.
Regeneration Economy and Growth,Corporate Property and Land,Premises,108099,Service Repairs and Maintenance,03/05/2024,4265048-24719,"1,954.24",STONE TECHNICAL SERVICES GROUP LTD.
Regeneration Economy and Growth,Corporate Property and Land,Premises,108099,Service Repairs and Maintenance,03/05/2024,4265048-24761,968.54,STONE TECHNICAL SERVICES GROUP LTD.
Regeneration Economy and Growth,Transport and Contract Services,Premises,108099,Service Repairs and Maintenance,03/05/2024,4265052-181020,794.00,SUPATINT LTD T/A SUPATINT WINDOW FILMS & BLINDS.
Regeneration Economy and Growth,Corporate Property and Land,Third Party Payments,430100,Rendered by Private Contractors,03/05/2024,4265052-181027,"12,433.44",SUPATINT LTD T/A SUPATINT WINDOW FILMS & BLINDS.
Regeneration Economy and Growth,Corporate Property and Land,Supplies and Services,304221,Equipment and Materials,03/05/2024,4265053-1176934,"2,801.17",T CROSSLING & CO LTD.
Neighbourhoods and Climate Change,Highways,Supplies and Services,304221,Equipment and Materials,03/05/2024,4265055-9048259622,"1,291.84",TARMAC TRADING LTD.
Children and Young Peoples Services,Childrens Services Operational Support,Supplies and Services,338094,Services,03/05/2024,4265061-SI-0000678,688.20,THE GREENHOUSE COMPANY (GROUNDWORK) LTD.
Neighbourhoods and Climate Change,Community Protection,Employees,080030,Agency Staff,03/05/2024,4265063-13259,"1,250.00",THE NO WAY TRUST LTD.
Neighbourhoods and Climate Change,Community Protection,Employees,080030,Agency Staff,03/05/2024,4265063-13260,"1,250.00",THE NO WAY TRUST LTD.
Neighbourhoods and Climate Change,Highways,Third Party Payments,430100,Rendered by Private Contractors,03/05/2024,4265069-TRNE042074,"4,014.50",TOTAL RESOURCES (UK) LTD.
Children and Young Peoples Services,Head of Education and Skills,Third Party Payments,430100,Rendered by Private Contractors,03/05/2024,4265074-4187,"2,145.00",TRIAGE CENTRAL LTD.
Children and Young Peoples Services,Head of Education and Skills,Third Party Payments,440999,Other third party payments E440,03/05/2024,4265074-4188,"4,500.00",TRIAGE CENTRAL LTD.
Chief Executives Office,Legal & Democratic Services,Supplies and Services,338042,Services,03/05/2024,4265075-303707-9/4/24,"1,030.00",TRINITY CHAMBERS.
Chief Executives Office,Legal & Democratic Services,Supplies and Services,338042,Services,03/05/2024,4265075-305588/INVLM227,"1,030.00",TRINITY CHAMBERS.
Chief Executives Office,Legal & Democratic Services,Supplies and Services,338042,Services,03/05/2024,4265075-310902/INVEM100,"2,780.00",TRINITY CHAMBERS.
Chief Executives Office,Legal & Democratic Services,Supplies and Services,338042,Services,03/05/2024,4265075-310955/INVFP701,"1,400.00",TRINITY CHAMBERS.
Chief Executives Office,Legal & Democratic Services,Supplies and Services,338042,Services,03/05/2024,4265075-311158/INVMA302,720.00,TRINITY CHAMBERS.
Chief Executives Office,Legal & Democratic Services,Supplies and Services,338042,Services,03/05/2024,4265075-311733/100424,720.00,TRINITY CHAMBERS.
Chief Executives Office,Legal & Democratic Services,Supplies and Services,338042,Services,03/05/2024,4265075-312154/INVTS874,"1,250.00",TRINITY CHAMBERS.
Chief Executives Office,Legal & Democratic Services,Supplies and Services,338042,Services,03/05/2024,4265075-313537/INVTS881,720.00,TRINITY CHAMBERS.
Chief Executives Office,Legal & Democratic Services,Supplies and Services,338042,Services,03/05/2024,4265075-313551/INVTS880,720.00,TRINITY CHAMBERS.
Chief Executives Office,Legal & Democratic Services,Supplies and Services,338042,Services,03/05/2024,4265075-313648/INVTS878,720.00,TRINITY CHAMBERS.
Regeneration Economy and Growth,Corporate Property and Land,Premises,108099,Service Repairs and Maintenance,03/05/2024,4265076-DLB43510,872.54,TYCO FIRE & INTEGRATED SOLUTIONS (UK) LTD.
Neighbourhoods and Climate Change,Highways,Supplies and Services,304221,Equipment and Materials,03/05/2024,4265077-258912,895.99,TYNEDALE ROADSTONE LTD.
Neighbourhoods and Climate Change,Highways,Supplies and Services,304221,Equipment and Materials,03/05/2024,4265077-258914,"1,601.06",TYNEDALE ROADSTONE LTD.
Neighbourhoods and Climate Change,Highways,Supplies and Services,304221,Equipment and Materials,03/05/2024,4265077-258916,577.43,TYNEDALE ROADSTONE LTD.
Neighbourhoods and Climate Change,Highways,Supplies and Services,304221,Equipment and Materials,03/05/2024,4265077-258918,"1,592.12",TYNEDALE ROADSTONE LTD.
Neighbourhoods and Climate Change,Highways,Supplies and Services,304221,Equipment and Materials,03/05/2024,4265077-258919,"1,212.75",TYNEDALE ROADSTONE LTD.
Neighbourhoods and Climate Change,Highways,Supplies and Services,304221,Equipment and Materials,03/05/2024,4265077-258920,"1,629.18",TYNEDALE ROADSTONE LTD.
Neighbourhoods and Climate Change,Highways,Supplies and Services,304221,Equipment and Materials,03/05/2024,4265077-258921,"1,125.95",TYNEDALE ROADSTONE LTD.
Children and Young Peoples Services,Head of Early Help Inclusion & Vulnerable Children.,Supplies and Services,344033,Telephones,03/05/2024,4265082-210322,572.70,UNIFY BUSINESS SOLUTIONS LTD.
Resources BK0010,Digital Services,Supplies and Services,344015,Telephones,03/05/2024,4265087-SL87241,670.00,VODAFONE CORPORATE LTD.
Regeneration Economy and Growth,Corporate Property and Land,Third Party Payments,430100,Rendered by Private Contractors,03/05/2024,4265089-9380/2024,695.54,WARREN (ELECTRICAL) LTD.
Regeneration Economy and Growth,Business Durham,Premises,135005,Water Services,03/05/2024,4265091-3036961200113419186,800.97,WAVE (AWBN).
Regeneration Economy and Growth,Business Durham,Premises,135005,Water Services,03/05/2024,4265091-3159576100113418692,"1,320.64",WAVE (AWBN).
Adult and Health Services,Head of Adults,Supplies and Services,338365,Services,03/05/2024,4265092-18/C,560.00,WEST HALL BOARDING KENNELS.
Children and Young Peoples Services,Head of Education and Skills,Third Party Payments,440999,Other third party payments E440,03/05/2024,4265094-SLIN/00006373,"7,300.00",WORKERS` EDUCATIONAL ASSOCIATION.
Neighbourhoods and Climate Change,Environmental Services,Supplies and Services,304221,Equipment and Materials,03/05/2024,4265095-0000058890,"4,926.72",WYBONE LTD.
Neighbourhoods and Climate Change,Environmental Services,Supplies and Services,304221,Equipment and Materials,03/05/2024,4265095-0000058894,"2,463.36",WYBONE LTD.
Neighbourhoods and Climate Change,Environmental Services,Transport,215023,Running Costs of Vehicles,03/05/2024,4265097-1153993,980.00,YOUR NRG LTD.
Adult and Health Services,Adults Excluded,Supplies and Services,338027,Services,03/05/2024,4264865-5100424,"4,200.00",REDACTED - PAYMENT TO INDIVIDUAL
Children and Young Peoples Services,Head of Education and Skills,Transport,230008,Contract Hire,03/05/2024,4264926-S037-0324,"3,124.60",REDACTED - PAYMENT TO INDIVIDUAL
Children and Young Peoples Services,Head of Education and Skills,Transport,230006,Contract Hire,03/05/2024,4264998-215803,"2,075.73",REDACTED - PAYMENT TO INDIVIDUAL
Regeneration Economy and Growth,Culture Sport and Tourism,Supplies and Services,384199,Miscellaneous Expenses,03/05/2024,4265040-INV-000044,"1,000.00",REDACTED - PAYMENT TO INDIVIDUAL
Children and Young Peoples Services,Head of Education and Skills,Transport,230010,Contract Hire,03/05/2024,4265065-B049-MAR24,"3,287.22",REDACTED - PAYMENT TO INDIVIDUAL
Non-Service Specific,Non Service Specific-Financing,Grant,705227,Grants,07/05/2024,4265162-3700269794,"50,626.00","DEPARTMENT OF LEVELLING UP, HOUSING & COMMUNITIES."
Adult and Health Services,Public Health CC0450,Third Party Payments,460803,Contract Payments,07/05/2024,4265197-INV-0013,"1,300.00",HARTLEPOWER COMMUNITY TRUST.
Regeneration Economy and Growth,Planning & Housing,Supplies and Services,384999,Miscellaneous Expenses,07/05/2024,4265224-JSCM/9/HV/01,"1,450.00",JSCM CONSULTING LTD.
Regeneration Economy and Growth,Planning & Housing,Supplies and Services,384999,Miscellaneous Expenses,07/05/2024,4265228-RES-05-2024-010,"2,000.00",KIMMITT LETTINGS LTD.
Children and Young Peoples Services,Head of Education and Skills,Third Party Payments,430100,Rendered by Private Contractors,07/05/2024,4265253-AW1134,"14,478.75",MINERVA ARTS & WELLBEING.
Regeneration Economy and Growth,Business Durham,Supplies and Services,338027,Services,07/05/2024,4265270-1190,833.33,NETWORKING KNOWHO LTD.
Children and Young Peoples Services,Head of Childrens Social Care,Supplies and Services,384302,Miscellaneous Expenses,07/05/2024,4265328-0001,"1,300.00",SHELLY EQUINE ASSISTED THERAPY.
Children and Young Peoples Services,Head of Early Help Inclusion & Vulnerable Children.,Supplies and Services,304259,Equipment and Materials,07/05/2024,4265333-SINV-195857,"3,554.95",SIGHT & SOUND TECHNOLOGY LTD.
Neighbourhoods and Climate Change,Community Protection,Supplies and Services,338027,Services,07/05/2024,4265100-12-APR-24,"1,586.00",AECOM LTD.
Neighbourhoods and Climate Change,Environmental Services,Supplies and Services,304259,Equipment and Materials,07/05/2024,4265105-427466231,509.45,AIR PRODUCTS PLC.
Children and Young Peoples Services,Head of Early Help Inclusion & Vulnerable Children.,Premises,106082,Centrally Controlled Rep and Maint,07/05/2024,4265111-0000040212,517.50,AQUAJET DRAIN CLEANING LTD.
Regeneration Economy and Growth,Corporate Property and Land,Premises,108099,Service Repairs and Maintenance,07/05/2024,4265111-0000040214,517.50,AQUAJET DRAIN CLEANING LTD.
Children and Young Peoples Services,Head of Childrens Social Care,Third Party Payments,425041,Rendered by Voluntary Organisations,07/05/2024,4265113-ARC2324-688,842.82,ARC ADOPTION NORTH EAST.
Regeneration Economy and Growth,Culture Sport and Tourism,Supplies and Services,312013,Newspapers books and periodicals E312,07/05/2024,4265118-7031156,609.50,ASKEWS & HOLTS LIBRARY SERVICES LTD.
Regeneration Economy and Growth,Culture Sport and Tourism,Supplies and Services,312013,Newspapers books and periodicals E312,07/05/2024,4265118-7031157,620.32,ASKEWS & HOLTS LIBRARY SERVICES LTD.
Regeneration Economy and Growth,Culture Sport and Tourism,Supplies and Services,312013,Newspapers books and periodicals E312,07/05/2024,4265118-7031191,756.90,ASKEWS & HOLTS LIBRARY SERVICES LTD.
Regeneration Economy and Growth,Culture Sport and Tourism,Supplies and Services,312013,Newspapers books and periodicals E312,07/05/2024,4265118-7031475,534.62,ASKEWS & HOLTS LIBRARY SERVICES LTD.
Regeneration Economy and Growth,Culture Sport and Tourism,Supplies and Services,312013,Newspapers books and periodicals E312,07/05/2024,4265118-7031476,579.47,ASKEWS & HOLTS LIBRARY SERVICES LTD.
Dedicated Schools Grant BG0015,DSG Schools Block,Supplies and Services,304259,Equipment and Materials,07/05/2024,4265120-0000005990,"1,738.00",BALANCEABILITY LTD.
Neighbourhoods and Climate Change,Highways,Stock A926,926900,Stock in hand-Inventory system,07/05/2024,4265122-536757,"1,230.77",BAY PLASTICS (VINK UK LTD).
Regeneration Economy and Growth,Business Durham,Fees,901002,Consultants fees 901002,07/05/2024,4265129-44905,525.00,BGP CONSULTING LTD T/A BILLINGHURST GEORGE & PARTNERS.
Regeneration Economy and Growth,Culture Sport and Tourism,Supplies and Services,312013,Newspapers books and periodicals E312,07/05/2024,4265132-241557,999.00,BOLINDA DIGITAL LTD.
Regeneration Economy and Growth,Culture Sport and Tourism,Supplies and Services,312013,Newspapers books and periodicals E312,07/05/2024,4265132-241701,601.19,BOLINDA DIGITAL LTD.
Neighbourhoods and Climate Change,Highways,Supplies and Services,304221,Equipment and Materials,07/05/2024,4265134-21773291,"1,120.91",BREEDON TRADING LTD.
Regeneration Economy and Growth,Culture Sport and Tourism,Premises,145023,Cleaning and Domestic Supplies,07/05/2024,4265135-22SI2299081,"2,134.42",BRENNTAG UK LTD.
Regeneration Economy and Growth,Culture Sport and Tourism,Premises,145023,Cleaning and Domestic Supplies,07/05/2024,4265135-22SI2299083,"1,884.00",BRENNTAG UK LTD.
Regeneration Economy and Growth,Culture Sport and Tourism,Premises,145023,Cleaning and Domestic Supplies,07/05/2024,4265135-22SI2299084,"1,660.00",BRENNTAG UK LTD.
Regeneration Economy and Growth,Corporate Property and Land,Third Party Payments,430100,Rendered by Private Contractors,07/05/2024,4265140-884,"18,521.70",CEILINGS DIRECT LTD.
Adult and Health Services,Commissioning inc Supporting People,Third Party Payments,479102,Purchase of Care,07/05/2024,4265143-INV1972,"2,142.70",CHILD ACTION NORTHWEST.
Resources BK0010,Transactional & Customer Services,Supplies and Services,342051,Computers and Communications,07/05/2024,4265146-C/RB301326,"2,025.00",CIVICA UK LTD.
Resources BK0010,Transactional & Customer Services,Third Party Payments,440999,Other third party payments E440,07/05/2024,4265154-RES-05-2024-049,"227,144.82",COUNTY DURHAM COMMUNITY FOUNDATION.
Neighbourhoods and Climate Change,Environmental Services,Supplies and Services,304221,Equipment and Materials,07/05/2024,4265157-INV0150455,"8,918.00",CROMWELL POLYTHENE LTD.
Children and Young Peoples Services,Head of Early Help Inclusion & Vulnerable Children.,Supplies and Services,304259,Equipment and Materials,07/05/2024,4265163-247629,"1,037.45",DORSET NURSING SUPPLIES LTD.
Neighbourhoods and Climate Change,Environmental Services,Supplies and Services,304221,Equipment and Materials,07/05/2024,4265170-0000115264,"1,026.00",EAST RIDING HORTICULTURE LTD.
Regeneration Economy and Growth,Corporate Property and Land,Supplies and Services,304221,Equipment and Materials,07/05/2024,4265172-059-334673,"1,053.57",EDMUNDSON ELECTRICAL LTD.
Regeneration Economy and Growth,Corporate Property and Land,Supplies and Services,304221,Equipment and Materials,07/05/2024,4265172-059-334799,970.09,EDMUNDSON ELECTRICAL LTD.
Regeneration Economy and Growth,Corporate Property and Land,Supplies and Services,304221,Equipment and Materials,07/05/2024,4265172-059-334813,"1,588.06",EDMUNDSON ELECTRICAL LTD.
Regeneration Economy and Growth,Business Durham,Supplies and Services,372009,Subscriptions E372,07/05/2024,4265180-INV-21693,"6,000.00",ENTREPRENEURS FORUM.
Neighbourhoods and Climate Change,Environmental Services,Supplies and Services,304999,Equipment and Materials,07/05/2024,4265181-6952950,"1,278.00",ESE WORLD LTD.
Children and Young Peoples Services,Head of Early Help Inclusion & Vulnerable Children.,Supplies and Services,304403,Equipment and Materials,07/05/2024,4265183-RES-05-2024-014,"25,000.00",FAMILY FUND TRADING LTD T/A FAMILY FUND BUSINESS SERVICES.
Neighbourhoods and Climate Change,Highways,Supplies and Services,304357,Equipment and Materials,07/05/2024,4265188-DCC070424,"17,177.67",GAP GROUP LTD.
Regeneration Economy and Growth,Economic Development CL0150,Supplies and Services,384437,Miscellaneous Expenses,07/05/2024,4265190-GA0984,"2,000.00",GEMARTS.
Neighbourhoods and Climate Change,Highways,Stock A926,926900,Stock in hand-Inventory system,07/05/2024,4265194-06/267315,687.01,GREENHAM TRADING LTD.
Regeneration Economy and Growth,Corporate Property and Land,Supplies and Services,304221,Equipment and Materials,07/05/2024,4265198-4796327,"2,338.44",HEADLAM (FLOORCOVERING DISTRIBUTORS) LTD.
Regeneration Economy and Growth,Corporate Property and Land,Supplies and Services,304221,Equipment and Materials,07/05/2024,4265202-A38/0181262,"2,519.34",HOWDENS JOINERY LTD.
Regeneration Economy and Growth,Corporate Property and Land,Supplies and Services,304221,Equipment and Materials,07/05/2024,4265202-A38/0181264,"2,519.34",HOWDENS JOINERY LTD.
Neighbourhoods and Climate Change,Environmental Services,Supplies and Services,384899,Miscellaneous Expenses,07/05/2024,4265211-RES-05-2024-053,640.00,J & J CLARK & SONS.
Neighbourhoods and Climate Change,Environmental Services,Premises,108099,Service Repairs and Maintenance,07/05/2024,4265217-1128,883.80,JN KEARTON (DRY STONE WALLING).
Regeneration Economy and Growth,Culture Sport and Tourism,Supplies and Services,304259,Equipment and Materials,07/05/2024,4265222-212655,"1,139.20",JP LENNARD LTD.
Regeneration Economy and Growth,Culture Sport and Tourism,Supplies and Services,304259,Equipment and Materials,07/05/2024,4265222-212656,"1,139.20",JP LENNARD LTD.
Regeneration Economy and Growth,Corporate Property and Land,Supplies and Services,304221,Equipment and Materials,07/05/2024,4265225-0113/00059341,"1,591.72",JT DOVE LTD.
Resources BK0010,Digital Services,Supplies and Services,344111,Telephones,07/05/2024,4265243-268536,"6,042.15",MAINTEL EUROPE LTD.
Resources BK0010,Digital Services,Supplies and Services,344111,Telephones,07/05/2024,4265243-268538,"8,395.13",MAINTEL EUROPE LTD.
Resources BK0010,Digital Services,Supplies and Services,344111,Telephones,07/05/2024,4265243-268539,"2,768.74",MAINTEL EUROPE LTD.
Regeneration Economy and Growth,Culture Sport and Tourism,Supplies and Services,338047,Services,07/05/2024,4265249-SI-912,"10,242.08",MARK THOMPSON PRODUCTIONS LTD.
Neighbourhoods and Climate Change,Highways,Supplies and Services,304221,Equipment and Materials,07/05/2024,4265264-507937,632.40,NAL LTD.
Neighbourhoods and Climate Change,Highways,Supplies and Services,336005,Advertising E336,07/05/2024,4265266-836635,584.64,NATIONAL WORLD PUBLISHING LTD.
Neighbourhoods and Climate Change,Highways,Construction work A908,908105,Construction work,07/05/2024,4265266-836781,530.40,NATIONAL WORLD PUBLISHING LTD.
Neighbourhoods and Climate Change,Highways,Third Party Payments,460155,Contract Payments,07/05/2024,4265266-836949,636.48,NATIONAL WORLD PUBLISHING LTD.
Children and Young Peoples Services,Head of Education and Skills,Third Party Payments,440999,Other third party payments E440,07/05/2024,4265271-SLINV/00005742,"22,644.00",NEW COLLEGE DURHAM.
Regeneration Economy and Growth,Planning & Housing,Supplies and Services,336005,Advertising E336,07/05/2024,4265272-44920835,674.52,NEWSQUEST (YORKSHIRE & NORTH EAST) LTD.
Children and Young Peoples Services,Head of Education and Skills,Third Party Payments,430100,Rendered by Private Contractors,07/05/2024,4265274-5058,643.50,NORTH EAST DANCE CIC.
Children and Young Peoples Services,Head of Education and Skills,Third Party Payments,430100,Rendered by Private Contractors,07/05/2024,4265274-5059,"1,287.00",NORTH EAST DANCE CIC.
Neighbourhoods and Climate Change,Highways,Third Party Payments,430100,Rendered by Private Contractors,07/05/2024,4265278-DI20425017,"1,281.88",NORTHERN POWERGRID (NORTHEAST) LTD.
Regeneration Economy and Growth,Corporate Property and Land,Supplies and Services,304221,Equipment and Materials,07/05/2024,4265279-1178728,674.00,NORTHERN TOOLS & ACCESSORIES.
Chief Executives Office,Legal & Democratic Services,Supplies and Services,384954,Miscellaneous Expenses,07/05/2024,4265282-CBA1102277,"1,250.00",NURSE EXPERT WITNESS LTD.
Children and Young Peoples Services,Head of Education and Skills,Third Party Payments,430100,Rendered by Private Contractors,07/05/2024,4265285-1464,"4,407.82",ORANGEBOX TRAINING SOLUTIONS UK LTD.
Neighbourhoods and Climate Change,Highways,Stock A926,926900,Stock in hand-Inventory system,07/05/2024,4265288-XL316104,"1,184.20",PARK ELECTRICAL DISTRIBUTORS LTD.
Neighbourhoods and Climate Change,Highways,Stock A926,926900,Stock in hand-Inventory system,07/05/2024,4265288-XL316166,835.00,PARK ELECTRICAL DISTRIBUTORS LTD.
Neighbourhoods and Climate Change,Environmental Services,Supplies and Services,338066,Services,07/05/2024,4265290-RES-05-2024-048,"8,800.00",PEAK DISTRICT NATIONAL PARK AUTHORITY (NPA).
Chief Executives Office,Communications Management,Supplies and Services,332029,Printing Stationery and Gen Off Exps,07/05/2024,4265298-728191,"2,088.00",POTTS PRINTERS LTD.
Regeneration Economy and Growth,Planning & Housing,Supplies and Services,384999,Miscellaneous Expenses,07/05/2024,4265299-R4376,"1,500.00",PPS DEVELOPMENTS LTD.
Neighbourhoods and Climate Change,Environmental Services,Supplies and Services,304999,Equipment and Materials,07/05/2024,4265303-12224,"2,254.30",PROBE INDUSTRIES LTD.
Chief Executives Office,Legal & Democratic Services,Supplies and Services,340001,Postages E340,07/05/2024,4265315-1109669631,530.78,ROYAL MAIL GROUP PLC.
Children and Young Peoples Services,Head of Childrens Social Care,Supplies and Services,338044,Services,07/05/2024,4265320-SB-292,994.78,SB CONSULTANCY LTD.
Regeneration Economy and Growth,Corporate Property and Land,Supplies and Services,304083,Equipment and Materials,07/05/2024,4265323-240048726,"18,500.00",SELECTA UK LTD.
Chief Executives Office,Legal & Democratic Services,Supplies and Services,304259,Equipment and Materials,07/05/2024,4265327-0000293927,608.00,SHAW & SONS LTD.
Regeneration Economy and Growth,Culture Sport and Tourism,Supplies and Services,324117,Provisions E324,07/05/2024,4265329-DCCFF12424,"1,000.00",SHILDON ALIVE.
Regeneration Economy and Growth,Culture Sport and Tourism,Supplies and Services,338099,Services,07/05/2024,4265330-199036,907.20,SHOWSEC INTERNATIONAL LTD.
Children and Young Peoples Services,Head of Education and Skills,Supplies and Services,384199,Miscellaneous Expenses,07/05/2024,4265336-4100883052-12/4/24,"3,000.00",SMARTT NORTH EAST LTD.
Neighbourhoods and Climate Change,Environmental Services,Supplies and Services,384999,Miscellaneous Expenses,07/05/2024,4265340-RES-05-2024-013,"2,700.00",STANHOPE PARISH COUNCIL.
Neighbourhoods and Climate Change,Highways,Supplies and Services,304221,Equipment and Materials,07/05/2024,4265342-48371,"2,032.98",STONEGRAVE AGGREGATES LTD.
Children and Young Peoples Services,Head of Education and Skills,Construction work A908,908105,Construction work,07/05/2024,4265344-181022,"3,989.00",SUPATINT LTD T/A SUPATINT WINDOW FILMS & BLINDS.
Neighbourhoods and Climate Change,Highways,Fees,901002,Consultants fees 901002,07/05/2024,4265345-10731,900.00,SURVEY & MARKETING SERVICES LTD T/A SMS MARKET RESEARCH.
Resources BK0010,Digital Services,Vehicles Equipment Furniture and Fittings,912701,Computer equipment,07/05/2024,4265347-149343,"22,095.04",SWITCHSHOP LTD.
Resources BK0010,Digital Services,Supplies and Services,344132,Telephones,07/05/2024,4265347-149344,"58,000.00",SWITCHSHOP LTD.
Regeneration Economy and Growth,Corporate Property and Land,Supplies and Services,304221,Equipment and Materials,07/05/2024,4265348-1177940,801.58,T CROSSLING & CO LTD.
Regeneration Economy and Growth,Corporate Property and Land,Supplies and Services,304221,Equipment and Materials,07/05/2024,4265348-1178705,708.24,T CROSSLING & CO LTD.
Neighbourhoods and Climate Change,Highways,Supplies and Services,304221,Equipment and Materials,07/05/2024,4265349-9048259623,663.24,TARMAC TRADING LTD.
Resources BK0010,Transactional & Customer Services,Third Party Payments,440999,Other third party payments E440,07/05/2024,4265356-RES-05-2024-050,"75,000.00",THE BREAD & BUTTER THING.
Neighbourhoods and Climate Change,Environmental Services,Supplies and Services,328041,Clothing uniforms and laundry E328,07/05/2024,4265359-NSIN00112044,517.35,THOMAS OWEN & SONS (NEWCASTLE) LTD.
Regeneration Economy and Growth,Culture Sport and Tourism,Supplies and Services,328041,Clothing uniforms and laundry E328,07/05/2024,4265359-NSIN00112085,"1,186.07",THOMAS OWEN & SONS (NEWCASTLE) LTD.
Regeneration Economy and Growth,REG - Central Costs,Supplies and Services,338029,Services,07/05/2024,4265361-21296,"15,000.00",TILE HILL INTERIM & EXECUTIVE LTD.
Neighbourhoods and Climate Change,Highways,Stock A926,926900,Stock in hand-Inventory system,07/05/2024,4265362-117543,570.00,TOTAL RENTAL SOLUTIONS LTD.
Neighbourhoods and Climate Change,Highways,Stock A926,926900,Stock in hand-Inventory system,07/05/2024,4265362-117544,"1,326.25",TOTAL RENTAL SOLUTIONS LTD.
Neighbourhoods and Climate Change,Highways,Stock A926,926900,Stock in hand-Inventory system,07/05/2024,4265362-117545,"1,036.40",TOTAL RENTAL SOLUTIONS LTD.
Neighbourhoods and Climate Change,Highways,Stock A926,926900,Stock in hand-Inventory system,07/05/2024,4265362-117547,"2,154.26",TOTAL RENTAL SOLUTIONS LTD.
Neighbourhoods and Climate Change,Highways,Stock A926,926900,Stock in hand-Inventory system,07/05/2024,4265362-117548,"1,616.40",TOTAL RENTAL SOLUTIONS LTD.
Neighbourhoods and Climate Change,Highways,Stock A926,926900,Stock in hand-Inventory system,07/05/2024,4265362-117549,"1,934.50",TOTAL RENTAL SOLUTIONS LTD.
Neighbourhoods and Climate Change,Highways,Stock A926,926900,Stock in hand-Inventory system,07/05/2024,4265362-117550,728.80,TOTAL RENTAL SOLUTIONS LTD.
Neighbourhoods and Climate Change,Highways,Stock A926,926900,Stock in hand-Inventory system,07/05/2024,4265362-117551,"1,100.00",TOTAL RENTAL SOLUTIONS LTD.
Neighbourhoods and Climate Change,Highways,Stock A926,926900,Stock in hand-Inventory system,07/05/2024,4265362-117555,"4,900.00",TOTAL RENTAL SOLUTIONS LTD.
Neighbourhoods and Climate Change,Highways,Stock A926,926900,Stock in hand-Inventory system,07/05/2024,4265362-117556,599.00,TOTAL RENTAL SOLUTIONS LTD.
Neighbourhoods and Climate Change,Highways,Stock A926,926900,Stock in hand-Inventory system,07/05/2024,4265362-117558,706.80,TOTAL RENTAL SOLUTIONS LTD.
Neighbourhoods and Climate Change,Highways,Stock A926,926900,Stock in hand-Inventory system,07/05/2024,4265362-117559,942.40,TOTAL RENTAL SOLUTIONS LTD.
Chief Executives Office,Legal & Democratic Services,Supplies and Services,338042,Services,07/05/2024,4265366-308732/INVEM97,"1,030.00",TRINITY CHAMBERS.
Chief Executives Office,Legal & Democratic Services,Supplies and Services,338042,Services,07/05/2024,4265366-308843/INVLS262,920.00,TRINITY CHAMBERS.
Chief Executives Office,Legal & Democratic Services,Supplies and Services,338042,Services,07/05/2024,4265366-309873/INVRSH197,"1,250.00",TRINITY CHAMBERS.
Chief Executives Office,Legal & Democratic Services,Supplies and Services,338042,Services,07/05/2024,4265366-310034/INVRSH198,"1,030.00",TRINITY CHAMBERS.
Chief Executives Office,Legal & Democratic Services,Supplies and Services,338042,Services,07/05/2024,4265366-310402/INVHPR249,585.00,TRINITY CHAMBERS.
Chief Executives Office,Legal & Democratic Services,Supplies and Services,338042,Services,07/05/2024,4265366-310543/INVTOP232,"1,205.00",TRINITY CHAMBERS.
Chief Executives Office,Legal & Democratic Services,Supplies and Services,338042,Services,07/05/2024,4265366-311673/INVGR710,887.08,TRINITY CHAMBERS.
Chief Executives Office,Legal & Democratic Services,Supplies and Services,338042,Services,07/05/2024,4265366-311773/INVHPR230,665.00,TRINITY CHAMBERS.
Chief Executives Office,Legal & Democratic Services,Supplies and Services,338042,Services,07/05/2024,4265366-311900/INVGR709,785.00,TRINITY CHAMBERS.
Chief Executives Office,Legal & Democratic Services,Supplies and Services,338042,Services,07/05/2024,4265366-312578/INVGR746,938.75,TRINITY CHAMBERS.
Chief Executives Office,Legal & Democratic Services,Supplies and Services,338042,Services,07/05/2024,4265366-312861/INVKW784,720.00,TRINITY CHAMBERS.
Chief Executives Office,Legal & Democratic Services,Supplies and Services,338042,Services,07/05/2024,4265366-313350/HM,765.00,TRINITY CHAMBERS.
Chief Executives Office,Legal & Democratic Services,Supplies and Services,338042,Services,07/05/2024,4265366-313350A,785.00,TRINITY CHAMBERS.
Chief Executives Office,Legal & Democratic Services,Supplies and Services,338042,Services,07/05/2024,4265366-313497/INVGM580,665.00,TRINITY CHAMBERS.
Chief Executives Office,Legal & Democratic Services,Supplies and Services,338042,Services,07/05/2024,4265366-313537/INVLS296,575.00,TRINITY CHAMBERS.
Chief Executives Office,Legal & Democratic Services,Supplies and Services,338042,Services,07/05/2024,4265366-313596/INVTS879,720.00,TRINITY CHAMBERS.
Children and Young Peoples Services,Head of Early Help Inclusion & Vulnerable Children.,Supplies and Services,304259,Equipment and Materials,07/05/2024,4265367-INUK13789,"1,434.40",TRIPLE P UK LTD.
Regeneration Economy and Growth,Corporate Property and Land,Third Party Payments,430100,Rendered by Private Contractors,07/05/2024,4265369-DCC/GT/463,917.76,TYNE VALLEY FLOORING & CARPETS.
Regeneration Economy and Growth,Corporate Property and Land,Third Party Payments,430100,Rendered by Private Contractors,07/05/2024,4265369-DCC/GT/465,"1,123.20",TYNE VALLEY FLOORING & CARPETS.
Neighbourhoods and Climate Change,Highways,Supplies and Services,304221,Equipment and Materials,07/05/2024,4265370-255692,760.15,TYNEDALE ROADSTONE LTD.
Neighbourhoods and Climate Change,Highways,Supplies and Services,304221,Equipment and Materials,07/05/2024,4265370-258923,"1,599.57",TYNEDALE ROADSTONE LTD.
Neighbourhoods and Climate Change,Highways,Supplies and Services,304221,Equipment and Materials,07/05/2024,4265370-258925,"1,527.40",TYNEDALE ROADSTONE LTD.
Neighbourhoods and Climate Change,Highways,Supplies and Services,304221,Equipment and Materials,07/05/2024,4265370-258926,"1,214.30",TYNEDALE ROADSTONE LTD.
Neighbourhoods and Climate Change,Highways,Supplies and Services,304221,Equipment and Materials,07/05/2024,4265370-258927,"1,177.10",TYNEDALE ROADSTONE LTD.
Neighbourhoods and Climate Change,Highways,Supplies and Services,304221,Equipment and Materials,07/05/2024,4265370-258932,"1,406.97",TYNEDALE ROADSTONE LTD.
Neighbourhoods and Climate Change,Highways,Supplies and Services,304221,Equipment and Materials,07/05/2024,4265370-258933,"1,584.67",TYNEDALE ROADSTONE LTD.
Neighbourhoods and Climate Change,Highways,Supplies and Services,304221,Equipment and Materials,07/05/2024,4265370-259149,"1,104.89",TYNEDALE ROADSTONE LTD.
Neighbourhoods and Climate Change,Highways,Supplies and Services,304221,Equipment and Materials,07/05/2024,4265370-259151,"1,115.94",TYNEDALE ROADSTONE LTD.
Neighbourhoods and Climate Change,Environmental Services,Supplies and Services,338078,Services,07/05/2024,4265373-INV-65246,"2,911.44",VISTECH SERVICES LTD.
Neighbourhoods and Climate Change,Environmental Services,Supplies and Services,338078,Services,07/05/2024,4265373-INV-65247,"2,044.94",VISTECH SERVICES LTD.
Neighbourhoods and Climate Change,Environmental Services,Supplies and Services,338078,Services,07/05/2024,4265373-INV-65255,"2,911.44",VISTECH SERVICES LTD.
Neighbourhoods and Climate Change,Environmental Services,Supplies and Services,338078,Services,07/05/2024,4265373-INV-65299,"1,195.77",VISTECH SERVICES LTD.
Neighbourhoods and Climate Change,Highways,Third Party Payments,430127,Rendered by Private Contractors,07/05/2024,4265375-53123,500.00,W MARLEY AGRICULTURAL CONTRACTORS LTD.
Regeneration Economy and Growth,Economic Development CL0150,Supplies and Services,384700,Miscellaneous Expenses,07/05/2024,4265376-RES-05-2024-021,"11,005.50",WEST RAINTON & LEAMSIDE COMMUNITY ASSOCIATION.
Regeneration Economy and Growth,Economic Development CL0150,Supplies and Services,384700,Miscellaneous Expenses,07/05/2024,4265377-RES-05-2024-019,500.00,WEST RAINTON & LEAMSIDE PARTNERSHIP.
Regeneration Economy and Growth,Economic Development CL0150,Supplies and Services,384700,Miscellaneous Expenses,07/05/2024,4265377-RES-05-2024-020,500.00,WEST RAINTON & LEAMSIDE PARTNERSHIP.
Regeneration Economy and Growth,Corporate Property and Land,Supplies and Services,304221,Equipment and Materials,07/05/2024,4265378-95721527,"1,184.49",WOLSELEY UK LTD.
Neighbourhoods and Climate Change,Environmental Services,Supplies and Services,384999,Miscellaneous Expenses,07/05/2024,4265379-RES-05-2024-012,"24,170.00",WOLSINGHAM PARISH COUNCIL.
Neighbourhoods and Climate Change,Environmental Services,Supplies and Services,304221,Equipment and Materials,07/05/2024,4265380-0000058964,"4,780.40",WYBONE LTD.
Neighbourhoods and Climate Change,Environmental Services,Supplies and Services,304221,Equipment and Materials,07/05/2024,4265380-0000058970,"1,006.40",WYBONE LTD.
Neighbourhoods and Climate Change,Environmental Services,Supplies and Services,304221,Equipment and Materials,07/05/2024,4265380-0000058971,"2,767.60",WYBONE LTD.
Neighbourhoods and Climate Change,Environmental Services,Supplies and Services,338066,Services,07/05/2024,4265382-RES-05-2024-054,"11,000.00",YORKSHIRE WILDLIFE TRUST.
Regeneration Economy and Growth,Culture Sport and Tourism,Supplies and Services,304259,Equipment and Materials,07/05/2024,4265106-1870,650.00,REDACTED - PAYMENT TO INDIVIDUAL
Adult and Health Services,Head of Adults,Supplies and Services,338066,Services,07/05/2024,4265167-UC92,554.70,REDACTED - PAYMENT TO INDIVIDUAL
Neighbourhoods and Climate Change,Environmental Services,Supplies and Services,384700,Miscellaneous Expenses,07/05/2024,4265216-RES-05-2024-025,"2,520.89",REDACTED - PAYMENT TO INDIVIDUAL
Children and Young Peoples Services,Head of Childrens Social Care,Supplies and Services,338042,Services,07/05/2024,4265254-9541.,"1,000.00",REDACTED - PAYMENT TO INDIVIDUAL
Children and Young Peoples Services,Head of Childrens Social Care,Supplies and Services,338066,Services,07/05/2024,4265262-134503-090424,"15,000.00",REDACTED - PAYMENT TO INDIVIDUAL
Children and Young Peoples Services,Head of Education and Skills,Supplies and Services,384199,Miscellaneous Expenses,07/05/2024,4265346-110424,"3,050.00",REDACTED - PAYMENT TO INDIVIDUAL
Adult and Health Services,Head of Adults,Supplies and Services,304516,Equipment and Materials,08/05/2024,4265966-36003,"9,723.00",ALTONAIDS MOBILITY LTD.
Regeneration Economy and Growth,Corporate Property and Land,Supplies and Services,304221,Equipment and Materials,08/05/2024,4266078-10047115,879.63,HFD GROUP LTD T/A WILKIES.
Chief Executives Office,Legal & Democratic Services,Supplies and Services,304259,Equipment and Materials,08/05/2024,4266116-0001498299,"1,012.56",KINGFISHER DIRECT LTD.
Dedicated Schools Grant BG0015,DSG Schools Block,Supplies and Services,304403,Equipment and Materials,08/05/2024,4266178-INV-1526,695.00,PRIMARY PE PLANNING LTD T/A PPP.
Neighbourhoods and Climate Change,Partnerships & Community Engagement Div.,Cap Exp on Grants & Other Financial Assistance (REFCUS),918004,Contributions to other bodies 918004,08/05/2024,4266210-VOUCHER23AB-STAN008,"7,013.00",STANLEY AREA YOUTH CONSORTIUM.
Children and Young Peoples Services,Head of Early Help Inclusion & Vulnerable Children.,Supplies and Services,384409,Miscellaneous Expenses,08/05/2024,4266213-0058,"1,032.00",STARS COMMUNITY LEARNING CIC.
Adult and Health Services,Head of Adults,Supplies and Services,338099,Services,08/05/2024,4266233-PUSSPOT-JAN-APR24,946.00,TODHILLS BOARDING CATTERY.
Neighbourhoods and Climate Change,Partnerships & Community Engagement Div.,Cap Exp on Grants & Other Financial Assistance (REFCUS),918004,Contributions to other bodies 918004,08/05/2024,4266251-VOUCHER23NB-4TOG023,"1,500.00",WINDLESTONE PARISH COUNCIL.
Regeneration Economy and Growth,Culture Sport and Tourism,Supplies and Services,384199,Miscellaneous Expenses,08/05/2024,4265956-ATL181,"3,500.00",ACORN T-STATS LTD.
Children and Young Peoples Services,Head of Childrens Social Care,Supplies and Services,338044,Services,08/05/2024,4265960-NG550424,"2,889.50",ADVANCED CHILD CARE ASSESSMENTS LTD.
Regeneration Economy and Growth,Culture Sport and Tourism,Premises,145023,Cleaning and Domestic Supplies,08/05/2024,4265963-427320158,841.29,AIR PRODUCTS PLC.
Neighbourhoods and Climate Change,Environmental Services,Third Party Payments,410037,Rendered by Other Local Authorities,08/05/2024,4265964-R218/24/93117,"1,730.00",ALAN M RANSON FUNERAL SERVICE.
Adult and Health Services,Commissioning inc Supporting People,Third Party Payments,479111,Purchase of Care,08/05/2024,4265969-2503,"1,711.00",APM CLEANING & REPAIR LTD.
Children and Young Peoples Services,Head of Childrens Social Care,Supplies and Services,364359,Grants to Voluntary Organisations,08/05/2024,4265970-34694,744.25,APPLE BLOSSOM DAY NURSERY.
Children and Young Peoples Services,Head of Childrens Social Care,Third Party Payments,425041,Rendered by Voluntary Organisations,08/05/2024,4265971-ARC2324-689,"11,855.00",ARC ADOPTION NORTH EAST.
Regeneration Economy and Growth,Transport and Contract Services,Third Party Payments,430100,Rendered by Private Contractors,08/05/2024,4265972-CONCFARE-PAY24-1APRV1,"1,039,313.51",ARRIVA DURHAM COUNTY LTD.
Regeneration Economy and Growth,Corporate Property and Land,Third Party Payments,430100,Rendered by Private Contractors,08/05/2024,4265976-34877,880.00,AYCLIFFE FABRICATIONS LTD.
Neighbourhoods and Climate Change,Highways,Supplies and Services,304358,Equipment and Materials,08/05/2024,4265978-MG09075,671.25,BAILEY CONCRETE PUMPING LTD.
Neighbourhoods and Climate Change,Environmental Services,Supplies and Services,304221,Equipment and Materials,08/05/2024,4265980-99893164,842.56,BALL COLEGRAVE LTD.
Neighbourhoods and Climate Change,Environmental Services,Supplies and Services,304221,Equipment and Materials,08/05/2024,4265980-99911084,662.05,BALL COLEGRAVE LTD.
Neighbourhoods and Climate Change,Environmental Services,Supplies and Services,338066,Services,08/05/2024,4265987-INV-31197,780.00,BETTER IMPACT SOFTWARE LTD.
Regeneration Economy and Growth,Business Durham,Supplies and Services,338066,Services,08/05/2024,4265989-SIN051709,"4,000.00",BLOOM PROCUREMENT SERVICES LTD (FORMERLY NEPRO LTD).
Regeneration Economy and Growth,Business Durham,Supplies and Services,338066,Services,08/05/2024,4265989-SIN051712,"6,250.00",BLOOM PROCUREMENT SERVICES LTD (FORMERLY NEPRO LTD).
Children and Young Peoples Services,Head of Early Help Inclusion & Vulnerable Children.,Supplies and Services,338066,Services,08/05/2024,4265989-SIN051720,"148,206.79",BLOOM PROCUREMENT SERVICES LTD (FORMERLY NEPRO LTD).
Neighbourhoods and Climate Change,Highways,Supplies and Services,304221,Equipment and Materials,08/05/2024,4265994-21769339,687.00,BREEDON TRADING LTD.
Adult and Health Services,Commissioning inc Supporting People,Third Party Payments,479111,Purchase of Care,08/05/2024,4265999-5791,"5,104.17",CARERS FEDERATION LTD.
Regeneration Economy and Growth,Corporate Property and Land,Third Party Payments,430100,Rendered by Private Contractors,08/05/2024,4266000-12673,"6,916.91",CATHEDRAL LOCK & SAFE SERVICES LTD.
Regeneration Economy and Growth,Corporate Property and Land,Third Party Payments,430100,Rendered by Private Contractors,08/05/2024,4266000-12674,"2,639.49",CATHEDRAL LOCK & SAFE SERVICES LTD.
Regeneration Economy and Growth,Culture Sport and Tourism,Construction work A908,908105,Construction work,08/05/2024,4266006-0000021477,"6,983.00",CLADE ENGINEERING SYSTEMS LTD.
Neighbourhoods and Climate Change,Highways,Stock A926,926900,Stock in hand-Inventory system,08/05/2024,4266010-23000RX24005204,"2,301.12",COLAS LTD.
Adult and Health Services,Public Health CC0450,Third Party Payments,460803,Contract Payments,08/05/2024,4266019-3910023085,"183,883.92",COUNTY DURHAM & DARLINGTON NHS FOUNDATION TRUST (CDDFT).
Adult and Health Services,Public Health CC0450,Third Party Payments,460803,Contract Payments,08/05/2024,4266019-3910023086,"31,341.67",COUNTY DURHAM & DARLINGTON NHS FOUNDATION TRUST (CDDFT).
Adult and Health Services,Public Health CC0450,Third Party Payments,460803,Contract Payments,08/05/2024,4266019-3910023087,"5,451.92",COUNTY DURHAM & DARLINGTON NHS FOUNDATION TRUST (CDDFT).
Adult and Health Services,Public Health CC0450,Third Party Payments,460803,Contract Payments,08/05/2024,4266019-3910023088,"35,405.42",COUNTY DURHAM & DARLINGTON NHS FOUNDATION TRUST (CDDFT).
Adult and Health Services,Public Health CC0450,Third Party Payments,460803,Contract Payments,08/05/2024,4266019-3910023089,"15,208.17",COUNTY DURHAM & DARLINGTON NHS FOUNDATION TRUST (CDDFT).
Adult and Health Services,Public Health CC0450,Third Party Payments,460803,Contract Payments,08/05/2024,4266019-3910023092,"5,451.92",COUNTY DURHAM & DARLINGTON NHS FOUNDATION TRUST (CDDFT).
Adult and Health Services,Public Health CC0450,Third Party Payments,460803,Contract Payments,08/05/2024,4266019-3910023093,"15,208.17",COUNTY DURHAM & DARLINGTON NHS FOUNDATION TRUST (CDDFT).
Children and Young Peoples Services,Head of Early Help Inclusion & Vulnerable Children.,Supplies and Services,338027,Services,08/05/2024,4266019-3980042901,"1,020.00",COUNTY DURHAM & DARLINGTON NHS FOUNDATION TRUST (CDDFT).
Regeneration Economy and Growth,Transport and Contract Services,Third Party Payments,430100,Rendered by Private Contractors,08/05/2024,4266022-CONCFARE-PAY24-1APRV1,805.45,CUMBRIA CLASSIC COACHES LTD.
Chief Executives Office,Legal & Democratic Services,Supplies and Services,338025,Services,08/05/2024,4266026-00000717,"2,360.00",DERWENTSIDE FUNERAL SERVICE.
Regeneration Economy and Growth,Planning & Housing,Supplies and Services,338094,Services,08/05/2024,4266033-3354,"1,032.91",DURHAM CRICKET EVENTS LTD.
Regeneration Economy and Growth,Corporate Property and Land,Supplies and Services,304221,Equipment and Materials,08/05/2024,4266037-059-330515,849.00,EDMUNDSON ELECTRICAL LTD.
Neighbourhoods and Climate Change,Environmental Services,Supplies and Services,384956,Miscellaneous Expenses,08/05/2024,4266044-PAS00005278YT,"16,750.40",ENVIRONMENT AGENCY.
Adult and Health Services,Head of Adults,Supplies and Services,338066,Services,08/05/2024,4266045-112,724.30,ERF MEDICAL LTD.
Regeneration Economy and Growth,Transport and Contract Services,Third Party Payments,430100,Rendered by Private Contractors,08/05/2024,4266062-CONCFARE-PAY24-1APRV1,"1,147,340.49",GO GATESHEAD LTD.
Children and Young Peoples Services,Head of Education and Skills,Third Party Payments,440999,Other third party payments E440,08/05/2024,4266069-DD/DWPFS-ESF,"72,410.24",GROUNDWORK NE & CUMBRIA.
Children and Young Peoples Services,Head of Education and Skills,Third Party Payments,440999,Other third party payments E440,08/05/2024,4266069-DW3 ESF/YEI,"64,331.25",GROUNDWORK NE & CUMBRIA.
Neighbourhoods and Climate Change,Environmental Services,Third Party Payments,430112,Rendered by Private Contractors,08/05/2024,4266073-SIN-3400-269303,"149,145.35",HARGREAVES (UK) SERVICES LTD.
Neighbourhoods and Climate Change,Highways,Supplies and Services,304221,Equipment and Materials,08/05/2024,4266080-IN125286,"8,111.00",HILL & SMITH LTD.
Regeneration Economy and Growth,Transport and Contract Services,Third Party Payments,430100,Rendered by Private Contractors,08/05/2024,4266087-CONCFARE-PAY24-1APRV1,"1,769.30",HODGSONS COACH OPERATORS LTD.
Neighbourhoods and Climate Change,Highways,Third Party Payments,430128,Rendered by Private Contractors,08/05/2024,4266090-GRIT/SNOW03-23/24,677.50,HT DAVIES & PARTNERS.
Adult and Health Services,Public Health CC0450,Third Party Payments,460803,Contract Payments,08/05/2024,4266091-SI-HK-002359,"21,000.00",HUMANKIND CHARITY.
Regeneration Economy and Growth,Culture Sport and Tourism,Supplies and Services,384199,Miscellaneous Expenses,08/05/2024,4266093-54270,"2,292.00",INSANITY TALENT MANAGEMENT LTD.
Neighbourhoods and Climate Change,Highways,Third Party Payments,430100,Rendered by Private Contractors,08/05/2024,4266099-28923,937.50,JACK COUPE & SONS LTD T/A COUPE LINE.
Neighbourhoods and Climate Change,Highways,Supplies and Services,304358,Equipment and Materials,08/05/2024,4266107-32876,"2,884.00",JOHN R BUTTERFIELD LTD.
Neighbourhoods and Climate Change,Highways,Supplies and Services,304358,Equipment and Materials,08/05/2024,4266107-32890,"2,983.00",JOHN R BUTTERFIELD LTD.
Neighbourhoods and Climate Change,Environmental Services,Supplies and Services,304221,Equipment and Materials,08/05/2024,4266108-1217828,"21,694.12",JOHNSONS NURSERIES LTD.
Neighbourhoods and Climate Change,Environmental Services,Supplies and Services,304221,Equipment and Materials,08/05/2024,4266108-1217928,"13,851.45",JOHNSONS NURSERIES LTD.
Regeneration Economy and Growth,Corporate Property and Land,Supplies and Services,304221,Equipment and Materials,08/05/2024,4266111-0113/00059448,801.86,JT DOVE LTD.
Neighbourhoods and Climate Change,Highways,Supplies and Services,304358,Equipment and Materials,08/05/2024,4266114-5039,752.25,KEVIN SNOWDON GROUNDWORKS LTD.
Neighbourhoods and Climate Change,Highways,Supplies and Services,304358,Equipment and Materials,08/05/2024,4266114-5040,752.25,KEVIN SNOWDON GROUNDWORKS LTD.
Neighbourhoods and Climate Change,Highways,Supplies and Services,304358,Equipment and Materials,08/05/2024,4266114-5042,590.00,KEVIN SNOWDON GROUNDWORKS LTD.
Children and Young Peoples Services,Head of Childrens Social Care,Supplies and Services,364359,Grants to Voluntary Organisations,08/05/2024,4266115-FEB2024,"1,633.00",KIDZONE.
Children and Young Peoples Services,Head of Childrens Social Care,Supplies and Services,364359,Grants to Voluntary Organisations,08/05/2024,4266115-MARCH2024,"1,604.00",KIDZONE.
Children and Young Peoples Services,Head of Education and Skills,Supplies and Services,384199,Miscellaneous Expenses,08/05/2024,4266120-ROTHIN/00001918,"3,675.00",LIVIN HOUSING LTD.
Children and Young Peoples Services,Head of Early Help Inclusion & Vulnerable Children.,Employees,080025,Agency Staff,08/05/2024,4266126-2482027,"167,041.72",MAGNIT GLOBAL GRI LTD.
Neighbourhoods and Climate Change,Environmental Services,Supplies and Services,338066,Services,08/05/2024,4266127-INV-01470,"6,347.60",MAYDENCROFT LTD.
Neighbourhoods and Climate Change,Environmental Services,Third Party Payments,430100,Rendered by Private Contractors,08/05/2024,4266128-00355/3-4/24,762.06,MCNABS BOOKS LTD.
Regeneration Economy and Growth,Culture Sport and Tourism,Supplies and Services,304252,Equipment and Materials,08/05/2024,4266130-INV-2927,625.00,MID NITE EXPRESS.
Adult and Health Services,Central/Other,Third Party Payments,440150,Other third party payments E440,08/05/2024,4266149-BCF/MAY2024,"1,906,015.00",NHS NORTH EAST & NORTH CUMBRIA ICB.
Neighbourhoods and Climate Change,Environmental Services,Supplies and Services,304403,Equipment and Materials,08/05/2024,4266152-26793,"1,420.00",NORTHERN POWER CLEAN LTD.
Adult and Health Services,Head of Adults,Supplies and Services,304516,Equipment and Materials,08/05/2024,4266157-0000206897,"1,635.99",ONLINE ERGONOMICS LTD.
Neighbourhoods and Climate Change,Highways,Stock A926,926900,Stock in hand-Inventory system,08/05/2024,4266160-BR716719,646.80,PARK ELECTRICAL DISTRIBUTORS LTD.
Neighbourhoods and Climate Change,Highways,Stock A926,926900,Stock in hand-Inventory system,08/05/2024,4266160-XL314965,"1,187.12",PARK ELECTRICAL DISTRIBUTORS LTD.
Neighbourhoods and Climate Change,Highways,Stock A926,926900,Stock in hand-Inventory system,08/05/2024,4266160-XL315348,525.00,PARK ELECTRICAL DISTRIBUTORS LTD.
Neighbourhoods and Climate Change,Highways,Stock A926,926900,Stock in hand-Inventory system,08/05/2024,4266160-XL316259,700.00,PARK ELECTRICAL DISTRIBUTORS LTD.
Children and Young Peoples Services,Head of Education and Skills,Third Party Payments,430100,Rendered by Private Contractors,08/05/2024,4266165-DL08,"12,870.00",PENSHAW VIEW TRAINING LTD.
Regeneration Economy and Growth,Culture Sport and Tourism,Supplies and Services,304259,Equipment and Materials,08/05/2024,4266172-76004,"2,595.83",PMF PRODUCTS LTD T/A LIVE 4 SPORT.
Regeneration Economy and Growth,Culture Sport and Tourism,Supplies and Services,372009,Subscriptions E372,08/05/2024,4266174-SIN2672636,802.23,PPL PRS LTD.
Children and Young Peoples Services,Head of Education and Skills,Supplies and Services,384956,Miscellaneous Expenses,08/05/2024,4266174-SIN2673118,521.48,PPL PRS LTD.
Children and Young Peoples Services,Head of Early Help Inclusion & Vulnerable Children.,Third Party Payments,410037,Rendered by Other Local Authorities,08/05/2024,4266180-0000466575,"5,140.57",PROSPERO GROUP LTD.
Children and Young Peoples Services,Head of Early Help Inclusion & Vulnerable Children.,Third Party Payments,410037,Rendered by Other Local Authorities,08/05/2024,4266180-0000470035,900.00,PROSPERO GROUP LTD.
Children and Young Peoples Services,Head of Early Help Inclusion & Vulnerable Children.,Third Party Payments,410037,Rendered by Other Local Authorities,08/05/2024,4266180-0000472349,900.00,PROSPERO GROUP LTD.
Children and Young Peoples Services,Head of Early Help Inclusion & Vulnerable Children.,Third Party Payments,410037,Rendered by Other Local Authorities,08/05/2024,4266180-0000475139,540.00,PROSPERO GROUP LTD.
Children and Young Peoples Services,Head of Childrens Social Care,Supplies and Services,338044,Services,08/05/2024,4266181-24043/1,896.73,PSYCHREP UK LTD.
Regeneration Economy and Growth,Culture Sport and Tourism,Supplies and Services,384199,Miscellaneous Expenses,08/05/2024,4266182-227,"1,000.00",PUPPETSHIP COMMUNITY INTEREST COMPANY.
Regeneration Economy and Growth,Economic Development CL0150,Supplies and Services,352001,Conference Expenses,08/05/2024,4266183-542321,500.00,QUALSAFE.COM.
Regeneration Economy and Growth,Culture Sport and Tourism,Supplies and Services,340001,Postages E340,08/05/2024,4266193-1802753566,955.00,ROYAL MAIL GROUP PLC.
Resources BK0010,Transactional & Customer Services,Supplies and Services,340001,Postages E340,08/05/2024,4266193-9070027044,"24,759.36",ROYAL MAIL GROUP PLC.
Neighbourhoods and Climate Change,Environmental Services,Third Party Payments,430100,Rendered by Private Contractors,08/05/2024,4266196-7994,960.00,SAFE STRIP UK LTD.
Children and Young Peoples Services,Head of Education and Skills,Construction work A908,908105,Construction work,08/05/2024,4266196-8022,"1,450.00",SAFE STRIP UK LTD.
Neighbourhoods and Climate Change,Partnerships & Community Engagement Div.,Supplies and Services,384086,Miscellaneous Expenses,08/05/2024,4266205-VOUCHER23NB-DCTY028,"2,250.00",SHINCLIFFE COMMUNITY ASSOCIATION.
Children and Young Peoples Services,Head of Education and Skills,Third Party Payments,440999,Other third party payments E440,08/05/2024,4266208-DW3-ESF/YEI-Q4,"14,657.85",SPRINGBOARD SUNDERLAND TRUST.
Regeneration Economy and Growth,Transport and Contract Services,Third Party Payments,430100,Rendered by Private Contractors,08/05/2024,4266212-CONCFARE-PAY24-1APRV1,"5,310.04",STANLEY TRAVEL (NORTH EAST) LTD.
Neighbourhoods and Climate Change,Highways,Supplies and Services,304221,Equipment and Materials,08/05/2024,4266215-48411,"1,943.78",STONEGRAVE AGGREGATES LTD.
Adult and Health Services,Commissioning inc Supporting People,Transport,240045,Car allowances E240,08/05/2024,4266219-12578,"3,776.39",SUPPORTIVE SRC LTD.
Regeneration Economy and Growth,Transport and Contract Services,Third Party Payments,430106,Rendered by Private Contractors,08/05/2024,4266219-12586,"9,980.20",SUPPORTIVE SRC LTD.
Regeneration Economy and Growth,Transport and Contract Services,Construction work A908,908105,Construction work,08/05/2024,4266220-900257027,"26,739.21",SWARCO UK & IRELAND LTD.
Regeneration Economy and Growth,Transport and Contract Services,Supplies and Services,384199,Miscellaneous Expenses,08/05/2024,4266220-900261091,"3,429.14",SWARCO UK & IRELAND LTD.
Regeneration Economy and Growth,Corporate Property and Land,Supplies and Services,304221,Equipment and Materials,08/05/2024,4266222-1179227,859.34,T CROSSLING & CO LTD.
Regeneration Economy and Growth,Corporate Property and Land,Supplies and Services,304221,Equipment and Materials,08/05/2024,4266222-1179260,543.59,T CROSSLING & CO LTD.
Regeneration Economy and Growth,Corporate Property and Land,Supplies and Services,304221,Equipment and Materials,08/05/2024,4266222-1179400,719.42,T CROSSLING & CO LTD.
Neighbourhoods and Climate Change,Highways,Supplies and Services,304221,Equipment and Materials,08/05/2024,4266223-9048259626,866.86,TARMAC TRADING LTD.
Neighbourhoods and Climate Change,Highways,Supplies and Services,304221,Equipment and Materials,08/05/2024,4266223-9048259627,971.30,TARMAC TRADING LTD.
Neighbourhoods and Climate Change,Highways,Stock A926,926900,Stock in hand-Inventory system,08/05/2024,4266229-NSIN00112132,"2,857.91",THOMAS OWEN & SONS (NEWCASTLE) LTD.
Neighbourhoods and Climate Change,Highways,Stock A926,926900,Stock in hand-Inventory system,08/05/2024,4266229-NSIN00112134,"2,964.85",THOMAS OWEN & SONS (NEWCASTLE) LTD.
Neighbourhoods and Climate Change,Highways,Supplies and Services,389001,Inventory Related,08/05/2024,4266229-NSIN00112135,886.29,THOMAS OWEN & SONS (NEWCASTLE) LTD.
Chief Executives Office,Legal & Democratic Services,Supplies and Services,338042,Services,08/05/2024,4266236-305172/INVRSU375,"2,780.00",TRINITY CHAMBERS.
Neighbourhoods and Climate Change,Highways,Supplies and Services,304221,Equipment and Materials,08/05/2024,4266238-259145,"1,003.50",TYNEDALE ROADSTONE LTD.
Neighbourhoods and Climate Change,Highways,Supplies and Services,304221,Equipment and Materials,08/05/2024,4266238-259146,963.20,TYNEDALE ROADSTONE LTD.
Neighbourhoods and Climate Change,Highways,Supplies and Services,304221,Equipment and Materials,08/05/2024,4266238-259147,"1,014.00",TYNEDALE ROADSTONE LTD.
Neighbourhoods and Climate Change,Highways,Supplies and Services,304221,Equipment and Materials,08/05/2024,4266238-259148,889.71,TYNEDALE ROADSTONE LTD.
Neighbourhoods and Climate Change,Highways,Supplies and Services,304221,Equipment and Materials,08/05/2024,4266238-259152,"1,598.08",TYNEDALE ROADSTONE LTD.
Neighbourhoods and Climate Change,Highways,Supplies and Services,304221,Equipment and Materials,08/05/2024,4266238-259153,"1,593.61",TYNEDALE ROADSTONE LTD.
Neighbourhoods and Climate Change,Environmental Services,Supplies and Services,342215,Computers and Communications,08/05/2024,4266240-58880,"4,142.00",UK TELEMATICS LTD.
Neighbourhoods and Climate Change,Environmental Services,Supplies and Services,304221,Equipment and Materials,08/05/2024,4266245-2024R0303-002702,609.84,VOLMARY LTD.
Neighbourhoods and Climate Change,Environmental Services,Supplies and Services,304259,Equipment and Materials,08/05/2024,4266246-30276,"1,502.55",WARD TIMBER LTD.
Regeneration Economy and Growth,Transport and Contract Services,Third Party Payments,430100,Rendered by Private Contractors,08/05/2024,4266247-CONCFARE-PAY24-1APRV1,"18,430.29",WEARDALE MOTOR SERVICES LTD.
Regeneration Economy and Growth,Corporate Property and Land,Third Party Payments,430100,Rendered by Private Contractors,08/05/2024,4266250-61144,"3,703.95",WILLOWCRETE MANUFACTURING COMPANY LTD (MFG).
Regeneration Economy and Growth,Corporate Property and Land,Third Party Payments,430100,Rendered by Private Contractors,08/05/2024,4266250-61146,615.00,WILLOWCRETE MANUFACTURING COMPANY LTD (MFG).
Neighbourhoods and Climate Change,Environmental Services,Supplies and Services,384700,Miscellaneous Expenses,08/05/2024,319796-RES-04-2024-1081,"4,786.50",REDACTED - PAYMENT TO INDIVIDUAL
Regeneration Economy and Growth,Corporate Property and Land,Supplies and Services,304221,Equipment and Materials,08/05/2024,4266066-594929,"5,443.81",REDACTED - PAYMENT TO INDIVIDUAL
Regeneration Economy and Growth,Culture Sport and Tourism,Third Party Payments,430131,Rendered by Private Contractors,08/05/2024,4266100-3,888.00,REDACTED - PAYMENT TO INDIVIDUAL
Children and Young Peoples Services,Head of Childrens Social Care,Supplies and Services,338066,Services,08/05/2024,4266124-33,"1,767.40",REDACTED - PAYMENT TO INDIVIDUAL
Regeneration Economy and Growth,Planning & Housing,Supplies and Services,364501,Grants to Voluntary Organisations,08/05/2024,4266102-INV0001,575.00,REDACTED - PAYMENT TO INDIVIDUAL
Adult and Health Services,Public Health CC0450,Third Party Payments,460803,Contract Payments,09/05/2024,4266542-1656,"1,300.00",CATALYST STOCKTON ON TEES LTD.
Regeneration Economy and Growth,Corporate Property and Land,Supplies and Services,332047,Printing Stationery and Gen Off Exps,09/05/2024,4266644-0000639993,509.45,DIGITAL ID LTD.
Children and Young Peoples Services,Head of Early Help Inclusion & Vulnerable Children.,Supplies and Services,304516,Equipment and Materials,09/05/2024,4266646-INV-141056,"1,168.00",DIVERSITY & ABILITY LTD.
Neighbourhoods and Climate Change,Environmental Services,Construction work A908,908112,Capital - Drainage,09/05/2024,4266653-INV02915,"6,426.00",DRAGON DRILLING (LANDFILL) LTD.
Neighbourhoods and Climate Change,Partnerships & Community Engagement Div.,Supplies and Services,384086,Miscellaneous Expenses,09/05/2024,4267162-VOUCHER23NB-SPEN030,"2,400.00",STAR FUNDRAISING GROUP.
Regeneration Economy and Growth,Planning & Housing,Supplies and Services,336005,Advertising E336,09/05/2024,4267187-2941,"3,300.00",TABLETALK MEDIA LTD.
Neighbourhoods and Climate Change,Highways,Supplies and Services,338027,Services,09/05/2024,4266262-7055,"2,580.00",ACADEMY GEOMATICS LTD.
Adult and Health Services,Public Health CC0450,Third Party Payments,460803,Contract Payments,09/05/2024,4266434-INV09808,750.00,ADFERIAD RECOVERY LTD.
Adult and Health Services,Public Health CC0450,Third Party Payments,460803,Contract Payments,09/05/2024,4266434-INV09811,"2,750.00",ADFERIAD RECOVERY LTD.
Neighbourhoods and Climate Change,Highways,Supplies and Services,304221,Equipment and Materials,09/05/2024,4266436-35885878,552.42,AGGREGATE INDUSTRIES UK LTD.
Regeneration Economy and Growth,Business Durham,Supplies and Services,308011,Furniture,09/05/2024,4266445-181366,"1,938.00",ALBANY OFFICE EQUIPMENT (WHOLESALE) LTD.
Regeneration Economy and Growth,Corporate Property and Land,Third Party Payments,430100,Rendered by Private Contractors,09/05/2024,4266459-SI30432,"2,475.00",AMBIC LTD.
Regeneration Economy and Growth,Corporate Property and Land,Third Party Payments,430100,Rendered by Private Contractors,09/05/2024,4266492-21123,"2,052.00",ASTRAL CONTROL SERVICES LTD.
Children and Young Peoples Services,Head of Education and Skills,Transport,230034,Contract Hire,09/05/2024,4266493-3101APR4,"1,536.00",AT TAXIS LTD.
Children and Young Peoples Services,Head of Education and Skills,Transport,230003,Contract Hire,09/05/2024,4266495-3341-0424,"1,909.80",AUCKLAND TRAVEL.
Children and Young Peoples Services,Head of Education and Skills,Transport,230008,Contract Hire,09/05/2024,4266495-A031-0424,"2,750.00",AUCKLAND TRAVEL.
Children and Young Peoples Services,Head of Education and Skills,Transport,230008,Contract Hire,09/05/2024,4266495-A065-0424,"2,244.00",AUCKLAND TRAVEL.
Children and Young Peoples Services,Head of Education and Skills,Transport,230008,Contract Hire,09/05/2024,4266495-S022-0424,"2,060.40",AUCKLAND TRAVEL.
Children and Young Peoples Services,Head of Education and Skills,Transport,230008,Contract Hire,09/05/2024,4266495-W061-0424,"1,815.00",AUCKLAND TRAVEL.
Children and Young Peoples Services,Head of Education and Skills,Transport,230008,Contract Hire,09/05/2024,4266495-W141-0424,"2,140.00",AUCKLAND TRAVEL.
Children and Young Peoples Services,Head of Education and Skills,Transport,230008,Contract Hire,09/05/2024,4266495-W150-0424,"2,250.00",AUCKLAND TRAVEL.
Children and Young Peoples Services,Head of Education and Skills,Transport,230008,Contract Hire,09/05/2024,4266495-W161-0424,"1,400.00",AUCKLAND TRAVEL.
Children and Young Peoples Services,Head of Education and Skills,Transport,230008,Contract Hire,09/05/2024,4266495-W200-0424,"1,870.00",AUCKLAND TRAVEL.
Neighbourhoods and Climate Change,Environmental Services,Supplies and Services,336005,Advertising E336,09/05/2024,4266500-GDO1024NW,562.50,BEAU BUSINESS MEDIA LTD.
Neighbourhoods and Climate Change,Environmental Services,Transport,210057,Repair and Maintenance of Vehicles,09/05/2024,4266501-35265681,657.97,BELL TRUCK SALES LTD T/A BELL TRUCK & VAN.
Neighbourhoods and Climate Change,Environmental Services,Transport,210057,Repair and Maintenance of Vehicles,09/05/2024,4266502-35265442,"2,221.85",BELL TRUCK SALES LTD T/A BELL TRUCK & VAN.
Neighbourhoods and Climate Change,Partnerships & Community Engagement Div.,Supplies and Services,384086,Miscellaneous Expenses,09/05/2024,4266505-VOUCHER23NB-DVLY002,"9,000.00",BENFIELDSIDE BLACKHILL BRIDGEHILL & SHOTLEY BRIDGE COMMUNITY PARTNERSHIP.
Children and Young Peoples Services,Head of Education and Skills,Transport,230007,Contract Hire,09/05/2024,4266507-4517APR24,"1,605.60",BENNETTS TAXIS.
Regeneration Economy and Growth,Corporate Property and Land,Third Party Payments,430100,Rendered by Private Contractors,09/05/2024,4266511-10271416,"5,640.00",BEVAN BRITTAN LLP.
Children and Young Peoples Services,Head of Education and Skills,Transport,230008,Contract Hire,09/05/2024,4266513-1-E202APR24,"1,920.00",BH TRAVEL.
Adult and Health Services,Head of Adults,Transport,230005,Contract Hire,09/05/2024,4266515-0858,915.20,BIRDS TAXIS LTD.
Children and Young Peoples Services,Head of Education and Skills,Transport,230034,Contract Hire,09/05/2024,4266517-1011-0424,"1,320.00",BL TAXIS.
Children and Young Peoples Services,Head of Education and Skills,Transport,230034,Contract Hire,09/05/2024,4266520-1279,"2,421.96",BON VOYAGE TAXIS LTD.
Neighbourhoods and Climate Change,Highways,Supplies and Services,304221,Equipment and Materials,09/05/2024,4266522-21725640,570.29,BREEDON TRADING LTD.
Regeneration Economy and Growth,Culture Sport and Tourism,Premises,145023,Cleaning and Domestic Supplies,09/05/2024,4266523-22SI2299135,738.00,BRENNTAG UK LTD.
Children and Young Peoples Services,Head of Education and Skills,Third Party Payments,430100,Rendered by Private Contractors,09/05/2024,4266525-34,"13,513.50",BROADSIDE CREATIVES CIC.
Regeneration Economy and Growth,Transport and Contract Services,Construction work A908,908105,Construction work,09/05/2024,4266529-03093,"3,716.43",BUS SHELTERS LTD.
Regeneration Economy and Growth,Transport and Contract Services,Construction work A908,908105,Construction work,09/05/2024,4266529-30932,"3,736.84",BUS SHELTERS LTD.
Regeneration Economy and Growth,Corporate Property and Land,Third Party Payments,430100,Rendered by Private Contractors,09/05/2024,4266544-12681,"1,392.21",CATHEDRAL LOCK & SAFE SERVICES LTD.
Children and Young Peoples Services,Head of Education and Skills,Transport,230035,Contract Hire,09/05/2024,4266549-106,"1,213.32",CHANNER`S CABS.
Children and Young Peoples Services,Head of Education and Skills,Transport,230006,Contract Hire,09/05/2024,4266549-107,560.00,CHANNER`S CABS.
Regeneration Economy and Growth,Culture Sport and Tourism,Premises,145023,Cleaning and Domestic Supplies,09/05/2024,4266570-CN30358201,685.32,CITRON HYGIENE UK LTD.
Regeneration Economy and Growth,Culture Sport and Tourism,Premises,145023,Cleaning and Domestic Supplies,09/05/2024,4266570-CN30358202,"1,407.12",CITRON HYGIENE UK LTD.
Regeneration Economy and Growth,Culture Sport and Tourism,Premises,145050,Cleaning and Domestic Supplies,09/05/2024,4266570-CN30358204,"4,033.68",CITRON HYGIENE UK LTD.
Regeneration Economy and Growth,Corporate Property and Land,Third Party Payments,430100,Rendered by Private Contractors,09/05/2024,4266585-106890,976.04,COMPLIANCE GROUP ELECTRICAL LTD.
Adult and Health Services,Public Health CC0450,Third Party Payments,460803,Contract Payments,09/05/2024,4266591-3910023082,"11,995.83",COUNTY DURHAM & DARLINGTON NHS FOUNDATION TRUST (CDDFT).
Adult and Health Services,Public Health CC0450,Third Party Payments,460803,Contract Payments,09/05/2024,4266591-3910023084,"6,448.22",COUNTY DURHAM & DARLINGTON NHS FOUNDATION TRUST (CDDFT).
Adult and Health Services,Public Health CC0450,Third Party Payments,460803,Contract Payments,09/05/2024,4266591-3910023090,"13,227.83",COUNTY DURHAM & DARLINGTON NHS FOUNDATION TRUST (CDDFT).
Adult and Health Services,Public Health CC0450,Third Party Payments,460803,Contract Payments,09/05/2024,4266591-3910023091,"11,995.83",COUNTY DURHAM & DARLINGTON NHS FOUNDATION TRUST (CDDFT).
Children and Young Peoples Services,Head of Early Help Inclusion & Vulnerable Children.,Supplies and Services,324500,Provisions E324,09/05/2024,4266594-25832,"20,184.21",CREATIVE MANAGEMENT SERVICES LTD.
Children and Young Peoples Services,Head of Education and Skills,Transport,230034,Contract Hire,09/05/2024,4266595-117488,"1,045.60",CROFT BUSINESS SERVICES LTD T/A CROFT TRAVEL.
Adult and Health Services,Public Health CC0450,Third Party Payments,460803,Contract Payments,09/05/2024,4266599-8211,"14,508.00",CYBER MEDIA SOLUTIONS LTD.
Adult and Health Services,Public Health CC0450,Third Party Payments,460803,Contract Payments,09/05/2024,4266599-8216,"11,250.00",CYBER MEDIA SOLUTIONS LTD.
Children and Young Peoples Services,Head of Education and Skills,Transport,230034,Contract Hire,09/05/2024,4266602-4538-0424,"1,015.32",DALELINK PRIVATE HIRE.
Children and Young Peoples Services,Head of Education and Skills,Transport,230007,Contract Hire,09/05/2024,4266610-612,"2,820.00",DANNY`S TRAVEL.
Resources BK0010,Digital Services,Vehicles Equipment Furniture and Fittings,912701,Computer equipment,09/05/2024,4266635-7100064881,"119,400.00",DELL COMPUTER CORPORATION LTD.
Neighbourhoods and Climate Change,Environmental Services,Transport,210057,Repair and Maintenance of Vehicles,09/05/2024,4266636-96457577,"1,095.50",DENNIS EAGLE LTD T/A TERBERG MATEC (UK) LTD.
Regeneration Economy and Growth,Planning & Housing,Supplies and Services,384999,Miscellaneous Expenses,09/05/2024,4266638-068,739.41,DENTON MANAGEMENT LTD.
Chief Executives Office,Legal & Democratic Services,Supplies and Services,338042,Services,09/05/2024,4266640-388966/INVCF526,775.00,DERE STREET BARRISTERS.
Neighbourhoods and Climate Change,Environmental Services,Supplies and Services,338066,Services,09/05/2024,4266645-INV-0662,"1,994.00",DIGVENTURES LTD.
Regeneration Economy and Growth,Culture Sport and Tourism,Supplies and Services,338047,Services,09/05/2024,4266656-2/24,"3,314.00",DURHAM DRAMATIC SOCIETY.
Neighbourhoods and Climate Change,Partnerships & Community Engagement Div.,Cap Exp on Grants & Other Financial Assistance (REFCUS),918004,Contributions to other bodies 918004,09/05/2024,4266660-VOUCHER23NB-EDUR057,"10,000.00",EASINGTON COLLIERY PARISH COUNCIL.
Neighbourhoods and Climate Change,Environmental Services,Transport,230005,Contract Hire,09/05/2024,4266685-8210250,"1,464.44",ENTERPRISE FLEX-E-RENT T/A BURNT TREE GROUP LTD.
Neighbourhoods and Climate Change,Environmental Services,Transport,230005,Contract Hire,09/05/2024,4266685-8210256,572.88,ENTERPRISE FLEX-E-RENT T/A BURNT TREE GROUP LTD.
Neighbourhoods and Climate Change,Environmental Services,Transport,230005,Contract Hire,09/05/2024,4266685-8210259,572.88,ENTERPRISE FLEX-E-RENT T/A BURNT TREE GROUP LTD.
Neighbourhoods and Climate Change,Environmental Services,Transport,230005,Contract Hire,09/05/2024,4266685-8210260,608.53,ENTERPRISE FLEX-E-RENT T/A BURNT TREE GROUP LTD.
Neighbourhoods and Climate Change,Environmental Services,Transport,230005,Contract Hire,09/05/2024,4266685-8211820,687.06,ENTERPRISE FLEX-E-RENT T/A BURNT TREE GROUP LTD.
Neighbourhoods and Climate Change,Environmental Services,Supplies and Services,384899,Miscellaneous Expenses,09/05/2024,4266686-Y00012561T,"4,599.90",ENVIRONMENT AGENCY.
Children and Young Peoples Services,Head of Education and Skills,Third Party Payments,430100,Rendered by Private Contractors,09/05/2024,4266695-SI-3951,"3,861.00",EVOLUTION TRAINING & CONSULTANCY SERVICES LTD.
Regeneration Economy and Growth,Corporate Property and Land,Construction work A908,908105,Construction work,09/05/2024,4266697-131148/33,950.00,FAIRHURST GROUP LLP.
Regeneration Economy and Growth,Transport and Contract Services,Third Party Payments,430106,Rendered by Private Contractors,09/05/2024,4266698-PPT4123/PPT3671-2024,960.00,FERRYHILL VILLAGE TRAVEL.
Children and Young Peoples Services,Head of Education and Skills,Supplies and Services,372009,Subscriptions E372,09/05/2024,4266699-SI-004187,"4,418.30",FFT EDUCATION LTD.
Neighbourhoods and Climate Change,Environmental Services,Third Party Payments,430100,Rendered by Private Contractors,09/05/2024,4266705-124857,850.72,FR SHARROCK LTD.
Children and Young Peoples Services,Head of Education and Skills,Third Party Payments,410037,Rendered by Other Local Authorities,09/05/2024,4266711-68797,622.00,FRONTING THE CHALLENGE PROJECTS LTD T/A THRIVE APPROACH.
Children and Young Peoples Services,Head of Education and Skills,Transport,230007,Contract Hire,09/05/2024,4266717-25522,"3,768.00",GARNETTS LTD (COACHES).
Children and Young Peoples Services,Head of Education and Skills,Transport,230007,Contract Hire,09/05/2024,4266717-25525,"3,540.00",GARNETTS LTD (COACHES).
Neighbourhoods and Climate Change,Highways,Supplies and Services,304221,Equipment and Materials,09/05/2024,4266735-SI884318,"4,165.64",GLASDON UK LTD.
Neighbourhoods and Climate Change,Highways,Stock A926,926900,Stock in hand-Inventory system,09/05/2024,4266741-06/267597,"1,917.01",GREENHAM TRADING LTD.
Neighbourhoods and Climate Change,Environmental Services,Transport,210057,Repair and Maintenance of Vehicles,09/05/2024,4266743-285608,"1,398.67",GREENLAY T/A THOMAS SHERRIFF & CO LTD.
Children and Young Peoples Services,Head of Education and Skills,Third Party Payments,430100,Rendered by Private Contractors,09/05/2024,4266746-DL160424,"17,910.75",HANDCRAFTED PROJECTS.
Neighbourhoods and Climate Change,Highways,Third Party Payments,430100,Rendered by Private Contractors,09/05/2024,4266758-3655,"9,780.00",HIGHWAY CONSTRUCTION SERVICES LTD.
Children and Young Peoples Services,Head of Education and Skills,Transport,230007,Contract Hire,09/05/2024,4266759-24988,"2,640.00",HODGSONS COACH OPERATORS LTD.
Dedicated Schools Grant BG0015,DSG High Needs Block,Third Party Payments,440110,Other third party payments E440,09/05/2024,4266761-RES-05-2024-109,"181,754.00",HOPE WOOD ACADEMY.
Adult and Health Services,Public Health CC0450,Third Party Payments,460803,Contract Payments,09/05/2024,4266763-SI-HK-002319,"427,557.49",HUMANKIND CHARITY.
Resources BK0010,Corporate Finance & Commercial Services,Supplies and Services,338066,Services,09/05/2024,4266765-6184,875.00,HW CONTROLS & ASSURANCE LTD T/A VALIDERA.
Neighbourhoods and Climate Change,Environmental Services,Third Party Payments,430113,Rendered by Private Contractors,09/05/2024,4266766-W241618,"36,742.75",HW MARTIN HOLDINGS LTD.
Neighbourhoods and Climate Change,Environmental Services,Supplies and Services,304259,Equipment and Materials,09/05/2024,4266777-CD-41002401644,"16,090.80",IPL PLASTICS (UK) LTD T/A IPL HULL.
Neighbourhoods and Climate Change,Environmental Services,Supplies and Services,304221,Equipment and Materials,09/05/2024,4266781-202406911,678.18,J VAN VLIET GATESHEAD LTD.
Children and Young Peoples Services,Head of Education and Skills,Transport,230007,Contract Hire,09/05/2024,4266782-6647,"1,008.00",J YOUNG T/A VIP TAXIS.
Children and Young Peoples Services,Head of Education and Skills,Transport,230006,Contract Hire,09/05/2024,4266782-6648,836.77,J YOUNG T/A VIP TAXIS.
Children and Young Peoples Services,Head of Education and Skills,Transport,230006,Contract Hire,09/05/2024,4266782-6649,"1,102.80",J YOUNG T/A VIP TAXIS.
Regeneration Economy and Growth,Transport and Contract Services,Third Party Payments,460151,Contract Payments,09/05/2024,4266783-29097,"2,761.42",JACK COUPE & SONS LTD T/A COUPE LINE.
Neighbourhoods and Climate Change,Environmental Services,Third Party Payments,460350,Contract Payments,09/05/2024,4266820-8359,"1,080.00",JMC LANDSCAPES.
Regeneration Economy and Growth,Culture Sport and Tourism,Supplies and Services,304259,Equipment and Materials,09/05/2024,4266843-213113,812.00,JP LENNARD LTD.
Neighbourhoods and Climate Change,Highways,Stock A926,926900,Stock in hand-Inventory system,09/05/2024,4266845-0113/00059515,"1,540.00",JT DOVE LTD.
Children and Young Peoples Services,Head of Education and Skills,Transport,230010,Contract Hire,09/05/2024,4266883-BL008-0424,"1,571.10",LAUREN`S TAXIS.
Regeneration Economy and Growth,Corporate Property and Land,Supplies and Services,304221,Equipment and Materials,09/05/2024,4266888-111106,598.00,LEISURETEQ LTD.
Neighbourhoods and Climate Change,Highways,Supplies and Services,338066,Services,09/05/2024,4266904-200003,"1,950.00",LUCION ENVIRONMENTAL LLP LTD.
Resources BK0010,Digital Services,Supplies and Services,344137,Telephones,09/05/2024,4266917-12663190,"252,268.69",MAINTEL EUROPE LTD.
Children and Young Peoples Services,Head of Education and Skills,Transport,230007,Contract Hire,09/05/2024,4266926-3021 APRIL 2024,"2,256.00",MARK & JOHN CHISHOLM T/A (CHEVRON).
Children and Young Peoples Services,Head of Education and Skills,Transport,230008,Contract Hire,09/05/2024,4266926-E048 APRIL 2024,"2,688.00",MARK & JOHN CHISHOLM T/A (CHEVRON).
Children and Young Peoples Services,Head of Education and Skills,Transport,230008,Contract Hire,09/05/2024,4266926-E119 APRIL 2024,"2,060.16",MARK & JOHN CHISHOLM T/A (CHEVRON).
Children and Young Peoples Services,Head of Education and Skills,Transport,230006,Contract Hire,09/05/2024,4266926-F138-FEBRUARY2024,"3,344.95",MARK & JOHN CHISHOLM T/A (CHEVRON).
Adult and Health Services,Commissioning inc Supporting People,Third Party Payments,486046,Service level agreements E486,09/05/2024,4267013-62835,"5,827.87",NATIONAL YOUTH ADVOCACY SERVICE.
Neighbourhoods and Climate Change,Environmental Services,Transport,210057,Repair and Maintenance of Vehicles,09/05/2024,4267015-INVHE86643,"1,354.22",NE TRUCK SPARES LTD (NETS).
Chief Executives Office,Legal & Democratic Services,Supplies and Services,338101,Services,09/05/2024,4267023-3010061798,751.75,NEWCASTLE UPON TYNE HOSPITALS NHS FOUNDATION TRUST.
Neighbourhoods and Climate Change,Environmental Services,Transport,210057,Repair and Maintenance of Vehicles,09/05/2024,4267033-1930585,516.27,NORTH EAST TRUCK & VAN LTD.
Neighbourhoods and Climate Change,Environmental Services,Transport,210057,Repair and Maintenance of Vehicles,09/05/2024,4267033-1930647,584.82,NORTH EAST TRUCK & VAN LTD.
Neighbourhoods and Climate Change,Environmental Services,Transport,210057,Repair and Maintenance of Vehicles,09/05/2024,4267033-1930802,583.27,NORTH EAST TRUCK & VAN LTD.
Neighbourhoods and Climate Change,Environmental Services,Transport,210057,Repair and Maintenance of Vehicles,09/05/2024,4267033-1930980,"1,530.82",NORTH EAST TRUCK & VAN LTD.
Neighbourhoods and Climate Change,Environmental Services,Transport,210057,Repair and Maintenance of Vehicles,09/05/2024,4267033-21926298,789.60,NORTH EAST TRUCK & VAN LTD.
Regeneration Economy and Growth,Corporate Property and Land,Construction work A908,908105,Construction work,09/05/2024,4267036-DI20425295,"2,809.92",NORTHERN POWERGRID (NORTHEAST) LTD.
Regeneration Economy and Growth,Corporate Property and Land,Supplies and Services,304221,Equipment and Materials,09/05/2024,4267037-1167788,"1,367.80",NORTHERN TOOLS & ACCESSORIES.
Adult and Health Services,Public Health CC0450,Third Party Payments,460803,Contract Payments,09/05/2024,4267077-18808/18,"7,993.75",PIONEERING CARE PARTNERSHIP.
Children and Young Peoples Services,Head of Childrens Social Care,Third Party Payments,440047,Other third party payments E440,09/05/2024,4267084-1,"2,031.21",QUALITY & CARE SOLUTIONS LTD.
Children and Young Peoples Services,Head of Childrens Social Care,Third Party Payments,440046,Other third party payments E440,09/05/2024,4267084-1JW,"11,363.00",QUALITY & CARE SOLUTIONS LTD.
Children and Young Peoples Services,Head of Childrens Social Care,Third Party Payments,440046,Other third party payments E440,09/05/2024,4267084-2JW,"25,063.50",QUALITY & CARE SOLUTIONS LTD.
Children and Young Peoples Services,Head of Childrens Social Care,Third Party Payments,440046,Other third party payments E440,09/05/2024,4267084-3,"5,070.00",QUALITY & CARE SOLUTIONS LTD.
Neighbourhoods and Climate Change,Highways,Third Party Payments,430100,Rendered by Private Contractors,09/05/2024,4267086-15707,522.36,QUANTUM POWER CONNECTIONS LTD.
Neighbourhoods and Climate Change,Highways,Third Party Payments,430100,Rendered by Private Contractors,09/05/2024,4267086-15708,"6,534.35",QUANTUM POWER CONNECTIONS LTD.
Neighbourhoods and Climate Change,Highways,Third Party Payments,430100,Rendered by Private Contractors,09/05/2024,4267086-15709,"10,940.36",QUANTUM POWER CONNECTIONS LTD.
Children and Young Peoples Services,Head of Education and Skills,Transport,230008,Contract Hire,09/05/2024,4267113-004-N056APR24,"2,368.44",RONS TAXI (CHESTER LE ST).
Children and Young Peoples Services,Head of Education and Skills,Transport,230007,Contract Hire,09/05/2024,4267118-ROXDCC342F,"8,320.00",ROXBYS BUS HIRE.
Regeneration Economy and Growth,Corporate Property and Land,Supplies and Services,338066,Services,09/05/2024,4267129-3626,"1,850.00",SANDERSON WEATHERALL LLP.
Children and Young Peoples Services,Head of Education and Skills,Transport,230034,Contract Hire,09/05/2024,4267130-1014-0424,"1,080.00",SANDMAN TAXIS.
Children and Young Peoples Services,Head of Education and Skills,Transport,230007,Contract Hire,09/05/2024,4267139-0778,"2,125.00",SHAWS OF DURHAM COACH HIRE.
Children and Young Peoples Services,Head of Education and Skills,Transport,230007,Contract Hire,09/05/2024,4267143-3720,946.00,SIMONS TAXIS.
Neighbourhoods and Climate Change,Highways,Stock A926,926900,Stock in hand-Inventory system,09/05/2024,4267145-1819,"3,996.00",SNAPFAST LTD.
Neighbourhoods and Climate Change,Highways,Stock A926,926900,Stock in hand-Inventory system,09/05/2024,4267145-1820,"2,664.00",SNAPFAST LTD.
Children and Young Peoples Services,Head of Education and Skills,Transport,230008,Contract Hire,09/05/2024,4267151-CB500105,824.80,SPENNYMOOR TAXIS.
Children and Young Peoples Services,Head of Education and Skills,Transport,230008,Contract Hire,09/05/2024,4267151-GLIAS500106,"1,400.00",SPENNYMOOR TAXIS.
Children and Young Peoples Services,Head of Education and Skills,Transport,230035,Contract Hire,09/05/2024,4267151-LL500102,"1,946.88",SPENNYMOOR TAXIS.
Children and Young Peoples Services,Head of Education and Skills,Transport,230008,Contract Hire,09/05/2024,4267151-PJMCL500103,"2,035.40",SPENNYMOOR TAXIS.
Children and Young Peoples Services,Head of Education and Skills,Transport,230007,Contract Hire,09/05/2024,4267151-WPA500104,"1,680.00",SPENNYMOOR TAXIS.
Neighbourhoods and Climate Change,Environmental Services,Third Party Payments,430113,Rendered by Private Contractors,09/05/2024,4267153-0001920302,"2,147.09",SRCL LTD.
Children and Young Peoples Services,Head of Education and Skills,Third Party Payments,430100,Rendered by Private Contractors,09/05/2024,4267160-549,"6,756.75",STANLEY EVENTS LTD.
Children and Young Peoples Services,Head of Education and Skills,Transport,230007,Contract Hire,09/05/2024,4267161-65044,"4,044.00",STANLEY TRAVEL (NORTH EAST) LTD.
Regeneration Economy and Growth,Culture Sport and Tourism,Supplies and Services,338047,Services,09/05/2024,4267173-60272308,604.67,STUDIOCANAL LTD.
Regeneration Economy and Growth,Planning & Housing,Supplies and Services,364501,Grants to Voluntary Organisations,09/05/2024,4267185-SYL220373,"1,098.00",SYLVESTER PROPERTIES LTD.
Neighbourhoods and Climate Change,Partnerships & Community Engagement Div.,Cap Exp on Grants & Other Financial Assistance (REFCUS),918004,Contributions to other bodies 918004,09/05/2024,4267189-VOUCHER23NB-STAN021,"4,250.00",TANTOBIE ASSOCIATION FOR SPORT & THE COMMUNITY.
Neighbourhoods and Climate Change,Highways,Stock A926,926900,Stock in hand-Inventory system,09/05/2024,4267191-9048272323,509.70,TARMAC TRADING LTD.
Neighbourhoods and Climate Change,Highways,Stock A926,926900,Stock in hand-Inventory system,09/05/2024,4267191-9048272335,"1,087.96",TARMAC TRADING LTD.
Neighbourhoods and Climate Change,Highways,Supplies and Services,304221,Equipment and Materials,09/05/2024,4267191-9048301709,"1,166.40",TARMAC TRADING LTD.
Neighbourhoods and Climate Change,Environmental Services,Third Party Payments,430100,Rendered by Private Contractors,09/05/2024,4267193-117945,"2,032.22",TAYLOR & BRAITHWAITE LTD.
Children and Young Peoples Services,Head of Education and Skills,Transport,230007,Contract Hire,09/05/2024,4267194-2099,"1,896.00",TAYLOR`S TAXIS.
Neighbourhoods and Climate Change,Highways,Supplies and Services,336005,Advertising E336,09/05/2024,4267198-19749,918.00,TEESDALE MERCURY LTD.
Children and Young Peoples Services,Head of Education and Skills,Transport,230006,Contract Hire,09/05/2024,4267215-1-APR24,"2,400.00",TONYS TAXIS (J BIRCH).
Regeneration Economy and Growth,Corporate Property and Land,Supplies and Services,304221,Equipment and Materials,09/05/2024,4267217-41926,"2,766.00",TOTAL PUMP SOLUTIONS LTD.
Neighbourhoods and Climate Change,Partnerships & Community Engagement Div.,Cap Exp on Grants & Other Financial Assistance (REFCUS),918004,Contributions to other bodies 918004,09/05/2024,4267218-VOUCHER24NB-3TWN003,"4,468.00",TOW LAW TOWN AFC.
Children and Young Peoples Services,Head of Early Help Inclusion & Vulnerable Children.,Supplies and Services,384871,Miscellaneous Expenses,09/05/2024,4267221-INUK13792,"1,006.50",TRIPLE P UK LTD.
Adult and Health Services,Public Health CC0450,Third Party Payments,460803,Contract Payments,09/05/2024,4267222-SI-TPL-00085885,"1,855.00",TURNING POINT (SERVICES) LTD.
Neighbourhoods and Climate Change,Highways,Supplies and Services,304221,Equipment and Materials,09/05/2024,4267223-256473,"4,390.65",TYNEDALE ROADSTONE LTD.
Neighbourhoods and Climate Change,Highways,Supplies and Services,304221,Equipment and Materials,09/05/2024,4267223-258915,508.86,TYNEDALE ROADSTONE LTD.
Neighbourhoods and Climate Change,Highways,Supplies and Services,304221,Equipment and Materials,09/05/2024,4267223-258924,"1,016.98",TYNEDALE ROADSTONE LTD.
Neighbourhoods and Climate Change,Highways,Supplies and Services,304221,Equipment and Materials,09/05/2024,4267223-259154,950.80,TYNEDALE ROADSTONE LTD.
Neighbourhoods and Climate Change,Highways,Supplies and Services,304221,Equipment and Materials,09/05/2024,4267223-259155,"1,070.15",TYNEDALE ROADSTONE LTD.
Neighbourhoods and Climate Change,Highways,Supplies and Services,304221,Equipment and Materials,09/05/2024,4267223-259156,"1,421.65",TYNEDALE ROADSTONE LTD.
Neighbourhoods and Climate Change,Highways,Supplies and Services,304221,Equipment and Materials,09/05/2024,4267223-259157,564.30,TYNEDALE ROADSTONE LTD.
Neighbourhoods and Climate Change,Highways,Supplies and Services,304221,Equipment and Materials,09/05/2024,4267223-259158,909.01,TYNEDALE ROADSTONE LTD.
Neighbourhoods and Climate Change,Highways,Supplies and Services,304221,Equipment and Materials,09/05/2024,4267223-259159,"1,646.45",TYNEDALE ROADSTONE LTD.
Neighbourhoods and Climate Change,Highways,Supplies and Services,304221,Equipment and Materials,09/05/2024,4267223-259160,"1,049.85",TYNEDALE ROADSTONE LTD.
Neighbourhoods and Climate Change,Highways,Supplies and Services,304221,Equipment and Materials,09/05/2024,4267223-259161,"1,662.15",TYNEDALE ROADSTONE LTD.
Neighbourhoods and Climate Change,Highways,Supplies and Services,304221,Equipment and Materials,09/05/2024,4267223-259162,574.45,TYNEDALE ROADSTONE LTD.
Regeneration Economy and Growth,Culture Sport and Tourism,Supplies and Services,324117,Provisions E324,09/05/2024,4267228-IN00102821,552.86,VANGUARD DOWSON LTD.
Neighbourhoods and Climate Change,Highways,Supplies and Services,338027,Services,09/05/2024,4267235-SPN0000284,"323,044.00",VOLKERSTEVIN INFRASTRUCTURE LTD.*
Neighbourhoods and Climate Change,Highways,Stock A926,926900,Stock in hand-Inventory system,09/05/2024,4267250-1164913,572.11,YOUR NRG LTD.
Neighbourhoods and Climate Change,Environmental Services,Transport,215005,Running Costs of Vehicles,09/05/2024,4267250-1165736,"21,051.18",YOUR NRG LTD.
Regeneration Economy and Growth,Culture Sport and Tourism,Transport,215005,Running Costs of Vehicles,09/05/2024,4267250-1165844,741.36,YOUR NRG LTD.
Neighbourhoods and Climate Change,Environmental Services,Transport,215005,Running Costs of Vehicles,09/05/2024,4267250-1167619,"14,062.80",YOUR NRG LTD.
Neighbourhoods and Climate Change,Environmental Services,Transport,215005,Running Costs of Vehicles,09/05/2024,4267250-1167631,"1,489.88",YOUR NRG LTD.
Children and Young Peoples Services,Head of Education and Skills,Transport,230034,Contract Hire,09/05/2024,4267251-6083-3,"2,574.00",ZERO TAXIS LTD.
Children and Young Peoples Services,Head of Education and Skills,Transport,230010,Contract Hire,09/05/2024,4267251-BL013-3,"2,575.80",ZERO TAXIS LTD.
Adult and Health Services,Head of Adults,Transport,230005,Contract Hire,09/05/2024,4266471-DW138APR24,680.00,REDACTED - PAYMENT TO INDIVIDUAL
Children and Young Peoples Services,Head of Education and Skills,Transport,230006,Contract Hire,09/05/2024,4266471-F155APR24,772.40,REDACTED - PAYMENT TO INDIVIDUAL
Children and Young Peoples Services,Head of Education and Skills,Transport,230034,Contract Hire,09/05/2024,4266477-02317,"1,242.00",REDACTED - PAYMENT TO INDIVIDUAL
Children and Young Peoples Services,Head of Education and Skills,Transport,230007,Contract Hire,09/05/2024,4266477-02411,912.00,REDACTED - PAYMENT TO INDIVIDUAL
Children and Young Peoples Services,Head of Education and Skills,Transport,230007,Contract Hire,09/05/2024,4266477-02413,696.00,REDACTED - PAYMENT TO INDIVIDUAL
Children and Young Peoples Services,Head of Education and Skills,Transport,230007,Contract Hire,09/05/2024,4266480-12,"1,920.00",REDACTED - PAYMENT TO INDIVIDUAL
Regeneration Economy and Growth,Culture Sport and Tourism,Supplies and Services,384199,Miscellaneous Expenses,09/05/2024,4266491-2352,980.00,REDACTED - PAYMENT TO INDIVIDUAL
Adult and Health Services,Head of Adults,Transport,230005,Contract Hire,09/05/2024,4266565-EAS197-0424,630.00,REDACTED - PAYMENT TO INDIVIDUAL
Children and Young Peoples Services,Head of Education and Skills,Transport,230006,Contract Hire,09/05/2024,4266565-F236-0424,736.00,REDACTED - PAYMENT TO INDIVIDUAL
Children and Young Peoples Services,Head of Education and Skills,Transport,230008,Contract Hire,09/05/2024,4266579-INV-115,"1,540.00",REDACTED - PAYMENT TO INDIVIDUAL
Regeneration Economy and Growth,Planning & Housing,Supplies and Services,364501,Grants to Voluntary Organisations,09/05/2024,4266618-DH21LP-RENTARREARS,"1,425.00",REDACTED - PAYMENT TO INDIVIDUAL
Children and Young Peoples Services,Head of Education and Skills,Transport,230034,Contract Hire,09/05/2024,4266632-DTS2108/04/24,"1,138.50",REDACTED - PAYMENT TO INDIVIDUAL
Children and Young Peoples Services,Head of Education and Skills,Transport,230009,Contract Hire,09/05/2024,4266632-DTS6005/04/24,"1,475.10",REDACTED - PAYMENT TO INDIVIDUAL
Children and Young Peoples Services,Head of Education and Skills,Transport,230008,Contract Hire,09/05/2024,4266643-02/2024-R005,"3,504.00",REDACTED - PAYMENT TO INDIVIDUAL
Children and Young Peoples Services,Head of Education and Skills,Transport,230006,Contract Hire,09/05/2024,4266712-1-F137APR24,"2,099.32",REDACTED - PAYMENT TO INDIVIDUAL
Children and Young Peoples Services,Head of Education and Skills,Transport,230006,Contract Hire,09/05/2024,4266712-2-F319APR24,"2,251.73",REDACTED - PAYMENT TO INDIVIDUAL
Children and Young Peoples Services,Head of Education and Skills,Transport,230035,Contract Hire,09/05/2024,4266719-143,"1,560.00",REDACTED - PAYMENT TO INDIVIDUAL
Children and Young Peoples Services,Head of Education and Skills,Transport,230006,Contract Hire,09/05/2024,4266771-F896,"1,507.11",REDACTED - PAYMENT TO INDIVIDUAL
Neighbourhoods and Climate Change,Community Protection,Supplies and Services,372009,Subscriptions E372,09/05/2024,4266791-JBS-920,860.00,REDACTED - PAYMENT TO INDIVIDUAL
Children and Young Peoples Services,Head of Education and Skills,Transport,230034,Contract Hire,09/05/2024,4266875-005,"1,470.00",REDACTED - PAYMENT TO INDIVIDUAL
Children and Young Peoples Services,Head of Education and Skills,Transport,230034,Contract Hire,09/05/2024,4266876-017,576.00,REDACTED - PAYMENT TO INDIVIDUAL
Children and Young Peoples Services,Head of Education and Skills,Transport,230006,Contract Hire,09/05/2024,4266876-018,546.00,REDACTED - PAYMENT TO INDIVIDUAL
Children and Young Peoples Services,Head of Education and Skills,Transport,230008,Contract Hire,09/05/2024,4266876-019,"1,536.00",REDACTED - PAYMENT TO INDIVIDUAL
Children and Young Peoples Services,Head of Education and Skills,Transport,230008,Contract Hire,09/05/2024,4266891-0150,"2,604.00",REDACTED - PAYMENT TO INDIVIDUAL
Children and Young Peoples Services,Head of Education and Skills,Transport,230008,Contract Hire,09/05/2024,4266891-0151,"2,250.00",REDACTED - PAYMENT TO INDIVIDUAL
Children and Young Peoples Services,Head of Education and Skills,Transport,230034,Contract Hire,09/05/2024,4266933-300424,"1,800.00",REDACTED - PAYMENT TO INDIVIDUAL
Children and Young Peoples Services,Head of Education and Skills,Transport,230013,Contract Hire,09/05/2024,4266937-0163,"1,920.00",REDACTED - PAYMENT TO INDIVIDUAL
Children and Young Peoples Services,Head of Education and Skills,Transport,230008,Contract Hire,09/05/2024,4266937-0164,"1,719.63",REDACTED - PAYMENT TO INDIVIDUAL
Children and Young Peoples Services,Head of Education and Skills,Transport,230008,Contract Hire,09/05/2024,4266937-0165,"1,540.00",REDACTED - PAYMENT TO INDIVIDUAL
Children and Young Peoples Services,Head of Education and Skills,Transport,230035,Contract Hire,09/05/2024,4266961-INV317,"1,596.00",REDACTED - PAYMENT TO INDIVIDUAL
Children and Young Peoples Services,Head of Education and Skills,Transport,230007,Contract Hire,09/05/2024,4266977-APRIL302024,711.12,REDACTED - PAYMENT TO INDIVIDUAL
Children and Young Peoples Services,Head of Education and Skills,Transport,230008,Contract Hire,09/05/2024,4266978-47,"1,959.20",REDACTED - PAYMENT TO INDIVIDUAL
Children and Young Peoples Services,Head of Education and Skills,Transport,230007,Contract Hire,09/05/2024,4266978-49,600.00,REDACTED - PAYMENT TO INDIVIDUAL
Children and Young Peoples Services,Head of Education and Skills,Transport,230034,Contract Hire,09/05/2024,4266989-PAYPR0424,904.00,REDACTED - PAYMENT TO INDIVIDUAL
Children and Young Peoples Services,Head of Education and Skills,Transport,230034,Contract Hire,09/05/2024,4266990-1898-01,"1,200.00",REDACTED - PAYMENT TO INDIVIDUAL
Children and Young Peoples Services,Head of Education and Skills,Supplies and Services,338027,Services,09/05/2024,4266997-HN00269,"2,612.50",REDACTED - PAYMENT TO INDIVIDUAL
Children and Young Peoples Services,Head of Education and Skills,Transport,230008,Contract Hire,09/05/2024,4267019-108,"1,320.00",REDACTED - PAYMENT TO INDIVIDUAL
Children and Young Peoples Services,Head of Education and Skills,Transport,230009,Contract Hire,09/05/2024,4267060-APR-24-7009,"1,140.00",REDACTED - PAYMENT TO INDIVIDUAL
Children and Young Peoples Services,Head of Education and Skills,Transport,230008,Contract Hire,09/05/2024,4267060-APR-24-M027,"2,195.20",REDACTED - PAYMENT TO INDIVIDUAL
Children and Young Peoples Services,Head of Education and Skills,Transport,230008,Contract Hire,09/05/2024,4267060-APR-24-N041,"1,595.00",REDACTED - PAYMENT TO INDIVIDUAL
Children and Young Peoples Services,Head of Education and Skills,Transport,230008,Contract Hire,09/05/2024,4267060-APR-24-N351,600.00,REDACTED - PAYMENT TO INDIVIDUAL
Children and Young Peoples Services,Head of Education and Skills,Transport,230008,Contract Hire,09/05/2024,4267060-APRIL-24-N020,"2,850.00",REDACTED - PAYMENT TO INDIVIDUAL
Children and Young Peoples Services,Head of Education and Skills,Transport,230008,Contract Hire,09/05/2024,4267060-Apr-24M030,"1,859.00",REDACTED - PAYMENT TO INDIVIDUAL
Children and Young Peoples Services,Head of Education and Skills,Transport,230006,Contract Hire,09/05/2024,4267074-0010,"1,842.00",REDACTED - PAYMENT TO INDIVIDUAL
Children and Young Peoples Services,Head of Education and Skills,Transport,230006,Contract Hire,09/05/2024,4267075-108,"2,880.00",REDACTED - PAYMENT TO INDIVIDUAL
Children and Young Peoples Services,Head of Childrens Social Care,Supplies and Services,384500,Miscellaneous Expenses,09/05/2024,4267135-INV-HW0632,"1,195.00",REDACTED - PAYMENT TO INDIVIDUAL
Children and Young Peoples Services,Head of Education and Skills,Transport,230006,Contract Hire,09/05/2024,4267207-F106APR24,"1,699.63",REDACTED - PAYMENT TO INDIVIDUAL
Children and Young Peoples Services,Head of Education and Skills,Transport,230008,Contract Hire,09/05/2024,4267214-APRILA021,"1,800.00",REDACTED - PAYMENT TO INDIVIDUAL
Regeneration Economy and Growth,Culture Sport and Tourism,Supplies and Services,384199,Miscellaneous Expenses,09/05/2024,4267072-1002,553.00,REDACTED - PAYMENT TO INDIVIDUAL
Children and Young Peoples Services,Head of Childrens Social Care,Supplies and Services,338066,Services,09/05/2024,4267109-20245097DCC,"1,275.00",REDACTED - PAYMENT TO INDIVIDUAL
Neighbourhoods and Climate Change,Environmental Services,Supplies and Services,384199,Miscellaneous Expenses,09/05/2024,4267110-RS24250401,"7,900.00",REDACTED - PAYMENT TO INDIVIDUAL
Regeneration Economy and Growth,Corporate Property and Land,Supplies and Services,304221,Equipment and Materials,10/05/2024,4267256-201803,"1,600.00",ABERDEEN RADIATION PROTECTION SERVICES LTD.
Children and Young Peoples Services,Head of Childrens Social Care,Third Party Payments,425028,Rendered by Voluntary Organisations,10/05/2024,4267538-190424,"4,945.29",SEND EMPOWERING INCLUSIVE COMMUNITIES T/A LITTLE SENDATIONS.
Children and Young Peoples Services,Head of Education and Skills,Supplies and Services,384984,Miscellaneous Expenses,10/05/2024,4267583-TVOECXDURHAMPARTNERSHIP2024,"4,999.00",THE VOICE OF EARLY CHILDHOOD.
Regeneration Economy and Growth,Planning & Housing,Supplies and Services,384999,Miscellaneous Expenses,10/05/2024,4267607-LJ160424TS255RR,"1,500.00",WALIYU ODUTAYO (LANDLORD).
Children and Young Peoples Services,Head of Education and Skills,Transport,230008,Contract Hire,10/05/2024,4267254-0424/SB,761.60,AABAT TAXIS.
Children and Young Peoples Services,Head of Education and Skills,Transport,230008,Contract Hire,10/05/2024,4267254-0424/SC,"1,800.00",AABAT TAXIS.
Children and Young Peoples Services,Head of Education and Skills,Transport,230009,Contract Hire,10/05/2024,4267254-0424/SD,"2,169.20",AABAT TAXIS.
Children and Young Peoples Services,Head of Education and Skills,Transport,230007,Contract Hire,10/05/2024,4267254-0424/SE,"1,137.84",AABAT TAXIS.
Children and Young Peoples Services,Head of Education and Skills,Transport,230008,Contract Hire,10/05/2024,4267254-0424/SF,"1,558.20",AABAT TAXIS.
Children and Young Peoples Services,Head of Education and Skills,Transport,230006,Contract Hire,10/05/2024,4267254-0424/SG,"1,190.00",AABAT TAXIS.
Adult and Health Services,Head of Adults,Transport,230005,Contract Hire,10/05/2024,4267254-0424/SH,"1,144.00",AABAT TAXIS.
Children and Young Peoples Services,Head of Education and Skills,Transport,230010,Contract Hire,10/05/2024,4267255-O632,"1,528.56",ABC & OUSTON CABS.
Adult and Health Services,Head of Adults,Supplies and Services,304259,Equipment and Materials,10/05/2024,4267257-57391,"2,642.00",ABILITY SMART LTD.
Regeneration Economy and Growth,Culture Sport and Tourism,Supplies and Services,304259,Equipment and Materials,10/05/2024,4267258-116416151,979.72,AC ENTERTAINMENT TECHNOLOGIES.
Regeneration Economy and Growth,Corporate Property and Land,Premises,108099,Service Repairs and Maintenance,10/05/2024,4267259-0000015085,550.00,ACCORDIAL LTD.
Neighbourhoods and Climate Change,Environmental Services,Transport,210057,Repair and Maintenance of Vehicles,10/05/2024,4267261-60299249,634.28,AEBI SCHMIDT UK LTD.
Children and Young Peoples Services,Head of Education and Skills,Transport,230008,Contract Hire,10/05/2024,4267271-M037-0424,"1,650.00",AT TAXIS LTD.
Children and Young Peoples Services,Head of Education and Skills,Transport,230008,Contract Hire,10/05/2024,4267271-S008-0424,"1,870.00",AT TAXIS LTD.
Children and Young Peoples Services,Head of Education and Skills,Transport,230034,Contract Hire,10/05/2024,4267271-S100-0424,"1,687.40",AT TAXIS LTD.
Children and Young Peoples Services,Head of Education and Skills,Transport,230007,Contract Hire,10/05/2024,4267271-W084-0424,"1,870.00",AT TAXIS LTD.
Adult and Health Services,Head of Adults,Transport,230005,Contract Hire,10/05/2024,4267273-SED141/APRIL,763.40,B&C YELLOWCAB TAXI`S.
Regeneration Economy and Growth,Culture Sport and Tourism,Supplies and Services,384199,Miscellaneous Expenses,10/05/2024,4267274-INV-0130,"8,071.25",BACCANALIA FOR CULTURE CIC.
Neighbourhoods and Climate Change,Environmental Services,Supplies and Services,304221,Equipment and Materials,10/05/2024,4267275-99943927,771.92,BALL COLEGRAVE LTD.
Neighbourhoods and Climate Change,Environmental Services,Supplies and Services,304221,Equipment and Materials,10/05/2024,4267275-99943929,"2,905.18",BALL COLEGRAVE LTD.
Neighbourhoods and Climate Change,Environmental Services,Stock A926,926004,Stock,10/05/2024,4267277-15243939,639.78,BELL TRUCK SALES LTD T/A BELL TRUCK & VAN.
Neighbourhoods and Climate Change,Environmental Services,Stock A926,926004,Stock,10/05/2024,4267277-45079783,"1,062.48",BELL TRUCK SALES LTD T/A BELL TRUCK & VAN.
Neighbourhoods and Climate Change,Environmental Services,Stock A926,926004,Stock,10/05/2024,4267277-45079846,680.40,BELL TRUCK SALES LTD T/A BELL TRUCK & VAN.
Regeneration Economy and Growth,Culture Sport and Tourism,Construction work A908,908105,Construction work,10/05/2024,4267280-10263173,"3,861.00",BEVAN BRITTAN LLP.
Regeneration Economy and Growth,Culture Sport and Tourism,Construction work A908,908105,Construction work,10/05/2024,4267280-10264959,828.00,BEVAN BRITTAN LLP.
Children and Young Peoples Services,Head of Education and Skills,Transport,230006,Contract Hire,10/05/2024,4267283-F203APR24,599.88,BIG MAMA`S TAXI.
Children and Young Peoples Services,Head of Education and Skills,Transport,230006,Contract Hire,10/05/2024,4267283-F320APR24,799.84,BIG MAMA`S TAXI.
Children and Young Peoples Services,Head of Education and Skills,Transport,230006,Contract Hire,10/05/2024,4267285-h,960.00,BOBS TAXIS.
Neighbourhoods and Climate Change,Highways,Supplies and Services,304221,Equipment and Materials,10/05/2024,4267287-21773295,"3,033.10",BREEDON TRADING LTD.
Children and Young Peoples Services,Head of Education and Skills,Transport,230007,Contract Hire,10/05/2024,4267293-3508-0424,"1,059.12",C & R TAXIS.
Children and Young Peoples Services,Head of Education and Skills,Transport,230008,Contract Hire,10/05/2024,4267293-S009-0424,"1,668.60",C & R TAXIS.
Children and Young Peoples Services,Head of Education and Skills,Transport,230008,Contract Hire,10/05/2024,4267293-W002-0424,"1,500.80",C & R TAXIS.
Children and Young Peoples Services,Head of Education and Skills,Transport,230008,Contract Hire,10/05/2024,4267293-W043-0424,"1,650.00",C & R TAXIS.
Children and Young Peoples Services,Head of Education and Skills,Transport,230008,Contract Hire,10/05/2024,4267307-A085 RA - APR24,"1,584.00",CJ`S EXECUTIVE TRAVEL LTD.
Children and Young Peoples Services,Head of Education and Skills,Transport,230008,Contract Hire,10/05/2024,4267307-E040-DG APR24,"1,920.00",CJ`S EXECUTIVE TRAVEL LTD.
Children and Young Peoples Services,Head of Education and Skills,Transport,230008,Contract Hire,10/05/2024,4267307-N047-SHAPR24,"3,382.68",CJ`S EXECUTIVE TRAVEL LTD.
Children and Young Peoples Services,Head of Education and Skills,Transport,230008,Contract Hire,10/05/2024,4267307-N055-MS APR24,"2,021.76",CJ`S EXECUTIVE TRAVEL LTD.
Regeneration Economy and Growth,Corporate Property and Land,Premises,108099,Service Repairs and Maintenance,10/05/2024,4267312-106906,"1,088.00",COMPLIANCE GROUP ELECTRICAL LTD.
Children and Young Peoples Services,Head of Education and Skills,Transport,230008,Contract Hire,10/05/2024,4267313-12-APR24,"1,920.00",CONSETT CONTRACTS LTD.
Children and Young Peoples Services,Head of Education and Skills,Transport,230007,Contract Hire,10/05/2024,4267313-14-APR24,"1,800.00",CONSETT CONTRACTS LTD.
Children and Young Peoples Services,Head of Education and Skills,Transport,230008,Contract Hire,10/05/2024,4267313-15-APR24,"2,475.24",CONSETT CONTRACTS LTD.
Children and Young Peoples Services,Head of Education and Skills,Transport,230007,Contract Hire,10/05/2024,4267313-2-APR24,"2,640.00",CONSETT CONTRACTS LTD.
Children and Young Peoples Services,Head of Education and Skills,Transport,230008,Contract Hire,10/05/2024,4267313-3-APR24,"2,079.00",CONSETT CONTRACTS LTD.
Children and Young Peoples Services,Head of Education and Skills,Transport,230008,Contract Hire,10/05/2024,4267313-4-APRIL24,"2,600.00",CONSETT CONTRACTS LTD.
Children and Young Peoples Services,Head of Education and Skills,Transport,230006,Contract Hire,10/05/2024,4267313-7-APR24,"2,450.00",CONSETT CONTRACTS LTD.
Children and Young Peoples Services,Head of Education and Skills,Transport,230006,Contract Hire,10/05/2024,4267313-8-APR24,"1,080.00",CONSETT CONTRACTS LTD.
Children and Young Peoples Services,Head of Education and Skills,Transport,230008,Contract Hire,10/05/2024,4267313-9-APR24-M004,"1,680.00",CONSETT CONTRACTS LTD.
Children and Young Peoples Services,Head of Childrens Social Care,Supplies and Services,338044,Services,10/05/2024,4267314-UOTR5256099,"4,752.00",CONVERA UK FINANCIAL LTD.
Adult and Health Services,Public Health CC0450,Third Party Payments,460803,Contract Payments,10/05/2024,4267318-3910023081,"13,227.83",COUNTY DURHAM & DARLINGTON NHS FOUNDATION TRUST (CDDFT).
Adult and Health Services,Public Health CC0450,Third Party Payments,460803,Contract Payments,10/05/2024,4267318-3910023095,"384,361.44",COUNTY DURHAM & DARLINGTON NHS FOUNDATION TRUST (CDDFT).
Adult and Health Services,Public Health CC0450,Third Party Payments,460803,Contract Payments,10/05/2024,4267318-3910023097,"31,341.67",COUNTY DURHAM & DARLINGTON NHS FOUNDATION TRUST (CDDFT).
Children and Young Peoples Services,Head of Education and Skills,Transport,230009,Contract Hire,10/05/2024,4267325-1883,"1,320.00",DA TAXIS.
Children and Young Peoples Services,Head of Education and Skills,Transport,230008,Contract Hire,10/05/2024,4267325-1885,"1,300.00",DA TAXIS.
Children and Young Peoples Services,Head of Education and Skills,Transport,230008,Contract Hire,10/05/2024,4267325-1887,"1,622.64",DA TAXIS.
Children and Young Peoples Services,Head of Education and Skills,Transport,230008,Contract Hire,10/05/2024,4267326-636,"1,210.00",DA TRAVEL.
Children and Young Peoples Services,Head of Education and Skills,Transport,230008,Contract Hire,10/05/2024,4267326-637,898.50,DA TRAVEL.
Children and Young Peoples Services,Head of Education and Skills,Transport,230006,Contract Hire,10/05/2024,4267327-F901-0424,"1,680.00",DALELINK PRIVATE HIRE.
Children and Young Peoples Services,Head of Education and Skills,Transport,230007,Contract Hire,10/05/2024,4267328-611,"2,670.00",DANNY`S TRAVEL.
Children and Young Peoples Services,Head of Education and Skills,Transport,230008,Contract Hire,10/05/2024,4267329-3919,"1,200.00",DAVES MINIBUSES.
Resources BK0010,Digital Services,Stock A926,926900,Stock in hand-Inventory system,10/05/2024,4267335-7403001122,"6,060.00",DELL COMPUTER CORPORATION LTD.
Resources BK0010,Digital Services,Stock A926,926900,Stock in hand-Inventory system,10/05/2024,4267335-7403001490,875.50,DELL COMPUTER CORPORATION LTD.
Resources BK0010,Digital Services,Supplies and Services,342033,Computers and Communications,10/05/2024,4267335-7403001519,"2,175.73",DELL COMPUTER CORPORATION LTD.
Regeneration Economy and Growth,Planning & Housing,Supplies and Services,384999,Miscellaneous Expenses,10/05/2024,4267338-074,"1,500.00",DENTON MANAGEMENT LTD.
Regeneration Economy and Growth,Planning & Housing,Supplies and Services,338094,Services,10/05/2024,4267347-3355,"1,032.91",DURHAM CRICKET EVENTS LTD.
Regeneration Economy and Growth,Corporate Property and Land,Supplies and Services,304221,Equipment and Materials,10/05/2024,4267350-059-335019,"3,207.72",EDMUNDSON ELECTRICAL LTD.
Children and Young Peoples Services,Head of Education and Skills,Transport,230008,Contract Hire,10/05/2024,4267356-ES8,"1,020.00",ELITE TAXIS.
Children and Young Peoples Services,Head of Education and Skills,Transport,230008,Contract Hire,10/05/2024,4267356-T08,"1,195.00",ELITE TAXIS.
Regeneration Economy and Growth,Culture Sport and Tourism,Supplies and Services,338047,Services,10/05/2024,4267357-INV-0083,"9,875.00",ENGLISH TOURING OPERA LTD.
Neighbourhoods and Climate Change,Environmental Services,Transport,230005,Contract Hire,10/05/2024,4267358-8210298,663.40,ENTERPRISE FLEX-E-RENT T/A BURNT TREE GROUP LTD.
Neighbourhoods and Climate Change,Environmental Services,Transport,230005,Contract Hire,10/05/2024,4267359-13002192493,671.63,ENTERPRISE FLEX-E-RENT T/A BURNT TREE GROUP LTD.
Neighbourhoods and Climate Change,Environmental Services,Transport,230005,Contract Hire,10/05/2024,4267359-13002201617,660.60,ENTERPRISE FLEX-E-RENT T/A BURNT TREE GROUP LTD.
Neighbourhoods and Climate Change,Environmental Services,Transport,230005,Contract Hire,10/05/2024,4267359-8211843,655.96,ENTERPRISE FLEX-E-RENT T/A BURNT TREE GROUP LTD.
Neighbourhoods and Climate Change,Environmental Services,Transport,210057,Repair and Maintenance of Vehicles,10/05/2024,4267367-451589,834.53,FORD & SLATER LTD.
Neighbourhoods and Climate Change,Highways,Supplies and Services,304357,Equipment and Materials,10/05/2024,4267369-DCC140424,"22,843.68",GAP GROUP LTD.
Children and Young Peoples Services,Head of Education and Skills,Transport,230008,Contract Hire,10/05/2024,4267370-25524,"2,464.00",GARNETTS LTD (COACHES).
Regeneration Economy and Growth,Corporate Property and Land,Premises,108099,Service Repairs and Maintenance,10/05/2024,4267378-INV-2134,"22,458.76",GLENFIELD ENERGY SOLUTIONS LTD.
Neighbourhoods and Climate Change,Environmental Services,Supplies and Services,304259,Equipment and Materials,10/05/2024,4267381-2631,"3,983.64",GOTT TECHNICAL SERVICES LTD.
Children and Young Peoples Services,Head of Education and Skills,Transport,230007,Contract Hire,10/05/2024,4267393-24989,"2,233.20",HODGSONS COACH OPERATORS LTD.
Children and Young Peoples Services,Head of Education and Skills,Transport,230007,Contract Hire,10/05/2024,4267393-24991,"3,420.00",HODGSONS COACH OPERATORS LTD.
Children and Young Peoples Services,Head of Education and Skills,Transport,230007,Contract Hire,10/05/2024,4267393-24992,"3,420.00",HODGSONS COACH OPERATORS LTD.
Children and Young Peoples Services,Head of Education and Skills,Transport,230003,Contract Hire,10/05/2024,4267393-24993,"4,080.00",HODGSONS COACH OPERATORS LTD.
Children and Young Peoples Services,Head of Education and Skills,Transport,230007,Contract Hire,10/05/2024,4267393-24994,"1,893.60",HODGSONS COACH OPERATORS LTD.
Children and Young Peoples Services,Head of Education and Skills,Transport,230007,Contract Hire,10/05/2024,4267393-24995,"2,304.00",HODGSONS COACH OPERATORS LTD.
Children and Young Peoples Services,Head of Education and Skills,Transport,230007,Contract Hire,10/05/2024,4267393-24997,"2,100.00",HODGSONS COACH OPERATORS LTD.
Children and Young Peoples Services,Head of Education and Skills,Transport,230007,Contract Hire,10/05/2024,4267393-24998,"2,100.00",HODGSONS COACH OPERATORS LTD.
Children and Young Peoples Services,Head of Education and Skills,Transport,230007,Contract Hire,10/05/2024,4267393-24999,"1,140.00",HODGSONS COACH OPERATORS LTD.
Children and Young Peoples Services,Head of Education and Skills,Transport,230006,Contract Hire,10/05/2024,4267393-25000,760.00,HODGSONS COACH OPERATORS LTD.
Children and Young Peoples Services,Head of Education and Skills,Transport,230003,Contract Hire,10/05/2024,4267393-25001,"2,220.00",HODGSONS COACH OPERATORS LTD.
Children and Young Peoples Services,Head of Education and Skills,Transport,230007,Contract Hire,10/05/2024,4267393-25003,"4,140.00",HODGSONS COACH OPERATORS LTD.
Regeneration Economy and Growth,Corporate Property and Land,Premises,108099,Service Repairs and Maintenance,10/05/2024,4267394-7081086136,"1,562.42",HONEYWELL NOVAR SYSTEMS LTD.
Regeneration Economy and Growth,Corporate Property and Land,Premises,108099,Service Repairs and Maintenance,10/05/2024,4267394-7081086137,"3,974.80",HONEYWELL NOVAR SYSTEMS LTD.
Regeneration Economy and Growth,Culture Sport and Tourism,Premises,106082,Centrally Controlled Rep and Maint,10/05/2024,4267394-7081086874,542.78,HONEYWELL NOVAR SYSTEMS LTD.
Regeneration Economy and Growth,Corporate Property and Land,Premises,108099,Service Repairs and Maintenance,10/05/2024,4267394-7081087208,"2,289.43",HONEYWELL NOVAR SYSTEMS LTD.
Regeneration Economy and Growth,Corporate Property and Land,Premises,108099,Service Repairs and Maintenance,10/05/2024,4267394-7081088689,"9,389.86",HONEYWELL NOVAR SYSTEMS LTD.
Regeneration Economy and Growth,Business Durham,Premises,106082,Centrally Controlled Rep and Maint,10/05/2024,4267399-CD200336057,885.00,INTEGRATED WATER SERVICES LTD.
Regeneration Economy and Growth,Corporate Property and Land,Premises,108099,Service Repairs and Maintenance,10/05/2024,4267399-CD200336114,900.00,INTEGRATED WATER SERVICES LTD.
Neighbourhoods and Climate Change,Environmental Services,Supplies and Services,304259,Equipment and Materials,10/05/2024,4267401-CD-41002401686,"16,090.80",IPL PLASTICS (UK) LTD T/A IPL HULL.
Regeneration Economy and Growth,Corporate Property and Land,Supplies and Services,304221,Equipment and Materials,10/05/2024,4267403-25093,"1,039.00",J & L ELEVATOR COMPONENTS LTD.
Neighbourhoods and Climate Change,Highways,Construction work A908,908105,Construction work,10/05/2024,4267404-29067,"5,947.17",JACK COUPE & SONS LTD T/A COUPE LINE.
Neighbourhoods and Climate Change,Highways,Construction work A908,908105,Construction work,10/05/2024,4267404-29090,795.63,JACK COUPE & SONS LTD T/A COUPE LINE.
Children and Young Peoples Services,Head of Education and Skills,Transport,230007,Contract Hire,10/05/2024,4267408-2324145,888.00,JD`S PRIVATE HIRE DURHAM.
Children and Young Peoples Services,Head of Education and Skills,Transport,230007,Contract Hire,10/05/2024,4267408-2324146,"1,480.16",JD`S PRIVATE HIRE DURHAM.
Children and Young Peoples Services,Head of Education and Skills,Transport,230034,Contract Hire,10/05/2024,4267408-2324147,904.32,JD`S PRIVATE HIRE DURHAM.
Children and Young Peoples Services,Head of Education and Skills,Transport,230009,Contract Hire,10/05/2024,4267408-2324148,"1,178.52",JD`S PRIVATE HIRE DURHAM.
Children and Young Peoples Services,Head of Education and Skills,Transport,230008,Contract Hire,10/05/2024,4267408-2324149,"2,457.36",JD`S PRIVATE HIRE DURHAM.
Children and Young Peoples Services,Head of Education and Skills,Transport,230004,Contract Hire,10/05/2024,4267408-2324152,"1,166.40",JD`S PRIVATE HIRE DURHAM.
Children and Young Peoples Services,Head of Education and Skills,Transport,230008,Contract Hire,10/05/2024,4267408-2324154,"1,887.36",JD`S PRIVATE HIRE DURHAM.
Children and Young Peoples Services,Head of Education and Skills,Transport,230008,Contract Hire,10/05/2024,4267408-2324156,"1,380.00",JD`S PRIVATE HIRE DURHAM.
Children and Young Peoples Services,Head of Education and Skills,Transport,230008,Contract Hire,10/05/2024,4267408-2324158,"1,848.96",JD`S PRIVATE HIRE DURHAM.
Children and Young Peoples Services,Head of Education and Skills,Transport,230010,Contract Hire,10/05/2024,4267408-2423151,"1,679.06",JD`S PRIVATE HIRE DURHAM.
Regeneration Economy and Growth,Corporate Property and Land,Supplies and Services,304221,Equipment and Materials,10/05/2024,4267415-0113/00059573,"1,387.48",JT DOVE LTD.
Children and Young Peoples Services,Head of Early Help Inclusion & Vulnerable Children.,Supplies and Services,384409,Miscellaneous Expenses,10/05/2024,4267416-SI-1,"5,325.00",KALMA LIFE NORTH DURHAM & GATESHEAD WEST.
Children and Young Peoples Services,Head of Education and Skills,Transport,230008,Contract Hire,10/05/2024,4267420-N034 - APRIL 2024,"1,973.76",KINGSWAY CABS LTD.
Children and Young Peoples Services,Head of Education and Skills,Transport,230008,Contract Hire,10/05/2024,4267420-N073 - APRIL 24,"1,440.00",KINGSWAY CABS LTD.
Children and Young Peoples Services,Head of Education and Skills,Transport,230007,Contract Hire,10/05/2024,4267426-33765,"2,880.00",LEE`S COACHES LTD.
Children and Young Peoples Services,Head of Education and Skills,Transport,230006,Contract Hire,10/05/2024,4267428-08,"3,003.00",LIMASEC LTD T/A LIMA TRANSPORT.
Regeneration Economy and Growth,Corporate Property and Land,Premises,108099,Service Repairs and Maintenance,10/05/2024,4267433-202478,"1,260.00",LUCION ENVIRONMENTAL LLP LTD.
Resources BK0010,Digital Services,Supplies and Services,344033,Telephones,10/05/2024,4267438-269034,"9,983.34",MAINTEL EUROPE LTD.
Regeneration Economy and Growth,Culture Sport and Tourism,Supplies and Services,304337,Equipment and Materials,10/05/2024,4267439-4236182294,"1,011.90",MARES SPA.
Children and Young Peoples Services,Head of Education and Skills,Transport,230006,Contract Hire,10/05/2024,4267443-A171APRIL2024,"2,227.44",MARK & JOHN CHISHOLM T/A (CHEVRON).
Children and Young Peoples Services,Head of Education and Skills,Transport,230006,Contract Hire,10/05/2024,4267443-A207APRIL2024,"2,368.00",MARK & JOHN CHISHOLM T/A (CHEVRON).
Children and Young Peoples Services,Head of Education and Skills,Transport,230006,Contract Hire,10/05/2024,4267443-F302APRIL2024,"1,695.68",MARK & JOHN CHISHOLM T/A (CHEVRON).
Children and Young Peoples Services,Head of Education and Skills,Transport,230008,Contract Hire,10/05/2024,4267443-M011APRIL2024,"2,050.08",MARK & JOHN CHISHOLM T/A (CHEVRON).
Children and Young Peoples Services,Head of Education and Skills,Transport,230008,Contract Hire,10/05/2024,4267443-S007 APRIL 20247,"2,230.00",MARK & JOHN CHISHOLM T/A (CHEVRON).
Neighbourhoods and Climate Change,Environmental Services,Third Party Payments,430101,Rendered by Private Contractors,10/05/2024,4267446-HOL09328,"2,031.27",MCCONECHYS TYRE SERVICE LTD.
Neighbourhoods and Climate Change,Environmental Services,Third Party Payments,430101,Rendered by Private Contractors,10/05/2024,4267446-HOL09329,"1,040.82",MCCONECHYS TYRE SERVICE LTD.
Neighbourhoods and Climate Change,Environmental Services,Third Party Payments,430101,Rendered by Private Contractors,10/05/2024,4267446-HOL09330,"3,423.50",MCCONECHYS TYRE SERVICE LTD.
Neighbourhoods and Climate Change,Environmental Services,Third Party Payments,430101,Rendered by Private Contractors,10/05/2024,4267446-HOL09356,957.25,MCCONECHYS TYRE SERVICE LTD.
Neighbourhoods and Climate Change,Environmental Services,Third Party Payments,430101,Rendered by Private Contractors,10/05/2024,4267446-HOL09357,"2,645.80",MCCONECHYS TYRE SERVICE LTD.
Neighbourhoods and Climate Change,Environmental Services,Third Party Payments,430101,Rendered by Private Contractors,10/05/2024,4267446-HOL09358,"1,580.02",MCCONECHYS TYRE SERVICE LTD.
Neighbourhoods and Climate Change,Environmental Services,Third Party Payments,430101,Rendered by Private Contractors,10/05/2024,4267446-HOL09359,"1,793.50",MCCONECHYS TYRE SERVICE LTD.
Neighbourhoods and Climate Change,Environmental Services,Third Party Payments,430101,Rendered by Private Contractors,10/05/2024,4267446-HOL09373,"1,573.77",MCCONECHYS TYRE SERVICE LTD.
Neighbourhoods and Climate Change,Environmental Services,Third Party Payments,430101,Rendered by Private Contractors,10/05/2024,4267446-HOL09374,"2,998.86",MCCONECHYS TYRE SERVICE LTD.
Neighbourhoods and Climate Change,Environmental Services,Third Party Payments,430101,Rendered by Private Contractors,10/05/2024,4267446-HOL09375,900.20,MCCONECHYS TYRE SERVICE LTD.
Neighbourhoods and Climate Change,Environmental Services,Third Party Payments,430101,Rendered by Private Contractors,10/05/2024,4267446-HOL09376,"3,269.72",MCCONECHYS TYRE SERVICE LTD.
Neighbourhoods and Climate Change,Environmental Services,Third Party Payments,430101,Rendered by Private Contractors,10/05/2024,4267446-HOL09396,"2,139.31",MCCONECHYS TYRE SERVICE LTD.
Neighbourhoods and Climate Change,Environmental Services,Third Party Payments,430101,Rendered by Private Contractors,10/05/2024,4267446-HOL09397,910.34,MCCONECHYS TYRE SERVICE LTD.
Neighbourhoods and Climate Change,Environmental Services,Third Party Payments,430101,Rendered by Private Contractors,10/05/2024,4267446-HOL09398,"2,312.13",MCCONECHYS TYRE SERVICE LTD.
Neighbourhoods and Climate Change,Environmental Services,Third Party Payments,430101,Rendered by Private Contractors,10/05/2024,4267446-HOL09399,"4,578.76",MCCONECHYS TYRE SERVICE LTD.
Resources - C A C,Resources - C A C- Level C,Supplies and Services,338059,Services,10/05/2024,4267447-INV-2129,624.00,MEDICALS PLUS LTD.
Children and Young Peoples Services,Head of Education and Skills,Transport,230008,Contract Hire,10/05/2024,4267450-692,936.00,MICKS TAXIS - MURTON.
Children and Young Peoples Services,Head of Education and Skills,Transport,230034,Contract Hire,10/05/2024,4267450-693,"2,005.68",MICKS TAXIS - MURTON.
Children and Young Peoples Services,Head of Education and Skills,Transport,230006,Contract Hire,10/05/2024,4267450-694,"1,120.00",MICKS TAXIS - MURTON.
Adult and Health Services,Adults Excluded,Supplies and Services,338066,Services,10/05/2024,4267452-1243,"495,000.00",MOBILISE CARE LTD.
Regeneration Economy and Growth,Culture Sport and Tourism,Supplies and Services,304259,Equipment and Materials,10/05/2024,4267467-GRWP01,"4,950.00",NBK LEISURE LTD.
Children and Young Peoples Services,Head of Education and Skills,Transport,230034,Contract Hire,10/05/2024,4267468-6060APRIL2024,"1,800.00",ND TAXIS.
Regeneration Economy and Growth,Transport and Contract Services,Supplies and Services,338066,Services,10/05/2024,4267483-15578,"1,641.50",PATROL (PARKING & TRAFFIC REGULATIONS OUTSIDE LONDON).
Children and Young Peoples Services,Head of Education and Skills,Transport,230006,Contract Hire,10/05/2024,4267485-F784-0424,"1,200.00",PAUL`S TAXIS..
Children and Young Peoples Services,Head of Education and Skills,Transport,230008,Contract Hire,10/05/2024,4267485-N068-0424,"2,474.88",PAUL`S TAXIS..
Children and Young Peoples Services,Head of Education and Skills,Transport,230008,Contract Hire,10/05/2024,4267486-21,"1,986.60",PB PRIVATE HIRE.
Children and Young Peoples Services,Head of Education and Skills,Transport,230006,Contract Hire,10/05/2024,4267486-22,"1,044.00",PB PRIVATE HIRE.
Children and Young Peoples Services,Head of Education and Skills,Transport,230006,Contract Hire,10/05/2024,4267486-23,"3,027.61",PB PRIVATE HIRE.
Children and Young Peoples Services,Head of Education and Skills,Transport,230008,Contract Hire,10/05/2024,4267490-INV-0016,"1,382.04",PEBBLES CARS LTD.
Children and Young Peoples Services,Head of Education and Skills,Transport,230008,Contract Hire,10/05/2024,4267490-INV-0017,"2,611.68",PEBBLES CARS LTD.
Children and Young Peoples Services,Head of Education and Skills,Transport,230003,Contract Hire,10/05/2024,4267494-5300APR24,"1,230.00",PETERLEEONE LTD.
Children and Young Peoples Services,Head of Education and Skills,Transport,230009,Contract Hire,10/05/2024,4267496-7345APR24,"1,364.76",PETER`S TAXIS.
Children and Young Peoples Services,Head of Education and Skills,Transport,230006,Contract Hire,10/05/2024,4267496-F116APR24,896.99,PETER`S TAXIS.
Neighbourhoods and Climate Change,Environmental Services,Supplies and Services,304252,Equipment and Materials,10/05/2024,4267500-TEE25469,622.64,PIRTEK CLEVELAND.
Children and Young Peoples Services,Head of Education and Skills,Construction work A908,908105,Construction work,10/05/2024,4267502-901025761,"11,786.63",PORTAKABIN LTD.
Regeneration Economy and Growth,Planning & Housing,Supplies and Services,384999,Miscellaneous Expenses,10/05/2024,4267516-TR104449,"1,500.00",READY TO RENT MANAGEMENT LLP.
Neighbourhoods and Climate Change,Environmental Services,Transport,230720,Contract Hire,10/05/2024,4267517-4995,796.60,RICHARD C BIRCHER (HOLDINGS) LTD.
Neighbourhoods and Climate Change,Environmental Services,Stock A926,926004,Stock,10/05/2024,4267519-720171,779.42,RICKERBY LTD.
Neighbourhoods and Climate Change,Environmental Services,Transport,210057,Repair and Maintenance of Vehicles,10/05/2024,4267519-720173,758.17,RICKERBY LTD.
Adult and Health Services,Head of Adults,Transport,230005,Contract Hire,10/05/2024,4267527-1984,895.86,RON`S TAXIS (FISHBURN).
Children and Young Peoples Services,Head of Education and Skills,Transport,230006,Contract Hire,10/05/2024,4267527-1985,"1,000.00",RON`S TAXIS (FISHBURN).
Children and Young Peoples Services,Head of Education and Skills,Transport,230008,Contract Hire,10/05/2024,4267527-1986,"1,400.00",RON`S TAXIS (FISHBURN).
Children and Young Peoples Services,Head of Education and Skills,Transport,230007,Contract Hire,10/05/2024,4267528-ROXDCC345M,"10,400.00",ROXBYS BUS HIRE.
Children and Young Peoples Services,Head of Education and Skills,Transport,230007,Contract Hire,10/05/2024,4267530-4079/08-APR24,"1,440.00",S & S TRAVEL LTD.
Regeneration Economy and Growth,Corporate Property and Land,Premises,108099,Service Repairs and Maintenance,10/05/2024,4267531-8025,650.00,SAFE STRIP UK LTD.
Regeneration Economy and Growth,Corporate Property and Land,Premises,106082,Centrally Controlled Rep and Maint,10/05/2024,4267531-8094,"2,200.00",SAFE STRIP UK LTD.
Regeneration Economy and Growth,Corporate Property and Land,Third Party Payments,430100,Rendered by Private Contractors,10/05/2024,4267536-6,"5,570.19",SCH SITE SERVICES LTD.
Children and Young Peoples Services,Head of Education and Skills,Transport,230034,Contract Hire,10/05/2024,4267545-3721,816.00,SIMONS TAXIS.
Children and Young Peoples Services,Head of Education and Skills,Transport,230006,Contract Hire,10/05/2024,4267545-3722,828.00,SIMONS TAXIS.
Children and Young Peoples Services,Head of Education and Skills,Third Party Payments,430100,Rendered by Private Contractors,10/05/2024,4267547-PO4100859762,"4,269.10",SMARTT NORTH EAST LTD.
Dedicated Schools Grant BG0015,DSG High Needs Block,Supplies and Services,304259,Equipment and Materials,10/05/2024,4267548-216583,807.00,SMIRTHWAITE LTD.
Children and Young Peoples Services,Head of Education and Skills,Transport,230008,Contract Hire,10/05/2024,4267551-LS500107,"1,200.00",SPENNYMOOR TAXIS.
Regeneration Economy and Growth,Corporate Property and Land,Third Party Payments,430100,Rendered by Private Contractors,10/05/2024,4267552-4344/0002,"4,940.00",SPRINGS ROOFING LTD.
Children and Young Peoples Services,Head of Education and Skills,Transport,230007,Contract Hire,10/05/2024,4267560-65045,"3,828.00",STANLEY TRAVEL (NORTH EAST) LTD.
Children and Young Peoples Services,Head of Education and Skills,Transport,230003,Contract Hire,10/05/2024,4267560-65048 - 65046,"3,648.00",STANLEY TRAVEL (NORTH EAST) LTD.
Children and Young Peoples Services,Head of Education and Skills,Transport,230008,Contract Hire,10/05/2024,4267561-0059,"1,296.00",STARGATE TAXIS.
Children and Young Peoples Services,Head of Education and Skills,Transport,230006,Contract Hire,10/05/2024,4267561-0060,"1,980.00",STARGATE TAXIS.
Neighbourhoods and Climate Change,Highways,Supplies and Services,304221,Equipment and Materials,10/05/2024,4267566-48493,"2,132.66",STONEGRAVE AGGREGATES LTD.
Neighbourhoods and Climate Change,Highways,Supplies and Services,304221,Equipment and Materials,10/05/2024,4267572-9048301707,756.72,TARMAC TRADING LTD.
Children and Young Peoples Services,Head of Education and Skills,Transport,230006,Contract Hire,10/05/2024,4267573-DCC/2023/68,"1,027.68",TAYLOR`S TAXIS.
Children and Young Peoples Services,Head of Education and Skills,Transport,230008,Contract Hire,10/05/2024,4267573-DCC/2023/69,"2,203.47",TAYLOR`S TAXIS.
Children and Young Peoples Services,Head of Education and Skills,Transport,230008,Contract Hire,10/05/2024,4267573-DCC/2023/70,"2,077.46",TAYLOR`S TAXIS.
Children and Young Peoples Services,Head of Education and Skills,Transport,230008,Contract Hire,10/05/2024,4267573-DCC/2023/71,"2,189.28",TAYLOR`S TAXIS.
Children and Young Peoples Services,Head of Education and Skills,Transport,230008,Contract Hire,10/05/2024,4267573-DCC/2023/74,"2,420.88",TAYLOR`S TAXIS.
Children and Young Peoples Services,Head of Education and Skills,Transport,230008,Contract Hire,10/05/2024,4267577-A067APR24,"1,788.00",TERRY'S TAXIS (SEAHAM).
Regeneration Economy and Growth,Culture Sport and Tourism,Supplies and Services,384199,Miscellaneous Expenses,10/05/2024,4267578-INV-48628,513.60,TEVALIS LTD.
Neighbourhoods and Climate Change,Environmental Services,Third Party Payments,430100,Rendered by Private Contractors,10/05/2024,4267582-0991,"1,500.00",THE SKILL MILL LTD.
Neighbourhoods and Climate Change,Highways,Stock A926,926900,Stock in hand-Inventory system,10/05/2024,4267585-NSIN00112293,"1,465.00",THOMAS OWEN & SONS (NEWCASTLE) LTD.
Regeneration Economy and Growth,Corporate Property and Land,Supplies and Services,384199,Miscellaneous Expenses,10/05/2024,4267586-00119350,"2,053.00",THOMAS TELFORD LTD.
Children and Young Peoples Services,Head of Education and Skills,Transport,230008,Contract Hire,10/05/2024,4267590-A205APR24,"1,921.68",TRAVEL 6.
Children and Young Peoples Services,Head of Education and Skills,Third Party Payments,440999,Other third party payments E440,10/05/2024,4267591-4190,"4,500.00",TRIAGE CENTRAL LTD.
Chief Executives Office,Legal & Democratic Services,Supplies and Services,338042,Services,10/05/2024,4267592-311064/INVMB180,750.00,TRINITY CHAMBERS.
Chief Executives Office,Legal & Democratic Services,Supplies and Services,338042,Services,10/05/2024,4267592-313325/INVHM472,"1,400.00",TRINITY CHAMBERS.
Regeneration Economy and Growth,Culture Sport and Tourism,Construction work A908,908105,Construction work,10/05/2024,4267593-66276,"2,970.00",TURF CARE SPECIALISTS LTD.
Neighbourhoods and Climate Change,Highways,Supplies and Services,304221,Equipment and Materials,10/05/2024,4267594-259163,"1,208.10",TYNEDALE ROADSTONE LTD.
Neighbourhoods and Climate Change,Highways,Supplies and Services,304221,Equipment and Materials,10/05/2024,4267594-259164,"1,248.40",TYNEDALE ROADSTONE LTD.
Neighbourhoods and Climate Change,Highways,Supplies and Services,304221,Equipment and Materials,10/05/2024,4267594-259165,875.43,TYNEDALE ROADSTONE LTD.
Neighbourhoods and Climate Change,Highways,Supplies and Services,304221,Equipment and Materials,10/05/2024,4267594-259176,910.50,TYNEDALE ROADSTONE LTD.
Neighbourhoods and Climate Change,Highways,Supplies and Services,304221,Equipment and Materials,10/05/2024,4267594-259177,508.86,TYNEDALE ROADSTONE LTD.
Regeneration Economy and Growth,Corporate Property and Land,Supplies and Services,304221,Equipment and Materials,10/05/2024,4267596-5086071,770.00,UK HEALTH SECURITY AGENCY (UKHSA).
Neighbourhoods and Climate Change,Highways,Stock A926,926900,Stock in hand-Inventory system,10/05/2024,4267597-SI09648649,"2,326.89",UK PLUMBING SUPPLIES LTD T/A PLUMBASE.
